Service Delivery Area(T),Service Delivery Team(T),ExpenditureGroup(T),Account(T),Supplier Name(T),Trans Date,Amount
Adult Social Care,ASC Prevention & Enablement,Transport-Related Expenditure,Taxi Costs,Cartello Ambulance,30/04/2024,165.00
Adult Social Care,ASC Prevention & Enablement,Transport-Related Expenditure,Taxi Costs,Cartello Ambulance,30/04/2024,199.50
Adult Social Care,ASC Prevention & Enablement,Transport-Related Expenditure,Taxi Costs,Cartello Ambulance,30/04/2024,199.50
Adult Social Care,ASC Prevention & Enablement,Transport-Related Expenditure,Taxi Costs,Cartello Ambulance,30/04/2024,300.00
Adult Social Care,ASC Prevention & Enablement,Transport-Related Expenditure,Taxi Costs,Cartello Ambulance,30/04/2024,171.00
Adult Social Care,ASC Prevention & Enablement,Third Party Payments,Nursing Expenditure,NHS Shropshire Telford & Wrekin ICB QOC Receivables ,05/04/2024,7440.00
Adult Social Care,ASC Prevention & Enablement,Third Party Payments,Nursing Expenditure,NHS Shropshire Telford & Wrekin ICB QOC Receivables ,05/04/2024,7440.00
Adult Social Care,"Assurance, Transformation & Financial Management",Premises-Related Expenditure,Hire Of Rooms,AFC Telford Holdings Limited,15/04/2024,1850.00
Adult Social Care,"Assurance, Transformation & Financial Management",Employees,Staff Training,Disability Rights UK,16/04/2024,1483.00
Adult Social Care,"Assurance, Transformation & Financial Management",Supplies & Services,Other Expenses,Barclays Bank ,04/04/2024,371.00
Adult Social Care,"Assurance, Transformation & Financial Management",Supplies & Services,Systems Procurement,Prepaid Financial Services Limited,03/04/2024,547.10
Adult Social Care,"Assurance, Transformation & Financial Management",Supplies & Services,Systems Procurement,Prepaid Financial Services Limited,03/04/2024,380.62
Adult Social Care,"Commissioning, Procurement & Brokerage",Supplies & Services,Other Grants (Expenses),Brown Clee Care,24/04/2024,9150.00
Adult Social Care,"Commissioning, Procurement & Brokerage",Third Party Payments,Interpreters Fees,EXPRESS INTERPRETING & TRANSLATION,28/04/2024,5416.13
Adult Social Care,"Commissioning, Procurement & Brokerage",Supplies & Services,Other Grants (Expenses),TACT,02/04/2024,10450.00
Adult Social Care,"Commissioning, Procurement & Brokerage",Supplies & Services,Other Grants (Expenses),TELFORD & WREKIN CVS,15/04/2024,18500.00
Adult Social Care,Community Social Work & Adult Safeguarding,Supplies & Services,Legal Expenses,WEIGHTMANS,04/04/2024,1986.00
Adult Social Care,Community Social Work & Adult Safeguarding,Supplies & Services,Equipment - Hire,SKIPS TELFORD LTD,15/04/2024,552.00
Adult Social Care,Community Social Work (Principal Social Worker),Transport-Related Expenditure,Taxi Costs,Ezy Car Ltd,22/04/2024,355.60
Adult Social Care,Community Social Work (Principal Social Worker),Supplies & Services,Other Grants (Expenses),Engaging Communities Solutions CIC,24/04/2024,25000.00
Adult Social Care,Community Social Work (Principal Social Worker),Transport-Related Expenditure,Transport,More Than Care Telford,23/04/2024,3673.38
Adult Social Care,Community Social Work (Principal Social Worker),Supplies & Services,Medical Consultants Fees,Sakum Ltd,02/04/2024,527.94
Adult Social Care,Community Social Work (Principal Social Worker),Supplies & Services,Medical Consultants Fees,St Teresa Ltd ,24/04/2024,1541.70
Adult Social Care,Community Social Work (Principal Social Worker),Supplies & Services,Medical Consultants Fees,St Teresa Ltd ,24/04/2024,1442.57
Adult Social Care,My Options,Capital Expenditure,Payments to Contractor,ASLES (TOOL HIRE & SALES) LTD,15/04/2024,863.00
Adult Social Care,My Options,Employees,Staff Training,SHROPSHIRE COUNCIL ,04/04/2024,189.00
Adult Social Care,My Options,Employees,Staff Training,PARTNERS IN CARE,11/04/2024,1463.00
Adult Social Care,My Options,Supplies & Services,Computer Software (Maint),Nourish Care Systems Ltd,04/04/2024,1458.43
Adult Social Care,My Options,Supplies & Services,Equipment - Purchase,SPACEKRAFT LTD,23/04/2024,130.00
Adult Social Care,My Options,Supplies & Services,Computer Software (Maint),Nourish Care Systems Ltd,04/04/2024,1226.03
Adult Social Care,My Options,Premises-Related Expenditure,Clean Mats & Toilet Requisites,BROSCH DIRECT LTD,11/04/2024,405.02
Adult Social Care,My Options,Supplies & Services,Computer Software (Maint),Access UK Ltd,11/04/2024,150.00
Adult Social Care,My Options,Transport-Related Expenditure,Licences,MOTION PICTURE LICENSING COMPANY,30/04/2024,497.36
Adult Social Care,My Options,Premises-Related Expenditure,Hire Of Rooms,Dawley Baptist Church,04/04/2024,285.00
Adult Social Care,My Options,Premises-Related Expenditure,Hire Of Rooms,Dawley Baptist Church,04/04/2024,230.00
Adult Social Care,My Options,Premises-Related Expenditure,Hire Of Rooms,Dawley Baptist Church,04/04/2024,230.00
Adult Social Care,My Options,Supplies & Services,Computer Software (Maint),Nourish Care Systems Ltd,04/04/2024,236.67
Adult Social Care,My Options,Employees,Training Expenses,SAND CIC (Safe Ageing No Discrimination),05/04/2024,380.00
Adult Social Care,My Options,Supplies & Services,Equipment - Purchase,Wrekin Pneumatics(Telford) Ltd,18/04/2024,530.00
Adult Social Care,My Options,Supplies & Services,Computer Software (Maint),Nourish Care Systems Ltd,04/04/2024,498.83
Adult Social Care,My Options,Premises-Related Expenditure,Clean Mats & Toilet Requisites,BERWICK CARE EQUIPMENT LTD,04/04/2024,203.25
Adult Social Care,My Options,Supplies & Services,Equipment - Purchase,MEDACO,04/04/2024,272.41
Adult Social Care,My Options,Employees,Agency Supply Costs,Nurse Plus and Carer Plus (UK) Limited,04/04/2024,439.79
Adult Social Care,My Options,Employees,Agency Supply Costs,Nurse Plus and Carer Plus (UK) Limited,04/04/2024,1177.05
Adult Social Care,My Options,Employees,Agency Supply Costs,Safehands Recruitment,04/04/2024,7722.04
Adult Social Care,My Options,Employees,Agency Supply Costs,Nurse Plus and Carer Plus (UK) Limited,11/04/2024,413.10
Adult Social Care,My Options,Employees,Agency Supply Costs,Safehands Recruitment,11/04/2024,10440.93
Adult Social Care,My Options,Premises-Related Expenditure,Clean Mats & Toilet Requisites,BERWICK CARE EQUIPMENT LTD,11/04/2024,254.20
Adult Social Care,My Options,Premises-Related Expenditure,Clean Mats & Toilet Requisites,BROSCH DIRECT LTD,11/04/2024,367.06
Adult Social Care,My Options,Premises-Related Expenditure,Clean Mats & Toilet Requisites,BERWICK CARE EQUIPMENT LTD,18/04/2024,201.75
Adult Social Care,My Options,Premises-Related Expenditure,Clean Mats & Toilet Requisites,PHS GROUP,18/04/2024,125.22
Adult Social Care,My Options,Employees,Agency Supply Costs,Nurse Plus and Carer Plus (UK) Limited,18/04/2024,239.40
Adult Social Care,My Options,Employees,Agency Supply Costs,Safehands Recruitment,18/04/2024,9944.91
Adult Social Care,My Options,Employees,Agency Supply Costs,Safehands Recruitment,18/04/2024,8371.18
Adult Social Care,My Options,Premises-Related Expenditure,Clean Mats & Toilet Requisites,BERWICK CARE EQUIPMENT LTD,23/04/2024,180.33
Adult Social Care,My Options,Employees,Agency Supply Costs,Safehands Recruitment,25/04/2024,8910.92
Adult Social Care,My Options,Supplies & Services,Computer Software (Maint),Nourish Care Systems Ltd,04/04/2024,4081.05
Adult Social Care,My Options,Employees,Agency Supply Costs,Safehands Recruitment,18/04/2024,155.47
Adult Social Care,My Options,Employees,Agency Supply Costs,Safehands Recruitment,25/04/2024,139.72
Adult Social Care,My Options,Supplies & Services,Computer Software (Maint),Nourish Care Systems Ltd,04/04/2024,6341.16
Adult Social Care,My Options,Supplies & Services,Computer Software (Maint),Access UK Ltd,11/04/2024,494.40
Adult Social Care,My Options,Supplies & Services,Respite Care,Redacted Personal Information,03/04/2024,1061.39
Adult Social Care,My Options,Supplies & Services,Respite Care,Redacted Personal Information,03/04/2024,1580.00
Adult Social Care,My Options,Supplies & Services,Respite Care,Redacted Personal Information,03/04/2024,760.00
Adult Social Care,My Options,Supplies & Services,Respite Care,Redacted Personal Information,03/04/2024,760.00
Adult Social Care,My Options,Employees,Agency Supply Costs,Safehands Recruitment,04/04/2024,4993.45
Adult Social Care,My Options,Supplies & Services,Computer Software (Maint),Nourish Care Systems Ltd,04/04/2024,3784.68
Adult Social Care,My Options,Supplies & Services,Computer Software (Maint),Nourish Care Systems Ltd,04/04/2024,739.89
Adult Social Care,My Options,Supplies & Services,Computer Software (Maint),Nourish Care Systems Ltd,04/04/2024,2955.24
Adult Social Care,My Options,Premises-Related Expenditure,Clean Mats & Toilet Requisites,PHS GROUP,11/04/2024,1469.00
Adult Social Care,My Options,Employees,Agency Supply Costs,Safehands Recruitment,11/04/2024,4706.90
Adult Social Care,My Options,Employees,Agency Supply Costs,Safehands Recruitment,11/04/2024,389.52
Adult Social Care,My Options,Premises-Related Expenditure,Clean Mats & Toilet Requisites,BERWICK CARE EQUIPMENT LTD,18/04/2024,109.82
Adult Social Care,My Options,Employees,Agency Supply Costs,Safehands Recruitment,18/04/2024,3400.24
Adult Social Care,My Options,Employees,Agency Supply Costs,Safehands Recruitment,18/04/2024,4905.46
Adult Social Care,My Options,Employees,Agency Supply Costs,Safehands Recruitment,18/04/2024,1425.07
Adult Social Care,My Options,Employees,Agency Supply Costs,Safehands Recruitment,18/04/2024,2016.29
Adult Social Care,My Options,Premises-Related Expenditure,Clean Mats & Toilet Requisites,BROSCH DIRECT LTD,23/04/2024,131.94
Adult Social Care,My Options,Supplies & Services,Respite Care,Redacted Personal Information,30/04/2024,568.00
Adult Social Care,My Options,Supplies & Services,Respite Care,Redacted Personal Information,30/04/2024,760.00
Adult Social Care,My Options,Supplies & Services,Respite Care,Redacted Personal Information,30/04/2024,1537.16
Adult Social Care,My Options,Employees,Agency Supply Costs,Safehands Recruitment,25/04/2024,2524.65
Adult Social Care,My Options,Employees,Agency Supply Costs,Safehands Recruitment,25/04/2024,2393.44
Adult Social Care,Prevention & Independence - Older Adults & Disability,Supplies & Services,Equipment - Repair,STANNAH LIFT SERVICES LTD,03/04/2024,368.50
Adult Social Care,Prevention & Independence - Older Adults & Disability,Supplies & Services,Equipment - Repair,STANNAH LIFT SERVICES LTD,03/04/2024,4658.50
Adult Social Care,Prevention & Independence - Older Adults & Disability,Supplies & Services,Equipment - Repair,STANNAH LIFT SERVICES LTD,03/04/2024,5576.05
Adult Social Care,Prevention & Independence - Older Adults & Disability,Supplies & Services,Equipment - Repair,STANNAH LIFT SERVICES LTD,03/04/2024,582.50
Adult Social Care,Prevention & Independence - Older Adults & Disability,Supplies & Services,Other Grants (Expenses),Medequip,03/04/2024,9366.89
Adult Social Care,Prevention & Independence - Older Adults & Disability,Supplies & Services,Other Grants (Expenses),Medequip,03/04/2024,9331.51
Adult Social Care,Prevention & Independence - Older Adults & Disability,Supplies & Services,Other Grants (Expenses),Medequip,03/04/2024,10730.79
Adult Social Care,Prevention & Independence - Older Adults & Disability,Supplies & Services,Aids & Appliances,WREKIN HOUSING TRUST LTD ,03/04/2024,177.47
Adult Social Care,Prevention & Independence - Older Adults & Disability,Supplies & Services,Aids & Appliances,Possum Ltd,09/04/2024,895.00
Adult Social Care,Prevention & Independence - Older Adults & Disability,Supplies & Services,Aids & Appliances,Canary Care Global Limited,17/04/2024,319.00
Adult Social Care,Prevention & Independence - Older Adults & Disability,Supplies & Services,Aids & Appliances,Easylink,17/04/2024,202.95
Adult Social Care,Prevention & Independence - Older Adults & Disability,Supplies & Services,Aids & Appliances,SARABEC LIMITED,25/04/2024,853.30
Adult Social Care,Prevention & Independence - Older Adults & Disability,Supplies & Services,Aids & Appliances,Possum Ltd,24/04/2024,895.00
Adult Social Care,Prevention & Independence - Older Adults & Disability,Supplies & Services,Equipment - Repair,Closomat Limited,30/04/2024,205.00
Adult Social Care,Prevention & Independence - Older Adults & Disability,Supplies & Services,Equipment - Repair,Closomat Limited,30/04/2024,205.00
Adult Social Care,Prevention & Independence - Older Adults & Disability,Supplies & Services,Aids & Appliances,PRISM MEDICAL ,09/04/2024,709.65
Adult Social Care,Prevention & Independence - Older Adults & Disability,Supplies & Services,Aids & Appliances, PDS Hygiene,10/04/2024,514.50
Adult Social Care,Prevention & Independence - Older Adults & Disability,Supplies & Services,Aids & Appliances,Accora,11/04/2024,945.00
Adult Social Care,Prevention & Independence - Older Adults & Disability,Supplies & Services,Aids & Appliances,OSPREY HEALTHCARE LTD,17/04/2024,2788.80
Adult Social Care,Prevention & Independence - Older Adults & Disability,Supplies & Services,Aids & Appliances,SHROPSHIRE COUNCIL,22/04/2024,43124.28
Adult Social Care,Prevention & Independence - Older Adults & Disability,Supplies & Services,Aids & Appliances,Direct Healthcare Group Limited,22/04/2024,390.00
Adult Social Care,Prevention & Independence - Older Adults & Disability,Supplies & Services,Translation Services,VISS Sign Language Interpreting Service,05/04/2024,120.00
Adult Social Care,Prevention & Independence - Older Adults & Disability,Supplies & Services,Carriage/Delivery Charge,Accora,11/04/2024,175.00
Adult Social Care,Prevention & Independence - Older Adults & Disability,Supplies & Services,Other Services,TAKING PART,24/04/2024,227.50
Adult Social Care,Prevention & Independence - Older Adults & Disability,Transport-Related Expenditure,Taxi Costs,Telford and Wrekin Community Enterprise LTD,05/04/2024,144.00
Adult Social Care,Prevention & Independence - Older Adults & Disability,Supplies & Services,Equipment - Hire,ARJO UK LTD,05/04/2024,620.00
Adult Social Care,Prevention & Independence - Older Adults & Disability,Supplies & Services,Equipment - Hire,ARJO UK LTD,05/04/2024,580.00
Adult Social Care,Prevention & Independence - Older Adults & Disability,Employees,Staff Training,VISS Sign Language Interpreting Service,08/04/2024,120.00
Adult Social Care,Prevention & Independence - Older Adults & Disability,Transport-Related Expenditure,Taxi Costs,Cartello Ambulance,24/04/2024,171.00
Adult Social Care,Prevention & Independence - Older Adults & Disability,Transport-Related Expenditure,Taxi Costs,Cartello Ambulance,24/04/2024,199.50
Children's Safeguarding & Family Support,Child Protection & Family Support,Transport-Related Expenditure,Taxi Costs,Ezy Car Ltd,05/04/2024,659.40
Children's Safeguarding & Family Support,Child Protection & Family Support,Transport-Related Expenditure,Taxi Costs,Ezy Car Ltd,04/04/2024,558.40
Children's Safeguarding & Family Support,Child Protection & Family Support,Transport-Related Expenditure,Taxi Costs,Ezy Car Ltd,05/04/2024,879.20
Children's Safeguarding & Family Support,Child Protection & Family Support,Transport-Related Expenditure,Taxi Costs,24X7 Ltd,05/04/2024,113.78
Children's Safeguarding & Family Support,Child Protection & Family Support,Transport-Related Expenditure,Taxi Costs,Ezy Car Ltd,05/04/2024,834.00
Children's Safeguarding & Family Support,Child Protection & Family Support,Employees,Agency Supply Costs,Matrix SCM,16/04/2024,198468.00
Children's Safeguarding & Family Support,Child Protection & Family Support,Supplies & Services,Emergency Provisions for Young People,ASDA STORES LIMITED,30/04/2024,304.70
Children's Safeguarding & Family Support,Child Protection & Family Support,Supplies & Services,Emergency Provisions for Young People,ASDA STORES LIMITED,30/04/2024,304.70
Children's Safeguarding & Family Support,Child Protection & Family Support,Transport-Related Expenditure,Taxi Costs,Ezy Car Ltd,05/04/2024,2558.00
Children's Safeguarding & Family Support,Child Protection & Family Support,Transport-Related Expenditure,Taxi Costs,1st Choice,05/04/2024,1280.00
Children's Safeguarding & Family Support,Child Protection & Family Support,Transport-Related Expenditure,Taxi Costs,1st Choice,05/04/2024,1520.00
Children's Safeguarding & Family Support,Child Protection & Family Support,Transport-Related Expenditure,Taxi Costs,Ezy Car Ltd,05/04/2024,2048.40
Children's Safeguarding & Family Support,Child Protection & Family Support,Transport-Related Expenditure,Taxi Costs,Ezy Car Ltd,05/04/2024,389.70
Children's Safeguarding & Family Support,Child Protection & Family Support,Employees,Staff Training,PHOENIX SOFTWARE LTD,16/04/2024,250.00
Children's Safeguarding & Family Support,Child Protection & Family Support,Transport-Related Expenditure,Taxi Costs,Go Carz,05/04/2024,-216.72
Children's Safeguarding & Family Support,Child Protection & Family Support,Transport-Related Expenditure,Taxi Costs,1st Choice,05/04/2024,1520.00
Children's Safeguarding & Family Support,Child Protection & Family Support,Transport-Related Expenditure,Taxi Costs,1st Choice,05/04/2024,617.50
Children's Safeguarding & Family Support,Child Protection & Family Support,Transport-Related Expenditure,Taxi Costs,1st Choice,05/04/2024,617.50
Children's Safeguarding & Family Support,Child Protection & Family Support,Transport-Related Expenditure,Taxi Costs,1st Choice,05/04/2024,617.50
Children's Safeguarding & Family Support,Child Protection & Family Support,Transport-Related Expenditure,Taxi Costs,1st Choice,05/04/2024,617.50
Children's Safeguarding & Family Support,Child Protection & Family Support,Transport-Related Expenditure,Taxi Costs,The Thomas Adams School,05/04/2024,800.00
Children's Safeguarding & Family Support,Child Protection & Family Support,Transport-Related Expenditure,Taxi Costs,1st Choice,05/04/2024,130.00
Children's Safeguarding & Family Support,Child Protection & Family Support,Third Party Payments,Joint Financing,West Mercia Police & Crime Commissioner,12/04/2024,64255.50
Children's Safeguarding & Family Support,Child Protection & Family Support,Employees,Redundancy Payments,Capita Pension Solutions Limited,09/04/2024,240.58
Children's Safeguarding & Family Support,Child Protection & Family Support,Premises-Related Expenditure,Hire Of Rooms,Mercure Telford Centre Hotel,09/04/2024,124.46
Children's Safeguarding & Family Support,Child Protection & Family Support,Supplies & Services,Conference Expenses,ADCS,09/04/2024,487.00
Children's Safeguarding & Family Support,Child Protection & Family Support,Supplies & Services,Legal Expenses,Medical Expert Witness Alliance LLP,24/04/2024,2306.88
Children's Safeguarding & Family Support,Child Protection & Family Support,Supplies & Services,Legal Expenses,Medical Expert Witness Alliance LLP,24/04/2024,3732.48
Children's Safeguarding & Family Support,Child Protection & Family Support,Supplies & Services,Legal Expenses,Medical Expert Witness Alliance LLP,24/04/2024,108.00
Children's Safeguarding & Family Support,Child Protection & Family Support,Supplies & Services,Legal Expenses,MEWA LLP,24/04/2024,4070.00
Children's Safeguarding & Family Support,Child Protection & Family Support,Supplies & Services,Legal Expenses,Medical Expert Witness Alliance LLP,24/04/2024,4070.00
Children's Safeguarding & Family Support,Child Protection & Family Support,Supplies & Services,Registration / Licence Fees,OFSTED,03/04/2024,2059.00
Children's Safeguarding & Family Support,Family Connect & Childrens Centres,Premises-Related Expenditure,R&M -Building Other,Security Wise Ltd,17/04/2024,180.00
Children's Safeguarding & Family Support,Family Connect & Childrens Centres,Premises-Related Expenditure,R&M -Building Other,JCE & SONS LTD,17/04/2024,1090.00
Children's Safeguarding & Family Support,Family Connect & Childrens Centres,Premises-Related Expenditure,R&M -Building Other,Security Wise Ltd,24/04/2024,930.33
Children's Safeguarding & Family Support,Family Connect & Childrens Centres,Premises-Related Expenditure,Electricity,Guinness Sustainable Schools,24/04/2024,206.38
Children's Safeguarding & Family Support,Family Connect & Childrens Centres,Premises-Related Expenditure,Electricity,Guinness Sustainable Schools,24/04/2024,447.85
Children's Safeguarding & Family Support,Family Connect & Childrens Centres,Supplies & Services,Other Services,The Sea Change Trust,12/04/2024,28750.00
Children's Safeguarding & Family Support,Family Connect & Childrens Centres,Premises-Related Expenditure,Hire Of Rooms,MEETING POINT TRUST LTD,15/04/2024,507.03
Children's Safeguarding & Family Support,Family Connect & Childrens Centres,Supplies & Services,CL - Clothing Allowance,MPH CLOTHING,29/04/2024,250.00
Children's Safeguarding & Family Support,"Family Placements, Children in Care, Leaving Care & Emergency Duty Team",Supplies & Services,Form F Assessments,PC Assessments Ltd,02/04/2024,330.32
Children's Safeguarding & Family Support,"Family Placements, Children in Care, Leaving Care & Emergency Duty Team",Supplies & Services,Doctors Fees,COURT STREET MEDICAL PRACTICE,12/04/2024,108.00
Children's Safeguarding & Family Support,"Family Placements, Children in Care, Leaving Care & Emergency Duty Team",Employees,Recruitment Advertising,The Purple Company (UK) Ltd,16/04/2024,1320.00
Children's Safeguarding & Family Support,"Family Placements, Children in Care, Leaving Care & Emergency Duty Team",Premises-Related Expenditure,Hire Of Rooms,MEETING POINT TRUST LTD,09/04/2024,105.83
Children's Safeguarding & Family Support,"Family Placements, Children in Care, Leaving Care & Emergency Duty Team",Premises-Related Expenditure,Hire Of Rooms,Dawley Baptist Church,26/04/2024,687.50
Children's Safeguarding & Family Support,"Family Placements, Children in Care, Leaving Care & Emergency Duty Team",Premises-Related Expenditure,Hire Of Rooms,Dawley Baptist Church,26/04/2024,660.00
Children's Safeguarding & Family Support,"Family Placements, Children in Care, Leaving Care & Emergency Duty Team",Premises-Related Expenditure,Hire Of Rooms,Dawley Baptist Church,26/04/2024,962.50
Children's Safeguarding & Family Support,"Family Placements, Children in Care, Leaving Care & Emergency Duty Team",Supplies & Services,Form F Assessments,Kite Fostering Consultancy Ltd,23/04/2024,2040.05
Children's Safeguarding & Family Support,"Family Placements, Children in Care, Leaving Care & Emergency Duty Team",Supplies & Services,Advertising,Bauer Radio Ltd,16/04/2024,1185.90
Children's Safeguarding & Family Support,"Family Placements, Children in Care, Leaving Care & Emergency Duty Team",Supplies & Services,Advertising,Bauer Radio Ltd,16/04/2024,983.70
Children's Safeguarding & Family Support,"Family Placements, Children in Care, Leaving Care & Emergency Duty Team",Supplies & Services,Subscriptions,Newsquest Media Group,22/04/2024,2800.00
Children's Safeguarding & Family Support,"Family Placements, Children in Care, Leaving Care & Emergency Duty Team",Supplies & Services,Subscriptions,Council Advertising Network,22/04/2024,4500.00
Children's Safeguarding & Family Support,"Family Placements, Children in Care, Leaving Care & Emergency Duty Team",Third Party Payments,Childminders,HADLEY UNDER 5'S ,17/04/2024,342.00
Children's Safeguarding & Family Support,"Family Placements, Children in Care, Leaving Care & Emergency Duty Team",Employees,Training Exp's (Facilitators),ES-PBS Services,10/04/2024,500.00
Children's Safeguarding & Family Support,"Family Placements, Children in Care, Leaving Care & Emergency Duty Team",Supplies & Services,Equipment - Repair,STANNAH LIFT SERVICES LTD,03/04/2024,403.25
Children's Safeguarding & Family Support,"Family Placements, Children in Care, Leaving Care & Emergency Duty Team",Supplies & Services,Equipment - Repair,Closomat Limited,03/04/2024,205.00
Children's Safeguarding & Family Support,"Family Placements, Children in Care, Leaving Care & Emergency Duty Team",Supplies & Services,Equipment - Repair,STANNAH LIFT SERVICES LTD,03/04/2024,273.75
Children's Safeguarding & Family Support,"Family Placements, Children in Care, Leaving Care & Emergency Duty Team",Supplies & Services,Aids & Appliances,OSPREY HEALTHCARE LTD,04/04/2024,1451.00
Children's Safeguarding & Family Support,"Family Placements, Children in Care, Leaving Care & Emergency Duty Team",Supplies & Services,Equipment - Repair,STANNAH LIFT SERVICES LTD,03/04/2024,283.75
Children's Safeguarding & Family Support,"Family Placements, Children in Care, Leaving Care & Emergency Duty Team",Supplies & Services,Aids & Appliances,M A Smith Associates,11/04/2024,550.00
Children's Safeguarding & Family Support,"Family Placements, Children in Care, Leaving Care & Emergency Duty Team",Supplies & Services,Aids & Appliances,G & S SMIRTHWAITE LTD,11/04/2024,638.00
Children's Safeguarding & Family Support,"Family Placements, Children in Care, Leaving Care & Emergency Duty Team",Supplies & Services,Aids & Appliances,Etac Limited,11/04/2024,2518.00
Children's Safeguarding & Family Support,"Family Placements, Children in Care, Leaving Care & Emergency Duty Team",Supplies & Services,Aids & Appliances,Tough Furniture Ltd,11/04/2024,601.00
Children's Safeguarding & Family Support,"Family Placements, Children in Care, Leaving Care & Emergency Duty Team",Supplies & Services,Emergency Provisions for Young People,ASDA STORES LIMITED,30/04/2024,304.70
Children's Safeguarding & Family Support,"Family Placements, Children in Care, Leaving Care & Emergency Duty Team",Supplies & Services,Supportive Lodgings,Smooth Accommodation Ltd,08/04/2024,650.00
Children's Safeguarding & Family Support,"Family Placements, Children in Care, Leaving Care & Emergency Duty Team",Transport-Related Expenditure,Taxi Costs,Redacted Personal Information,02/04/2024,1640.52
Children's Safeguarding & Family Support,"Family Placements, Children in Care, Leaving Care & Emergency Duty Team",Transport-Related Expenditure,Taxi Costs,Redacted Personal Information,08/04/2024,3148.40
Children's Safeguarding & Family Support,"Family Placements, Children in Care, Leaving Care & Emergency Duty Team",Supplies & Services,Other Services,C J WILLIAMS FUNERAL SERVICES,18/04/2024,2327.50
Children's Safeguarding & Family Support,"Family Placements, Children in Care, Leaving Care & Emergency Duty Team",Supplies & Services,Emergency Provisions for Young People,ASDA STORES LIMITED,30/04/2024,304.65
Children's Safeguarding & Family Support,"Family Placements, Children in Care, Leaving Care & Emergency Duty Team",Third Party Payments,Private Contractors,Shared Services Connected Limited,02/04/2024,1312.00
Children's Safeguarding & Family Support,"Family Placements, Children in Care, Leaving Care & Emergency Duty Team",Third Party Payments,Private Contractors,Shared Services Connected Limited,02/04/2024,1640.00
Children's Safeguarding & Family Support,"Family Placements, Children in Care, Leaving Care & Emergency Duty Team",Third Party Payments,Residential Expenditure,Gracebridge Care Ltd,02/04/2024,-2928.22
Children's Safeguarding & Family Support,"Family Placements, Children in Care, Leaving Care & Emergency Duty Team",Transport-Related Expenditure,Taxi Costs,1st Choice,05/04/2024,1350.00
Children's Safeguarding & Family Support,"Family Placements, Children in Care, Leaving Care & Emergency Duty Team",Transport-Related Expenditure,Taxi Costs,1st Choice,05/04/2024,280.00
Children's Safeguarding & Family Support,"Family Placements, Children in Care, Leaving Care & Emergency Duty Team",Transport-Related Expenditure,Taxi Costs,1st Choice,05/04/2024,280.00
Children's Safeguarding & Family Support,"Family Placements, Children in Care, Leaving Care & Emergency Duty Team",Transport-Related Expenditure,Taxi Costs,1st Choice,05/04/2024,652.50
Children's Safeguarding & Family Support,"Family Placements, Children in Care, Leaving Care & Emergency Duty Team",Transport-Related Expenditure,Taxi Costs,1st Choice,05/04/2024,652.50
Children's Safeguarding & Family Support,"Family Placements, Children in Care, Leaving Care & Emergency Duty Team",Transport-Related Expenditure,Taxi Costs,1st Choice,05/04/2024,105.00
Children's Safeguarding & Family Support,"Family Placements, Children in Care, Leaving Care & Emergency Duty Team",Transport-Related Expenditure,Taxi Costs,1st Choice,05/04/2024,652.50
Children's Safeguarding & Family Support,"Family Placements, Children in Care, Leaving Care & Emergency Duty Team",Transport-Related Expenditure,Taxi Costs,1st Choice,05/04/2024,652.50
Children's Safeguarding & Family Support,"Family Placements, Children in Care, Leaving Care & Emergency Duty Team",Transport-Related Expenditure,Taxi Costs,1st Choice,05/04/2024,140.00
Children's Safeguarding & Family Support,"Family Placements, Children in Care, Leaving Care & Emergency Duty Team",Transport-Related Expenditure,Taxi Costs,1st Choice,05/04/2024,140.00
Children's Safeguarding & Family Support,"Family Placements, Children in Care, Leaving Care & Emergency Duty Team",Transport-Related Expenditure,Taxi Costs,1st Choice,05/04/2024,765.00
Children's Safeguarding & Family Support,"Family Placements, Children in Care, Leaving Care & Emergency Duty Team",Transport-Related Expenditure,Taxi Costs,1st Choice,05/04/2024,765.00
Children's Safeguarding & Family Support,"Family Placements, Children in Care, Leaving Care & Emergency Duty Team",Transport-Related Expenditure,Taxi Costs,1st Choice,05/04/2024,105.00
Children's Safeguarding & Family Support,"Family Placements, Children in Care, Leaving Care & Emergency Duty Team",Transport-Related Expenditure,Taxi Costs,1st Choice,05/04/2024,105.00
Children's Safeguarding & Family Support,"Family Placements, Children in Care, Leaving Care & Emergency Duty Team",Transport-Related Expenditure,Taxi Costs,1st Choice,05/04/2024,105.00
Children's Safeguarding & Family Support,"Family Placements, Children in Care, Leaving Care & Emergency Duty Team",Transport-Related Expenditure,Taxi Costs,1st Choice,05/04/2024,105.00
Children's Safeguarding & Family Support,"Family Placements, Children in Care, Leaving Care & Emergency Duty Team",Transport-Related Expenditure,Taxi Costs,1st Choice,05/04/2024,135.00
Children's Safeguarding & Family Support,Safeguarding Advisory,Employees,Professional Subs,SOLIHULL METROPOLITAN BOROUGH COUNCIL,02/04/2024,124.00
Children's Safeguarding & Family Support,Safeguarding Advisory,Supplies & Services,Public Transport Subsidy,Birmingham Children's Trust,17/04/2024,142.00
"Communities, Customer & Commercial Services",Community Services,Capital Expenditure,Other Capital Expenditure,National Grid Electricity Distribution (West Midlands) plc,04/04/2024,-2920.00
"Communities, Customer & Commercial Services",Community Services,Capital Expenditure,Other Capital Expenditure,National Grid Electricity Distribution (West Midlands) plc,08/04/2024,-2920.00
"Communities, Customer & Commercial Services",Community Services,Supplies & Services,Grants To Voluntary Organis,Telford Crisis Support,22/04/2024,133000.00
"Communities, Customer & Commercial Services",Community Services,Supplies & Services,Grants To Voluntary Organis,TELFORD & WREKIN CITIZENS ADVICE BUREAU,22/04/2024,203000.00
"Communities, Customer & Commercial Services",Community Services,Supplies & Services,Grants To Voluntary Organis,The Leegate Centre CIC,09/04/2024,300.00
"Communities, Customer & Commercial Services",Community Services,Supplies & Services,Other Grants (Expenses),Wellington Orbit,08/04/2024,283.09
"Communities, Customer & Commercial Services",Community Services,Supplies & Services,Grants To Voluntary Organis,Chinese Arts and Culture Centre,03/04/2024,1000.00
"Communities, Customer & Commercial Services",Community Services,Supplies & Services,Grants To Voluntary Organis,SHROPSHIRE COMMUNITY FOUNDATION,10/04/2024,16047.30
"Communities, Customer & Commercial Services",Community Services,Supplies & Services,Other Grants (Expenses),Telford First Responders,08/04/2024,283.09
"Communities, Customer & Commercial Services",Community Services,Supplies & Services,Grants To Voluntary Organis,BOURNVILLE VILLAGE TRUST,25/04/2024,1000.00
"Communities, Customer & Commercial Services",Community Services,Premises-Related Expenditure,Electricity,West Mercia Energy (WME),26/04/2024,1006.24
"Communities, Customer & Commercial Services",Community Services,Supplies & Services,Other Grants (Expenses),Telford Crisis Support,30/04/2024,283.09
"Communities, Customer & Commercial Services",Community Services,Supplies & Services,Grants To Voluntary Organis,The Guide Association Telford South Division,30/04/2024,325.00
"Communities, Customer & Commercial Services",Community Services,Supplies & Services,Grants To Voluntary Organis,Newport Shropshire Foodbank (which sits under Newport Christian Fellowship),30/04/2024,194.42
"Communities, Customer & Commercial Services",Community Services,Supplies & Services,Grants To Voluntary Organis,The Guide Association Telford South Division,30/04/2024,350.00
"Communities, Customer & Commercial Services",Community Services,Supplies & Services,Other Grants (Expenses),Park Wrekin Gymnastics Club Ltd,30/04/2024,283.09
"Communities, Customer & Commercial Services",Culture & Events,Supplies & Services,Grants To Voluntary Organis,WELLINGTON TOWN COUNCIL,08/04/2024,2500.00
"Communities, Customer & Commercial Services",Culture & Events,Supplies & Services,Artistes Fees,LITE (Lighting and Illumination Technology Experience Limited,02/04/2024,5642.00
"Communities, Customer & Commercial Services",Culture & Events,Supplies & Services,Artistes Fees,ShowStoppers,09/04/2024,417.00
"Communities, Customer & Commercial Services",Culture & Events,Supplies & Services,Artistes Fees,Public Sphere Ltd,10/04/2024,1998.56
"Communities, Customer & Commercial Services",Culture & Events,Supplies & Services,Artistes Fees,Worldbeaters Ltd,10/04/2024,1965.00
"Communities, Customer & Commercial Services",Culture & Events,Supplies & Services,Grants To Voluntary Organis,NEWPORT TOWN COUNCIL,12/04/2024,2500.00
"Communities, Customer & Commercial Services",Culture & Events,Supplies & Services,Grants To Voluntary Organis,MADELEY TOWN COUNCIL ,29/04/2024,2500.00
"Communities, Customer & Commercial Services",Culture & Events,Supplies & Services,Artistes Fees,Spirit Operations Ltd,17/04/2024,2500.00
"Communities, Customer & Commercial Services",Culture & Events,Supplies & Services,Artistes Fees,Redacted Personal Information,23/04/2024,450.00
"Communities, Customer & Commercial Services",Culture & Events,Supplies & Services,Artistes Fees,Illuminate Audio Visual Effects,23/04/2024,1250.00
"Communities, Customer & Commercial Services",Culture & Events,Supplies & Services,First Aid,MW MEDICS LTD,26/04/2024,480.00
"Communities, Customer & Commercial Services",Culture & Events,Supplies & Services,Equipment - Hire,Thermmark,24/04/2024,1024.00
"Communities, Customer & Commercial Services",Culture & Events,Supplies & Services,Artistes Fees,THE BEE LADY,24/04/2024,250.00
"Communities, Customer & Commercial Services",Culture & Events,Supplies & Services,Equipment - Hire,COUNTYLOOS LIMITED,29/04/2024,1800.00
"Communities, Customer & Commercial Services",Culture & Events,Supplies & Services,Artistes Fees,The Experiences Group,25/04/2024,723.75
"Communities, Customer & Commercial Services",Culture & Events,Supplies & Services,Equipment - Hire,Show Systems Marquees Ltd,26/04/2024,2243.00
"Communities, Customer & Commercial Services",Culture & Events,Supplies & Services,Equipment - Hire,Show Systems Marquees Ltd,26/04/2024,-487.92
"Communities, Customer & Commercial Services",Culture & Events,Supplies & Services,Artistes Fees,Animal Madness,30/04/2024,2500.00
"Communities, Customer & Commercial Services",Culture & Events,Supplies & Services,Promotion Expenses,Spektrix Limited,04/04/2024,1871.86
"Communities, Customer & Commercial Services",Culture & Events,Supplies & Services,Artistes Fees,AGE UK SHROPSHIRE TELFORD & WREKIN,04/04/2024,1770.00
"Communities, Customer & Commercial Services",Culture & Events,Supplies & Services,Promotion Expenses,crowdEngage Limited,02/04/2024,299.49
"Communities, Customer & Commercial Services",Culture & Events,Supplies & Services,Artistes Fees,TELFORD INTERNATIONAL CENTRE,08/04/2024,8366.60
"Communities, Customer & Commercial Services",Culture & Events,Supplies & Services,Artistes Fees,Casey's Cordingley Hall,18/04/2024,123.33
"Communities, Customer & Commercial Services",Culture & Events,Supplies & Services,Artistes Fees,Anstice Community Trust,25/04/2024,1200.00
"Communities, Customer & Commercial Services",Culture & Events,Supplies & Services,Artistes Fees,Great Dawley Town Council,25/04/2024,576.00
"Communities, Customer & Commercial Services",Culture & Events,Supplies & Services,Artistes Fees,Telford Tigers Limited,25/04/2024,1385.76
"Communities, Customer & Commercial Services",Culture & Events,Supplies & Services,Artistes Fees,Anstice Community Trust,25/04/2024,316.80
"Communities, Customer & Commercial Services",Culture & Events,Supplies & Services,Artistes Fees,The Telfordaires,30/04/2024,553.00
"Communities, Customer & Commercial Services",Culture & Events,Supplies & Services,Artistes Fees,Ellis Live Ltd,30/04/2024,5676.51
"Communities, Customer & Commercial Services",Culture & Events,Supplies & Services,Artistes Fees,Ellis Live Ltd,30/04/2024,7433.22
"Communities, Customer & Commercial Services",Culture & Events,Supplies & Services,Furniture - Repair,BRADLEY INDUSTRIAL SERVICES,04/04/2024,230.00
"Communities, Customer & Commercial Services",Culture & Events,Supplies & Services,Audit Services,DMC STOCKTAKING,02/04/2024,160.00
"Communities, Customer & Commercial Services",Culture & Events,Supplies & Services,Wet Resale Provision,MOLSON COORS BREWING COMPANY UK LTD,11/04/2024,303.16
"Communities, Customer & Commercial Services",Culture & Events,Supplies & Services,Wet Resale Provision,MOLSON COORS BREWING COMPANY UK LTD,11/04/2024,101.08
"Communities, Customer & Commercial Services",Culture & Events,Supplies & Services,Wet Resale Provision,MOLSON COORS BREWING COMPANY UK LTD,11/04/2024,114.35
"Communities, Customer & Commercial Services",Culture & Events,Supplies & Services,Wet Resale Provision,MOLSON COORS BREWING COMPANY UK LTD,11/04/2024,299.36
"Communities, Customer & Commercial Services",Culture & Events,Supplies & Services,Audit Services,DMC STOCKTAKING,02/04/2024,160.00
"Communities, Customer & Commercial Services",Culture & Events,Supplies & Services,Other Services,PROKILL UK LIMITED,18/04/2024,159.60
"Communities, Customer & Commercial Services",Customer Relationships & Welfare Services,Supplies & Services,Subscriptions,hbinfo Ltd.,08/04/2024,1134.00
"Communities, Customer & Commercial Services",Customer Relationships & Welfare Services,Supplies & Services,Comp Software (Purch / Hire),NEC Software Solutions UK Ltd,06/04/2024,1200.00
"Communities, Customer & Commercial Services",Customer Relationships & Welfare Services,Supplies & Services,Other Grants (Expenses),Hawk Incentives Ltd (Crown Commercial Services),19/04/2024,19724.26
"Communities, Customer & Commercial Services",Customer Relationships & Welfare Services,Supplies & Services,Other Grants (Expenses),Hawk Incentives Ltd (Crown Commercial Services),02/04/2024,19724.26
"Communities, Customer & Commercial Services",Customer Relationships & Welfare Services,Transfer Payments,Crisis Assistance Awards,PayPoint Network Limited,05/04/2024,380.00
"Communities, Customer & Commercial Services",Customer Relationships & Welfare Services,Supplies & Services,Postages,Financial Data Management plc,09/04/2024,131.93
"Communities, Customer & Commercial Services",Customer Relationships & Welfare Services,Supplies & Services,Postages,Financial Data Management plc,09/04/2024,124.49
"Communities, Customer & Commercial Services",Customer Relationships & Welfare Services,Transfer Payments,Crisis Assistance Awards,PayPoint Network Limited,08/04/2024,240.00
"Communities, Customer & Commercial Services",Customer Relationships & Welfare Services,Transfer Payments,Crisis Assistance Awards,PayPoint Network Limited,16/04/2024,325.00
"Communities, Customer & Commercial Services",Customer Relationships & Welfare Services,Transfer Payments,Crisis Assistance Awards,PayPoint Network Limited,23/04/2024,120.00
"Communities, Customer & Commercial Services",Customer Relationships & Welfare Services,Supplies & Services,IT Services,NEC Software Solutions UK Ltd,25/04/2024,926.25
"Communities, Customer & Commercial Services",Customer Relationships & Welfare Services,Supplies & Services,Other Grants (Expenses),Discretionary Household Support,22/04/2024,197.67
"Communities, Customer & Commercial Services",Customer Relationships & Welfare Services,Transfer Payments,Crisis Assistance Awards,PayPoint Network Limited,30/04/2024,128.00
"Communities, Customer & Commercial Services",Customer Relationships & Welfare Services,Supplies & Services,Bus Pass Production,Euclid Limited,04/04/2024,839.52
"Communities, Customer & Commercial Services",Customer Relationships & Welfare Services,Supplies & Services,Blue Badge Assessments,Ascenti,10/04/2024,330.00
"Communities, Customer & Commercial Services",Customer Relationships & Welfare Services,Transfer Payments,Crisis Assistance Awards,Kings of the Road,08/04/2024,325.00
"Communities, Customer & Commercial Services",Customer Relationships & Welfare Services,Transfer Payments,Crisis Assistance Awards,Kings of the Road,18/04/2024,395.00
"Communities, Customer & Commercial Services",Customer Relationships & Welfare Services,Transfer Payments,Crisis Assistance Awards,Kings of the Road,23/04/2024,395.00
"Communities, Customer & Commercial Services",Customer Relationships & Welfare Services,Supplies & Services,Conference Expenses,APSE (MANCHESTER),08/04/2024,188.00
"Communities, Customer & Commercial Services",Customer Relationships & Welfare Services,Supplies & Services,Funeral Services,L TRANTER & SON,12/04/2024,450.00
"Communities, Customer & Commercial Services",Customer Relationships & Welfare Services,Supplies & Services,Comp Software (Purch / Hire),PlotBox,16/04/2024,43005.00
"Communities, Customer & Commercial Services",ICT,Capital Expenditure,Payments to Contractor,Zellis UK Ltd,08/04/2024,3384.00
"Communities, Customer & Commercial Services",ICT,Capital Expenditure,Payments to Contractor,VIRGIN MEDIA BUSINESS ,04/04/2024,861024.49
"Communities, Customer & Commercial Services",ICT,Capital Expenditure,Payments to Contractor,FarrPoint Ltd,05/04/2024,7575.00
"Communities, Customer & Commercial Services",ICT,Capital Expenditure,Payments to Contractor,Bramble Hub Limited,12/04/2024,11182.14
"Communities, Customer & Commercial Services",ICT,Capital Expenditure,Payments to Contractor,FarrPoint Ltd,16/04/2024,3684.00
"Communities, Customer & Commercial Services",ICT,Capital Expenditure,Computer Hardware,CCS MEDIA LIMITED,22/04/2024,178.00
"Communities, Customer & Commercial Services",ICT,Supplies & Services,Telecomms,VIRGIN MEDIA BUSINESS ,08/04/2024,3240.00
"Communities, Customer & Commercial Services",ICT,Supplies & Services,Telecomms,Airband Community Internet,08/04/2024,295.00
"Communities, Customer & Commercial Services",ICT,Supplies & Services,Telephones,BRITISH TELECOMMUNICATIONS PLC ,10/04/2024,8128.04
"Communities, Customer & Commercial Services",ICT,Supplies & Services,Mobile Phones,EE LTD AIRTIME ,10/04/2024,12516.47
"Communities, Customer & Commercial Services",ICT,Supplies & Services,Text Messages,KONICA MINOLTA BUSINESS SOLUTIONS UK LTD,12/04/2024,362.73
"Communities, Customer & Commercial Services",ICT,Supplies & Services,Comp Software (Purch / Hire),SIEMENS FINANCIAL SERVICES LTD,05/04/2024,1036.73
"Communities, Customer & Commercial Services",ICT,Supplies & Services,Comp Software (Purch / Hire),SIEMENS FINANCIAL SERVICES LTD,05/04/2024,1036.73
"Communities, Customer & Commercial Services",ICT,Premises-Related Expenditure,Service Contracts,AVK/SEG (UK) Ltd,03/04/2024,3371.00
"Communities, Customer & Commercial Services",ICT,Premises-Related Expenditure,Service Contracts,AVK/SEG (UK) Ltd,03/04/2024,2928.00
"Communities, Customer & Commercial Services",ICT,Supplies & Services,Equipment - Purchase,DSP-Explorer,17/04/2024,1425.00
"Communities, Customer & Commercial Services",ICT,Premises-Related Expenditure,Service Contracts,Aqua Cooling Ltd,23/04/2024,1944.21
"Communities, Customer & Commercial Services",ICT,Supplies & Services,Stationery,CCS MEDIA LIMITED,25/04/2024,350.00
"Communities, Customer & Commercial Services",ICT,Supplies & Services,Comp Software (Purch / Hire),Zellis UK Ltd,08/04/2024,48857.10
"Communities, Customer & Commercial Services",ICT,Supplies & Services,Comp Software (Purch / Hire),PILLAR SOFTWARE LIMITED,04/04/2024,1585.00
"Communities, Customer & Commercial Services",ICT,Supplies & Services,Comp Software (Purch / Hire),Dotted Eyes Ltd,11/04/2024,500.00
"Communities, Customer & Commercial Services",ICT,Supplies & Services,Telecomms,VODAFONE LTD ,10/04/2024,1694.00
"Communities, Customer & Commercial Services",ICT,Supplies & Services,Comp Software (Purch / Hire),PowerON Platforms Ltd,15/04/2024,3510.00
"Communities, Customer & Commercial Services",ICT,Supplies & Services,Comp Software (Purch / Hire),Strive AV Ltd,15/04/2024,300.00
"Communities, Customer & Commercial Services",ICT,Supplies & Services,Comp Software (Purch / Hire),Zivver Limited,12/04/2024,3090.00
"Communities, Customer & Commercial Services",ICT,Supplies & Services,Comp Software (Purch / Hire),Zivver Limited,12/04/2024,30000.00
"Communities, Customer & Commercial Services",ICT,Supplies & Services,Comp Software (Purch / Hire),Barnbrook Software Limited,18/04/2024,525.00
"Communities, Customer & Commercial Services",ICT,Supplies & Services,Comp Software (Purch / Hire),PHOENIX SOFTWARE LTD,16/04/2024,75000.00
"Communities, Customer & Commercial Services",ICT,Supplies & Services,Telecomms,Nominet,16/04/2024,422.23
"Communities, Customer & Commercial Services",ICT,Supplies & Services,Comp Software (Purch / Hire),PHOENIX SOFTWARE LTD,16/04/2024,228.51
"Communities, Customer & Commercial Services",ICT,Supplies & Services,Comp Software (Purch / Hire),PHOENIX SOFTWARE LTD,16/04/2024,304.68
"Communities, Customer & Commercial Services",ICT,Supplies & Services,Stationery,PREMIER PAPER GROUP LTD,25/04/2024,163.50
"Communities, Customer & Commercial Services",ICT,Supplies & Services,Comp Software (Purch / Hire),PHOENIX SOFTWARE LTD,30/04/2024,695.98
"Communities, Customer & Commercial Services",ICT,Supplies & Services,Comp Software (Purch / Hire),PHOENIX SOFTWARE LTD,30/04/2024,695.98
"Communities, Customer & Commercial Services",ICT,Supplies & Services,Comp Software (Purch / Hire),PHOENIX SOFTWARE LTD,30/04/2024,695.98
"Communities, Customer & Commercial Services",ICT,Supplies & Services,Comp Software (Purch / Hire),PHOENIX SOFTWARE LTD,30/04/2024,695.98
"Communities, Customer & Commercial Services",ICT,Supplies & Services,Comp Software (Purch / Hire),PHOENIX SOFTWARE LTD,30/04/2024,1159.94
"Communities, Customer & Commercial Services",ICT,Supplies & Services,Comp Software (Purch / Hire),PHOENIX SOFTWARE LTD,30/04/2024,13089.44
"Communities, Customer & Commercial Services",ICT,Supplies & Services,Comp Software (Purch / Hire),Bromcom Computers Plc,11/04/2024,550.00
"Communities, Customer & Commercial Services",ICT,Supplies & Services,Comp Software (Purch / Hire),Bromcom Computers Plc,11/04/2024,907.60
"Communities, Customer & Commercial Services",ICT,Supplies & Services,Comp Software (Purch / Hire),Bromcom Computers Plc,08/04/2024,770.40
"Communities, Customer & Commercial Services",ICT,Supplies & Services,Comp Software (Purch / Hire),Bromcom Computers Plc,08/04/2024,883.00
"Communities, Customer & Commercial Services",ICT,Supplies & Services,Comp Software (Purch / Hire),Bromcom Computers Plc,08/04/2024,1385.30
"Communities, Customer & Commercial Services",ICT,Supplies & Services,Equipment - Purchase,ICTn Limited,04/04/2024,316.30
"Communities, Customer & Commercial Services",ICT,Supplies & Services,Comp Software (Purch / Hire),Bromcom Computers Plc,11/04/2024,1150.00
"Communities, Customer & Commercial Services",ICT,Supplies & Services,Comp Software (Purch / Hire),Bromcom Computers Plc,11/04/2024,1979.20
"Communities, Customer & Commercial Services",ICT,Supplies & Services,Comp Software (Purch / Hire),ScholarPack,15/04/2024,1850.00
"Communities, Customer & Commercial Services",ICT,Supplies & Services,Comp Software (Purch / Hire),ScholarPack,15/04/2024,3129.00
"Communities, Customer & Commercial Services",ICT,Supplies & Services,Telephones,CCS MEDIA LIMITED,10/04/2024,404.00
"Communities, Customer & Commercial Services",ICT,Supplies & Services,Equipment - Purchase,ICTn Limited,10/04/2024,1043.96
"Communities, Customer & Commercial Services",ICT,Supplies & Services,Equipment - Purchase,ICTn Limited,15/04/2024,1058.40
"Communities, Customer & Commercial Services",ICT,Supplies & Services,Comp Hardware (Purch / Hire),ICTn Limited,15/04/2024,2520.64
"Communities, Customer & Commercial Services",ICT,Supplies & Services,Comp Hardware (Purch / Hire),Security Wise Ltd,16/04/2024,540.00
"Communities, Customer & Commercial Services",ICT,Supplies & Services,Comp Software (Purch / Hire),PHOENIX SOFTWARE LTD,17/04/2024,950.00
"Communities, Customer & Commercial Services",ICT,Supplies & Services,Comp Software (Purch / Hire),ScholarPack,15/04/2024,531.00
"Communities, Customer & Commercial Services",ICT,Supplies & Services,Comp Software (Purch / Hire),ScholarPack,15/04/2024,3520.00
"Communities, Customer & Commercial Services",ICT,Supplies & Services,Comp Software (Purch / Hire),ScholarPack,15/04/2024,4186.00
"Communities, Customer & Commercial Services",ICT,Supplies & Services,Comp Software (Purch / Hire),ScholarPack,15/04/2024,984.00
"Communities, Customer & Commercial Services",ICT,Supplies & Services,Comp Software (Purch / Hire),ScholarPack,15/04/2024,385.00
"Communities, Customer & Commercial Services",ICT,Supplies & Services,Comp Software (Purch / Hire),ScholarPack,15/04/2024,876.00
"Communities, Customer & Commercial Services",ICT,Supplies & Services,Comp Software (Purch / Hire),Bromcom Computers Plc,22/04/2024,1800.00
"Communities, Customer & Commercial Services",ICT,Supplies & Services,Comp Software (Purch / Hire),Bromcom Computers Plc,22/04/2024,2259.20
"Communities, Customer & Commercial Services",Sport & Leisure,Premises-Related Expenditure,Clean Mats & Toilet Requisites,Border Janitorial Supplies Limited,11/04/2024,297.13
"Communities, Customer & Commercial Services",Sport & Leisure,Premises-Related Expenditure,Clean Mats & Toilet Requisites,Border Janitorial Supplies Limited,11/04/2024,188.33
"Communities, Customer & Commercial Services",Sport & Leisure,Premises-Related Expenditure,Clean Mats & Toilet Requisites,Border Janitorial Supplies Limited,11/04/2024,337.52
"Communities, Customer & Commercial Services",Sport & Leisure,Premises-Related Expenditure,Clean Mats & Toilet Requisites,Border Janitorial Supplies Limited,11/04/2024,195.04
"Communities, Customer & Commercial Services",Sport & Leisure,Premises-Related Expenditure,Clean Mats & Toilet Requisites,Border Janitorial Supplies Limited,11/04/2024,190.76
"Communities, Customer & Commercial Services",Sport & Leisure,Premises-Related Expenditure,Clean Mats & Toilet Requisites,Border Janitorial Supplies Limited,11/04/2024,202.66
"Communities, Customer & Commercial Services",Sport & Leisure,Premises-Related Expenditure,Clean Mats & Toilet Requisites,Border Janitorial Supplies Limited,17/04/2024,118.53
"Communities, Customer & Commercial Services",Sport & Leisure,Premises-Related Expenditure,Clean Mats & Toilet Requisites,Border Janitorial Supplies Limited,22/04/2024,326.31
"Communities, Customer & Commercial Services",Sport & Leisure,Premises-Related Expenditure,Clean Mats & Toilet Requisites,Border Janitorial Supplies Limited,02/04/2024,602.88
"Communities, Customer & Commercial Services",Sport & Leisure,Premises-Related Expenditure,Clean Mats & Toilet Requisites,Border Janitorial Supplies Limited,08/04/2024,245.64
"Communities, Customer & Commercial Services",Sport & Leisure,Premises-Related Expenditure,Clean Mats & Toilet Requisites,Border Janitorial Supplies Limited,08/04/2024,482.54
"Communities, Customer & Commercial Services",Sport & Leisure,Premises-Related Expenditure,Clean Mats & Toilet Requisites,Border Janitorial Supplies Limited,08/04/2024,153.62
"Communities, Customer & Commercial Services",Sport & Leisure,Premises-Related Expenditure,Clean Mats & Toilet Requisites,Border Janitorial Supplies Limited,10/04/2024,100.71
"Communities, Customer & Commercial Services",Sport & Leisure,Premises-Related Expenditure,Clean Mats & Toilet Requisites,Border Janitorial Supplies Limited,16/04/2024,111.36
"Communities, Customer & Commercial Services",Sport & Leisure,Premises-Related Expenditure,Clean Mats & Toilet Requisites,Border Janitorial Supplies Limited,16/04/2024,188.59
"Communities, Customer & Commercial Services",Sport & Leisure,Premises-Related Expenditure,Clean Mats & Toilet Requisites,Border Janitorial Supplies Limited,16/04/2024,107.62
"Communities, Customer & Commercial Services",Sport & Leisure,Premises-Related Expenditure,Clean Mats & Toilet Requisites,Border Janitorial Supplies Limited,10/04/2024,267.58
"Communities, Customer & Commercial Services",Sport & Leisure,Premises-Related Expenditure,Clean Mats & Toilet Requisites,Border Janitorial Supplies Limited,10/04/2024,295.39
"Communities, Customer & Commercial Services",Sport & Leisure,Premises-Related Expenditure,Clean Mats & Toilet Requisites,Border Janitorial Supplies Limited,26/04/2024,132.02
"Communities, Customer & Commercial Services",Sport & Leisure,Premises-Related Expenditure,Clean Mats & Toilet Requisites,Border Janitorial Supplies Limited,30/04/2024,165.54
"Communities, Customer & Commercial Services",Sport & Leisure,Premises-Related Expenditure,Clean Mats & Toilet Requisites,Border Janitorial Supplies Limited,02/04/2024,290.25
"Communities, Customer & Commercial Services",Sport & Leisure,Premises-Related Expenditure,Clean Mats & Toilet Requisites,Border Janitorial Supplies Limited,02/04/2024,121.35
"Communities, Customer & Commercial Services",Sport & Leisure,Premises-Related Expenditure,Clean Mats & Toilet Requisites,Border Janitorial Supplies Limited,02/04/2024,177.50
"Communities, Customer & Commercial Services",Sport & Leisure,Premises-Related Expenditure,Clean Mats & Toilet Requisites,Border Janitorial Supplies Limited,10/04/2024,142.34
"Communities, Customer & Commercial Services",Sport & Leisure,Premises-Related Expenditure,Clean Mats & Toilet Requisites,Border Janitorial Supplies Limited,10/04/2024,101.46
"Communities, Customer & Commercial Services",Sport & Leisure,Premises-Related Expenditure,Clean Mats & Toilet Requisites,Border Janitorial Supplies Limited,16/04/2024,220.01
"Communities, Customer & Commercial Services",Sport & Leisure,Premises-Related Expenditure,Clean Mats & Toilet Requisites,Border Janitorial Supplies Limited,16/04/2024,256.16
"Communities, Customer & Commercial Services",Sport & Leisure,Premises-Related Expenditure,Clean Mats & Toilet Requisites,Border Janitorial Supplies Limited,16/04/2024,287.56
"Communities, Customer & Commercial Services",Sport & Leisure,Premises-Related Expenditure,Clean Mats & Toilet Requisites,Border Janitorial Supplies Limited,23/04/2024,242.98
"Communities, Customer & Commercial Services",Sport & Leisure,Premises-Related Expenditure,Clean Mats & Toilet Requisites,Border Janitorial Supplies Limited,26/04/2024,114.56
"Communities, Customer & Commercial Services",Sport & Leisure,Premises-Related Expenditure,Clean Mats & Toilet Requisites,Border Janitorial Supplies Limited,26/04/2024,276.10
"Communities, Customer & Commercial Services",Sport & Leisure,Premises-Related Expenditure,Clean Mats & Toilet Requisites,Border Janitorial Supplies Limited,30/04/2024,179.99
"Communities, Customer & Commercial Services",Sport & Leisure,Premises-Related Expenditure,Clean Mats & Toilet Requisites,Border Janitorial Supplies Limited,30/04/2024,164.40
"Communities, Customer & Commercial Services",Sport & Leisure,Premises-Related Expenditure,Clean Mats & Toilet Requisites,Border Janitorial Supplies Limited,02/04/2024,355.26
"Communities, Customer & Commercial Services",Sport & Leisure,Premises-Related Expenditure,Clean Mats & Toilet Requisites,Border Janitorial Supplies Limited,10/04/2024,784.24
"Communities, Customer & Commercial Services",Sport & Leisure,Premises-Related Expenditure,Electricity,EON next,22/04/2024,222.18
"Communities, Customer & Commercial Services",Sport & Leisure,Supplies & Services,Crockery/Hardware/Light Equip,Border Janitorial Supplies Limited,22/04/2024,122.50
"Communities, Customer & Commercial Services",Sport & Leisure,Supplies & Services,EEC Whole Milk,JOHAL DAIRIES,23/04/2024,791.05
"Communities, Customer & Commercial Services",Sport & Leisure,Supplies & Services,EEC Whole Milk,JOHAL DAIRIES,23/04/2024,1786.82
"Communities, Customer & Commercial Services",Sport & Leisure,Supplies & Services,EEC Whole Milk,JOHAL DAIRIES,18/04/2024,719.45
"Communities, Customer & Commercial Services",Sport & Leisure,Supplies & Services,EEC Whole Milk,JOHAL DAIRIES,18/04/2024,1741.30
"Communities, Customer & Commercial Services",Sport & Leisure,Supplies & Services,EEC Whole Milk,JOHAL DAIRIES,30/04/2024,791.05
"Communities, Customer & Commercial Services",Sport & Leisure,Supplies & Services,EEC Whole Milk,JOHAL DAIRIES,30/04/2024,1766.42
"Communities, Customer & Commercial Services",Sport & Leisure,Supplies & Services,Provisions,BIKOLD,11/04/2024,100.43
"Communities, Customer & Commercial Services",Sport & Leisure,Supplies & Services,Provisions,BIKOLD,11/04/2024,122.74
"Communities, Customer & Commercial Services",Sport & Leisure,Supplies & Services,Provisions,BIKOLD,18/04/2024,129.27
"Communities, Customer & Commercial Services",Sport & Leisure,Employees,Agency Supply Costs,TOTAL CATERING SOLUTONS RECRUITMENT LTD,09/04/2024,342.40
"Communities, Customer & Commercial Services",Sport & Leisure,Employees,Agency Supply Costs,TOTAL CATERING SOLUTONS RECRUITMENT LTD,09/04/2024,342.40
"Communities, Customer & Commercial Services",Sport & Leisure,Employees,Agency Supply Costs,TOTAL CATERING SOLUTONS RECRUITMENT LTD,09/04/2024,316.72
"Communities, Customer & Commercial Services",Sport & Leisure,Employees,Agency Supply Costs,TOTAL CATERING SOLUTONS RECRUITMENT LTD,09/04/2024,342.40
"Communities, Customer & Commercial Services",Sport & Leisure,Employees,Agency Supply Costs,TOTAL CATERING SOLUTONS RECRUITMENT LTD,09/04/2024,342.40
"Communities, Customer & Commercial Services",Sport & Leisure,Employees,Agency Supply Costs,TOTAL CATERING SOLUTONS RECRUITMENT LTD,09/04/2024,342.40
"Communities, Customer & Commercial Services",Sport & Leisure,Employees,Agency Supply Costs,TOTAL CATERING SOLUTONS RECRUITMENT LTD,09/04/2024,256.80
"Communities, Customer & Commercial Services",Sport & Leisure,Employees,Agency Supply Costs,TOTAL CATERING SOLUTONS RECRUITMENT LTD,09/04/2024,342.40
"Communities, Customer & Commercial Services",Sport & Leisure,Premises-Related Expenditure,Clean Mats & Toilet Requisites,Border Janitorial Supplies Limited,11/04/2024,180.16
"Communities, Customer & Commercial Services",Sport & Leisure,Premises-Related Expenditure,Clean Mats & Toilet Requisites,Border Janitorial Supplies Limited,17/04/2024,310.17
"Communities, Customer & Commercial Services",Sport & Leisure,Premises-Related Expenditure,Clean Mats & Toilet Requisites,Border Janitorial Supplies Limited,17/04/2024,172.27
"Communities, Customer & Commercial Services",Sport & Leisure,Premises-Related Expenditure,Clean Mats & Toilet Requisites,Border Janitorial Supplies Limited,17/04/2024,143.51
"Communities, Customer & Commercial Services",Sport & Leisure,Premises-Related Expenditure,Clean Mats & Toilet Requisites,Border Janitorial Supplies Limited,17/04/2024,308.01
"Communities, Customer & Commercial Services",Sport & Leisure,Premises-Related Expenditure,Clean Mats & Toilet Requisites,Border Janitorial Supplies Limited,17/04/2024,115.51
"Communities, Customer & Commercial Services",Sport & Leisure,Premises-Related Expenditure,Clean Mats & Toilet Requisites,Border Janitorial Supplies Limited,17/04/2024,269.62
"Communities, Customer & Commercial Services",Sport & Leisure,Premises-Related Expenditure,Clean Mats & Toilet Requisites,Border Janitorial Supplies Limited,23/04/2024,243.00
"Communities, Customer & Commercial Services",Sport & Leisure,Premises-Related Expenditure,Clean Mats & Toilet Requisites,Border Janitorial Supplies Limited,23/04/2024,123.89
"Communities, Customer & Commercial Services",Sport & Leisure,Premises-Related Expenditure,Clean Mats & Toilet Requisites,Border Janitorial Supplies Limited,18/04/2024,149.29
"Communities, Customer & Commercial Services",Sport & Leisure,Premises-Related Expenditure,Clean Mats & Toilet Requisites,Border Janitorial Supplies Limited,18/04/2024,391.80
"Communities, Customer & Commercial Services",Sport & Leisure,Premises-Related Expenditure,Clean Mats & Toilet Requisites,Border Janitorial Supplies Limited,22/04/2024,176.48
"Communities, Customer & Commercial Services",Sport & Leisure,Premises-Related Expenditure,Clean Mats & Toilet Requisites,Border Janitorial Supplies Limited,26/04/2024,330.83
"Communities, Customer & Commercial Services",Sport & Leisure,Premises-Related Expenditure,Clean Mats & Toilet Requisites,Border Janitorial Supplies Limited,26/04/2024,103.72
"Communities, Customer & Commercial Services",Sport & Leisure,Premises-Related Expenditure,Clean Mats & Toilet Requisites,Border Janitorial Supplies Limited,26/04/2024,210.39
"Communities, Customer & Commercial Services",Sport & Leisure,Premises-Related Expenditure,Clean Mats & Toilet Requisites,Border Janitorial Supplies Limited,30/04/2024,132.62
"Communities, Customer & Commercial Services",Sport & Leisure,Premises-Related Expenditure,Clean Mats & Toilet Requisites,Border Janitorial Supplies Limited,30/04/2024,373.09
"Communities, Customer & Commercial Services",Sport & Leisure,Premises-Related Expenditure,Clean Mats & Toilet Requisites,Border Janitorial Supplies Limited,30/04/2024,193.20
"Communities, Customer & Commercial Services",Sport & Leisure,Supplies & Services,Crockery/Hardware/Light Equip,Harfield Components Ltd,09/04/2024,8472.60
"Communities, Customer & Commercial Services",Sport & Leisure,Supplies & Services,Provisions,J S Catering Butchers,12/04/2024,160.00
"Communities, Customer & Commercial Services",Sport & Leisure,Supplies & Services,Provisions,J S Catering Butchers,12/04/2024,135.29
"Communities, Customer & Commercial Services",Sport & Leisure,Supplies & Services,Provisions,J S Catering Butchers,12/04/2024,180.63
"Communities, Customer & Commercial Services",Sport & Leisure,Supplies & Services,Provisions,J S Catering Butchers,12/04/2024,110.40
"Communities, Customer & Commercial Services",Sport & Leisure,Supplies & Services,Provisions,J S Catering Butchers,12/04/2024,200.10
"Communities, Customer & Commercial Services",Sport & Leisure,Supplies & Services,Provisions,J S Catering Butchers,12/04/2024,111.30
"Communities, Customer & Commercial Services",Sport & Leisure,Supplies & Services,Provisions,J S Catering Butchers,12/04/2024,121.50
"Communities, Customer & Commercial Services",Sport & Leisure,Supplies & Services,Provisions,ROWLANDS & COMPANY,15/04/2024,302.67
"Communities, Customer & Commercial Services",Sport & Leisure,Supplies & Services,Provisions,ROWLANDS & COMPANY,15/04/2024,110.29
"Communities, Customer & Commercial Services",Sport & Leisure,Supplies & Services,Provisions,ROWLANDS & COMPANY,15/04/2024,220.74
"Communities, Customer & Commercial Services",Sport & Leisure,Supplies & Services,Provisions,ROWLANDS & COMPANY,15/04/2024,194.45
"Communities, Customer & Commercial Services",Sport & Leisure,Supplies & Services,Provisions,ROWLANDS & COMPANY,15/04/2024,102.65
"Communities, Customer & Commercial Services",Sport & Leisure,Supplies & Services,Provisions,ROWLANDS & COMPANY,15/04/2024,176.17
"Communities, Customer & Commercial Services",Sport & Leisure,Supplies & Services,Provisions,ROWLANDS & COMPANY,15/04/2024,123.82
"Communities, Customer & Commercial Services",Sport & Leisure,Supplies & Services,Provisions,ROWLANDS & COMPANY,15/04/2024,119.88
"Communities, Customer & Commercial Services",Sport & Leisure,Supplies & Services,Provisions,ROWLANDS & COMPANY,15/04/2024,128.98
"Communities, Customer & Commercial Services",Sport & Leisure,Supplies & Services,Provisions,ROWLANDS & COMPANY,15/04/2024,110.39
"Communities, Customer & Commercial Services",Sport & Leisure,Supplies & Services,Provisions,ROWLANDS & COMPANY,15/04/2024,152.56
"Communities, Customer & Commercial Services",Sport & Leisure,Supplies & Services,Provisions,ROWLANDS & COMPANY,15/04/2024,102.96
"Communities, Customer & Commercial Services",Sport & Leisure,Supplies & Services,Provisions,BIKOLD,02/04/2024,581.50
"Communities, Customer & Commercial Services",Sport & Leisure,Supplies & Services,Provisions,BIKOLD,02/04/2024,109.67
"Communities, Customer & Commercial Services",Sport & Leisure,Supplies & Services,Provisions,BIKOLD,02/04/2024,326.11
"Communities, Customer & Commercial Services",Sport & Leisure,Supplies & Services,Provisions,BIKOLD,11/04/2024,173.15
"Communities, Customer & Commercial Services",Sport & Leisure,Supplies & Services,Provisions,BIKOLD,11/04/2024,137.18
"Communities, Customer & Commercial Services",Sport & Leisure,Supplies & Services,Provisions,BIKOLD,11/04/2024,146.49
"Communities, Customer & Commercial Services",Sport & Leisure,Supplies & Services,Provisions,BIKOLD,11/04/2024,149.56
"Communities, Customer & Commercial Services",Sport & Leisure,Supplies & Services,Provisions,BIKOLD,11/04/2024,134.21
"Communities, Customer & Commercial Services",Sport & Leisure,Supplies & Services,Provisions,BIKOLD,11/04/2024,286.53
"Communities, Customer & Commercial Services",Sport & Leisure,Supplies & Services,Provisions,BIKOLD,11/04/2024,381.89
"Communities, Customer & Commercial Services",Sport & Leisure,Supplies & Services,Provisions,BIKOLD,11/04/2024,109.26
"Communities, Customer & Commercial Services",Sport & Leisure,Supplies & Services,Provisions,BIKOLD,11/04/2024,153.16
"Communities, Customer & Commercial Services",Sport & Leisure,Supplies & Services,Provisions,BIKOLD,11/04/2024,362.84
"Communities, Customer & Commercial Services",Sport & Leisure,Supplies & Services,Provisions,BIKOLD,11/04/2024,364.28
"Communities, Customer & Commercial Services",Sport & Leisure,Supplies & Services,Provisions,BIKOLD,11/04/2024,105.17
"Communities, Customer & Commercial Services",Sport & Leisure,Supplies & Services,Provisions,BIKOLD,11/04/2024,118.11
"Communities, Customer & Commercial Services",Sport & Leisure,Supplies & Services,Provisions,BIKOLD,11/04/2024,237.14
"Communities, Customer & Commercial Services",Sport & Leisure,Supplies & Services,Provisions,BIKOLD,11/04/2024,463.75
"Communities, Customer & Commercial Services",Sport & Leisure,Supplies & Services,Provisions,BIKOLD,11/04/2024,300.19
"Communities, Customer & Commercial Services",Sport & Leisure,Supplies & Services,Provisions,BIKOLD,11/04/2024,185.15
"Communities, Customer & Commercial Services",Sport & Leisure,Supplies & Services,Provisions,BIKOLD,11/04/2024,142.67
"Communities, Customer & Commercial Services",Sport & Leisure,Supplies & Services,Provisions,BIKOLD,11/04/2024,184.59
"Communities, Customer & Commercial Services",Sport & Leisure,Supplies & Services,Provisions,BIKOLD,11/04/2024,272.73
"Communities, Customer & Commercial Services",Sport & Leisure,Supplies & Services,Provisions,BIKOLD,11/04/2024,250.17
"Communities, Customer & Commercial Services",Sport & Leisure,Supplies & Services,Provisions,BIKOLD,11/04/2024,222.53
"Communities, Customer & Commercial Services",Sport & Leisure,Supplies & Services,Provisions,BIKOLD,11/04/2024,569.48
"Communities, Customer & Commercial Services",Sport & Leisure,Supplies & Services,Provisions,BIKOLD,11/04/2024,131.32
"Communities, Customer & Commercial Services",Sport & Leisure,Supplies & Services,Provisions,BIKOLD,11/04/2024,129.80
"Communities, Customer & Commercial Services",Sport & Leisure,Supplies & Services,Provisions,BIKOLD,11/04/2024,229.49
"Communities, Customer & Commercial Services",Sport & Leisure,Supplies & Services,Provisions,BIKOLD,11/04/2024,189.18
"Communities, Customer & Commercial Services",Sport & Leisure,Supplies & Services,Provisions,BIKOLD,11/04/2024,320.14
"Communities, Customer & Commercial Services",Sport & Leisure,Supplies & Services,Provisions,BIKOLD,11/04/2024,288.70
"Communities, Customer & Commercial Services",Sport & Leisure,Supplies & Services,Provisions,BIKOLD,11/04/2024,191.17
"Communities, Customer & Commercial Services",Sport & Leisure,Supplies & Services,Provisions,BIKOLD,11/04/2024,398.47
"Communities, Customer & Commercial Services",Sport & Leisure,Supplies & Services,Provisions,BIKOLD,11/04/2024,576.51
"Communities, Customer & Commercial Services",Sport & Leisure,Supplies & Services,Provisions,BIKOLD,11/04/2024,217.57
"Communities, Customer & Commercial Services",Sport & Leisure,Supplies & Services,Provisions,BIKOLD,11/04/2024,150.96
"Communities, Customer & Commercial Services",Sport & Leisure,Supplies & Services,Provisions,BIKOLD,11/04/2024,154.81
"Communities, Customer & Commercial Services",Sport & Leisure,Supplies & Services,Provisions,BIKOLD,11/04/2024,211.88
"Communities, Customer & Commercial Services",Sport & Leisure,Supplies & Services,Provisions,BIKOLD,11/04/2024,448.72
"Communities, Customer & Commercial Services",Sport & Leisure,Supplies & Services,Provisions,BIKOLD,11/04/2024,255.67
"Communities, Customer & Commercial Services",Sport & Leisure,Supplies & Services,Provisions,BIKOLD,11/04/2024,196.29
"Communities, Customer & Commercial Services",Sport & Leisure,Supplies & Services,Provisions,BIKOLD,11/04/2024,148.86
"Communities, Customer & Commercial Services",Sport & Leisure,Supplies & Services,Provisions,BIKOLD,11/04/2024,528.85
"Communities, Customer & Commercial Services",Sport & Leisure,Supplies & Services,Provisions,BIKOLD,11/04/2024,160.00
"Communities, Customer & Commercial Services",Sport & Leisure,Supplies & Services,Provisions,BIKOLD,11/04/2024,340.43
"Communities, Customer & Commercial Services",Sport & Leisure,Supplies & Services,Provisions,BIKOLD,11/04/2024,667.67
"Communities, Customer & Commercial Services",Sport & Leisure,Supplies & Services,Provisions,BIKOLD,11/04/2024,592.92
"Communities, Customer & Commercial Services",Sport & Leisure,Supplies & Services,Provisions,BIKOLD,11/04/2024,137.14
"Communities, Customer & Commercial Services",Sport & Leisure,Supplies & Services,Provisions,BIKOLD,11/04/2024,344.67
"Communities, Customer & Commercial Services",Sport & Leisure,Supplies & Services,Provisions,BIKOLD,11/04/2024,477.14
"Communities, Customer & Commercial Services",Sport & Leisure,Supplies & Services,Provisions,BIKOLD,11/04/2024,239.36
"Communities, Customer & Commercial Services",Sport & Leisure,Supplies & Services,Provisions,BIKOLD,11/04/2024,137.16
"Communities, Customer & Commercial Services",Sport & Leisure,Supplies & Services,Provisions,BIKOLD,11/04/2024,109.71
"Communities, Customer & Commercial Services",Sport & Leisure,Supplies & Services,Provisions,BIKOLD,11/04/2024,174.71
"Communities, Customer & Commercial Services",Sport & Leisure,Supplies & Services,Provisions,BIKOLD,11/04/2024,127.22
"Communities, Customer & Commercial Services",Sport & Leisure,Supplies & Services,Provisions,BIKOLD,11/04/2024,245.52
"Communities, Customer & Commercial Services",Sport & Leisure,Supplies & Services,Provisions,BIKOLD,11/04/2024,330.27
"Communities, Customer & Commercial Services",Sport & Leisure,Supplies & Services,Provisions,BIKOLD,11/04/2024,139.48
"Communities, Customer & Commercial Services",Sport & Leisure,Supplies & Services,Provisions,BIKOLD,11/04/2024,185.12
"Communities, Customer & Commercial Services",Sport & Leisure,Supplies & Services,Provisions,BIKOLD,11/04/2024,442.97
"Communities, Customer & Commercial Services",Sport & Leisure,Supplies & Services,Provisions,BIKOLD,11/04/2024,120.74
"Communities, Customer & Commercial Services",Sport & Leisure,Supplies & Services,Provisions,BIKOLD,11/04/2024,247.57
"Communities, Customer & Commercial Services",Sport & Leisure,Supplies & Services,Provisions,BIKOLD,11/04/2024,142.13
"Communities, Customer & Commercial Services",Sport & Leisure,Supplies & Services,Provisions,BIKOLD,11/04/2024,217.90
"Communities, Customer & Commercial Services",Sport & Leisure,Supplies & Services,Provisions,BIKOLD,11/04/2024,445.72
"Communities, Customer & Commercial Services",Sport & Leisure,Supplies & Services,Provisions,BIKOLD,11/04/2024,384.18
"Communities, Customer & Commercial Services",Sport & Leisure,Supplies & Services,Provisions,BIKOLD,11/04/2024,137.77
"Communities, Customer & Commercial Services",Sport & Leisure,Supplies & Services,Provisions,BIKOLD,11/04/2024,502.50
"Communities, Customer & Commercial Services",Sport & Leisure,Supplies & Services,Provisions,BIKOLD,11/04/2024,189.37
"Communities, Customer & Commercial Services",Sport & Leisure,Supplies & Services,Provisions,BIKOLD,11/04/2024,648.47
"Communities, Customer & Commercial Services",Sport & Leisure,Supplies & Services,Provisions,BIKOLD,11/04/2024,141.71
"Communities, Customer & Commercial Services",Sport & Leisure,Supplies & Services,Provisions,BIKOLD,11/04/2024,132.48
"Communities, Customer & Commercial Services",Sport & Leisure,Supplies & Services,Provisions,BIKOLD,11/04/2024,157.75
"Communities, Customer & Commercial Services",Sport & Leisure,Supplies & Services,Provisions,BIKOLD,11/04/2024,187.00
"Communities, Customer & Commercial Services",Sport & Leisure,Supplies & Services,Provisions,BIKOLD,11/04/2024,455.87
"Communities, Customer & Commercial Services",Sport & Leisure,Supplies & Services,Provisions,BIKOLD,11/04/2024,115.40
"Communities, Customer & Commercial Services",Sport & Leisure,Supplies & Services,Provisions,BIKOLD,11/04/2024,404.68
"Communities, Customer & Commercial Services",Sport & Leisure,Supplies & Services,Provisions,BIKOLD,11/04/2024,441.60
"Communities, Customer & Commercial Services",Sport & Leisure,Supplies & Services,Provisions,BIKOLD,11/04/2024,161.03
"Communities, Customer & Commercial Services",Sport & Leisure,Supplies & Services,Provisions,BIKOLD,11/04/2024,107.97
"Communities, Customer & Commercial Services",Sport & Leisure,Supplies & Services,Provisions,BIKOLD,11/04/2024,183.13
"Communities, Customer & Commercial Services",Sport & Leisure,Supplies & Services,Provisions,BIKOLD,11/04/2024,205.41
"Communities, Customer & Commercial Services",Sport & Leisure,Supplies & Services,Provisions,BIKOLD,11/04/2024,206.60
"Communities, Customer & Commercial Services",Sport & Leisure,Supplies & Services,Provisions,BIKOLD,11/04/2024,111.77
"Communities, Customer & Commercial Services",Sport & Leisure,Supplies & Services,Provisions,BIKOLD,11/04/2024,252.12
"Communities, Customer & Commercial Services",Sport & Leisure,Supplies & Services,Provisions,BIKOLD,11/04/2024,209.81
"Communities, Customer & Commercial Services",Sport & Leisure,Supplies & Services,Provisions,BIKOLD,11/04/2024,155.54
"Communities, Customer & Commercial Services",Sport & Leisure,Supplies & Services,Provisions,BIKOLD,11/04/2024,383.19
"Communities, Customer & Commercial Services",Sport & Leisure,Supplies & Services,Provisions,BIKOLD,11/04/2024,421.56
"Communities, Customer & Commercial Services",Sport & Leisure,Supplies & Services,Provisions,BIKOLD,11/04/2024,379.32
"Communities, Customer & Commercial Services",Sport & Leisure,Supplies & Services,Provisions,BIKOLD,11/04/2024,192.68
"Communities, Customer & Commercial Services",Sport & Leisure,Supplies & Services,Provisions,BIKOLD,11/04/2024,398.07
"Communities, Customer & Commercial Services",Sport & Leisure,Supplies & Services,Provisions,BIKOLD,11/04/2024,538.39
"Communities, Customer & Commercial Services",Sport & Leisure,Supplies & Services,Provisions,BIKOLD,11/04/2024,142.00
"Communities, Customer & Commercial Services",Sport & Leisure,Supplies & Services,Provisions,BIKOLD,11/04/2024,520.12
"Communities, Customer & Commercial Services",Sport & Leisure,Supplies & Services,Provisions,BIKOLD,11/04/2024,176.43
"Communities, Customer & Commercial Services",Sport & Leisure,Supplies & Services,Provisions,BIKOLD,11/04/2024,200.40
"Communities, Customer & Commercial Services",Sport & Leisure,Supplies & Services,Provisions,BIKOLD,11/04/2024,211.51
"Communities, Customer & Commercial Services",Sport & Leisure,Supplies & Services,Provisions,BIKOLD,11/04/2024,203.73
"Communities, Customer & Commercial Services",Sport & Leisure,Supplies & Services,Provisions,BIKOLD,11/04/2024,144.09
"Communities, Customer & Commercial Services",Sport & Leisure,Supplies & Services,Provisions,BIKOLD,11/04/2024,268.05
"Communities, Customer & Commercial Services",Sport & Leisure,Supplies & Services,Provisions,BIKOLD,11/04/2024,172.78
"Communities, Customer & Commercial Services",Sport & Leisure,Supplies & Services,Provisions,BIKOLD,11/04/2024,196.96
"Communities, Customer & Commercial Services",Sport & Leisure,Supplies & Services,Provisions,BIKOLD,11/04/2024,498.11
"Communities, Customer & Commercial Services",Sport & Leisure,Supplies & Services,Provisions,BIKOLD,11/04/2024,525.59
"Communities, Customer & Commercial Services",Sport & Leisure,Supplies & Services,Provisions,BIKOLD,11/04/2024,140.33
"Communities, Customer & Commercial Services",Sport & Leisure,Supplies & Services,Provisions,BIKOLD,11/04/2024,345.53
"Communities, Customer & Commercial Services",Sport & Leisure,Supplies & Services,Provisions,BIKOLD,11/04/2024,116.68
"Communities, Customer & Commercial Services",Sport & Leisure,Supplies & Services,Provisions,BIKOLD,11/04/2024,210.80
"Communities, Customer & Commercial Services",Sport & Leisure,Supplies & Services,Provisions,BIKOLD,11/04/2024,206.17
"Communities, Customer & Commercial Services",Sport & Leisure,Supplies & Services,Provisions,BIKOLD,11/04/2024,163.39
"Communities, Customer & Commercial Services",Sport & Leisure,Supplies & Services,Provisions,BIKOLD,11/04/2024,170.44
"Communities, Customer & Commercial Services",Sport & Leisure,Supplies & Services,Provisions,BIKOLD,11/04/2024,116.60
"Communities, Customer & Commercial Services",Sport & Leisure,Supplies & Services,Provisions,BIKOLD,11/04/2024,330.56
"Communities, Customer & Commercial Services",Sport & Leisure,Supplies & Services,Provisions,BIKOLD,11/04/2024,107.53
"Communities, Customer & Commercial Services",Sport & Leisure,Supplies & Services,Provisions,BIKOLD,11/04/2024,612.80
"Communities, Customer & Commercial Services",Sport & Leisure,Supplies & Services,Provisions,BIKOLD,11/04/2024,522.20
"Communities, Customer & Commercial Services",Sport & Leisure,Supplies & Services,Provisions,BIKOLD,11/04/2024,274.51
"Communities, Customer & Commercial Services",Sport & Leisure,Supplies & Services,Provisions,BIKOLD,11/04/2024,103.13
"Communities, Customer & Commercial Services",Sport & Leisure,Supplies & Services,Provisions,BIKOLD,11/04/2024,429.39
"Communities, Customer & Commercial Services",Sport & Leisure,Supplies & Services,Provisions,BIKOLD,11/04/2024,171.13
"Communities, Customer & Commercial Services",Sport & Leisure,Supplies & Services,Provisions,BIKOLD,11/04/2024,532.86
"Communities, Customer & Commercial Services",Sport & Leisure,Supplies & Services,Provisions,BIKOLD,11/04/2024,142.03
"Communities, Customer & Commercial Services",Sport & Leisure,Supplies & Services,Provisions,BIKOLD,11/04/2024,307.03
"Communities, Customer & Commercial Services",Sport & Leisure,Supplies & Services,Provisions,BIKOLD,11/04/2024,504.23
"Communities, Customer & Commercial Services",Sport & Leisure,Supplies & Services,Provisions,BIKOLD,11/04/2024,884.04
"Communities, Customer & Commercial Services",Sport & Leisure,Supplies & Services,Provisions,BIKOLD,11/04/2024,271.51
"Communities, Customer & Commercial Services",Sport & Leisure,Supplies & Services,Provisions,BIKOLD,11/04/2024,341.56
"Communities, Customer & Commercial Services",Sport & Leisure,Supplies & Services,Provisions,BIKOLD,11/04/2024,161.48
"Communities, Customer & Commercial Services",Sport & Leisure,Supplies & Services,Provisions,ROWLANDS & COMPANY,15/04/2024,121.90
"Communities, Customer & Commercial Services",Sport & Leisure,Supplies & Services,Provisions,ROWLANDS & COMPANY,15/04/2024,121.30
"Communities, Customer & Commercial Services",Sport & Leisure,Supplies & Services,Provisions,ROWLANDS & COMPANY,15/04/2024,117.50
"Communities, Customer & Commercial Services",Sport & Leisure,Supplies & Services,Provisions,ROWLANDS & COMPANY,15/04/2024,149.28
"Communities, Customer & Commercial Services",Sport & Leisure,Supplies & Services,Provisions,ROWLANDS & COMPANY,15/04/2024,386.39
"Communities, Customer & Commercial Services",Sport & Leisure,Supplies & Services,Provisions,ROWLANDS & COMPANY,15/04/2024,-129.85
"Communities, Customer & Commercial Services",Sport & Leisure,Supplies & Services,Provisions,ROWLANDS & COMPANY,15/04/2024,174.31
"Communities, Customer & Commercial Services",Sport & Leisure,Supplies & Services,Provisions,ROWLANDS & COMPANY,15/04/2024,197.11
"Communities, Customer & Commercial Services",Sport & Leisure,Supplies & Services,Provisions,ROWLANDS & COMPANY,15/04/2024,169.66
"Communities, Customer & Commercial Services",Sport & Leisure,Supplies & Services,Provisions,ROWLANDS & COMPANY,15/04/2024,204.33
"Communities, Customer & Commercial Services",Sport & Leisure,Supplies & Services,Provisions,ROWLANDS & COMPANY,15/04/2024,110.33
"Communities, Customer & Commercial Services",Sport & Leisure,Supplies & Services,Provisions,ROWLANDS & COMPANY,15/04/2024,161.84
"Communities, Customer & Commercial Services",Sport & Leisure,Supplies & Services,Provisions,ROWLANDS & COMPANY,15/04/2024,136.94
"Communities, Customer & Commercial Services",Sport & Leisure,Supplies & Services,Provisions,ROWLANDS & COMPANY,15/04/2024,134.87
"Communities, Customer & Commercial Services",Sport & Leisure,Supplies & Services,Provisions,ROWLANDS & COMPANY,15/04/2024,115.08
"Communities, Customer & Commercial Services",Sport & Leisure,Supplies & Services,Provisions,ROWLANDS & COMPANY,15/04/2024,136.31
"Communities, Customer & Commercial Services",Sport & Leisure,Supplies & Services,Provisions,ROWLANDS & COMPANY,15/04/2024,137.64
"Communities, Customer & Commercial Services",Sport & Leisure,Supplies & Services,Provisions,ROWLANDS & COMPANY,15/04/2024,235.51
"Communities, Customer & Commercial Services",Sport & Leisure,Supplies & Services,Provisions,ROWLANDS & COMPANY,15/04/2024,117.80
"Communities, Customer & Commercial Services",Sport & Leisure,Supplies & Services,Provisions,ROWLANDS & COMPANY,15/04/2024,172.34
"Communities, Customer & Commercial Services",Sport & Leisure,Supplies & Services,Provisions,ROWLANDS & COMPANY,15/04/2024,102.39
"Communities, Customer & Commercial Services",Sport & Leisure,Supplies & Services,Provisions,ROWLANDS & COMPANY,15/04/2024,146.98
"Communities, Customer & Commercial Services",Sport & Leisure,Supplies & Services,Provisions,BIKOLD,09/04/2024,143.47
"Communities, Customer & Commercial Services",Sport & Leisure,Supplies & Services,Provisions,J S Catering Butchers,19/04/2024,-121.50
"Communities, Customer & Commercial Services",Sport & Leisure,Supplies & Services,Provisions,PASTA KING (UK) LIMITED,17/04/2024,150.24
"Communities, Customer & Commercial Services",Sport & Leisure,Supplies & Services,Provisions,J S Catering Butchers,19/04/2024,121.50
"Communities, Customer & Commercial Services",Sport & Leisure,Supplies & Services,Provisions,J S Catering Butchers,19/04/2024,282.18
"Communities, Customer & Commercial Services",Sport & Leisure,Supplies & Services,Provisions,J S Catering Butchers,19/04/2024,102.74
"Communities, Customer & Commercial Services",Sport & Leisure,Supplies & Services,Provisions,J S Catering Butchers,19/04/2024,110.32
"Communities, Customer & Commercial Services",Sport & Leisure,Supplies & Services,Provisions,J S Catering Butchers,19/04/2024,121.50
"Communities, Customer & Commercial Services",Sport & Leisure,Supplies & Services,Provisions,J S Catering Butchers,19/04/2024,284.33
"Communities, Customer & Commercial Services",Sport & Leisure,Supplies & Services,Provisions,J S Catering Butchers,19/04/2024,104.93
"Communities, Customer & Commercial Services",Sport & Leisure,Supplies & Services,Provisions,BIKOLD,18/04/2024,335.74
"Communities, Customer & Commercial Services",Sport & Leisure,Supplies & Services,Provisions,BIKOLD,18/04/2024,173.24
"Communities, Customer & Commercial Services",Sport & Leisure,Supplies & Services,Provisions,BIKOLD,18/04/2024,107.84
"Communities, Customer & Commercial Services",Sport & Leisure,Supplies & Services,Provisions,BIKOLD,18/04/2024,215.23
"Communities, Customer & Commercial Services",Sport & Leisure,Supplies & Services,Provisions,BIKOLD,18/04/2024,220.66
"Communities, Customer & Commercial Services",Sport & Leisure,Supplies & Services,Provisions,BIKOLD,18/04/2024,259.65
"Communities, Customer & Commercial Services",Sport & Leisure,Supplies & Services,Provisions,BIKOLD,18/04/2024,154.39
"Communities, Customer & Commercial Services",Sport & Leisure,Supplies & Services,Provisions,BIKOLD,18/04/2024,101.66
"Communities, Customer & Commercial Services",Sport & Leisure,Supplies & Services,Provisions,BIKOLD,18/04/2024,179.06
"Communities, Customer & Commercial Services",Sport & Leisure,Supplies & Services,Provisions,BIKOLD,18/04/2024,324.73
"Communities, Customer & Commercial Services",Sport & Leisure,Supplies & Services,Provisions,BIKOLD,18/04/2024,530.11
"Communities, Customer & Commercial Services",Sport & Leisure,Supplies & Services,Provisions,BIKOLD,18/04/2024,264.66
"Communities, Customer & Commercial Services",Sport & Leisure,Supplies & Services,Provisions,BIKOLD,18/04/2024,169.75
"Communities, Customer & Commercial Services",Sport & Leisure,Supplies & Services,Provisions,BIKOLD,18/04/2024,171.43
"Communities, Customer & Commercial Services",Sport & Leisure,Supplies & Services,Provisions,BIKOLD,18/04/2024,165.98
"Communities, Customer & Commercial Services",Sport & Leisure,Supplies & Services,Provisions,BIKOLD,18/04/2024,113.11
"Communities, Customer & Commercial Services",Sport & Leisure,Supplies & Services,Provisions,BIKOLD,18/04/2024,115.22
"Communities, Customer & Commercial Services",Sport & Leisure,Supplies & Services,Provisions,BIKOLD,18/04/2024,145.26
"Communities, Customer & Commercial Services",Sport & Leisure,Supplies & Services,Provisions,BIKOLD,18/04/2024,150.41
"Communities, Customer & Commercial Services",Sport & Leisure,Supplies & Services,Provisions,BIKOLD,18/04/2024,117.16
"Communities, Customer & Commercial Services",Sport & Leisure,Supplies & Services,Provisions,BIKOLD,18/04/2024,130.49
"Communities, Customer & Commercial Services",Sport & Leisure,Supplies & Services,Provisions,BIKOLD,18/04/2024,455.06
"Communities, Customer & Commercial Services",Sport & Leisure,Supplies & Services,Provisions,BIKOLD,18/04/2024,422.73
"Communities, Customer & Commercial Services",Sport & Leisure,Supplies & Services,Provisions,BIKOLD,18/04/2024,382.23
"Communities, Customer & Commercial Services",Sport & Leisure,Supplies & Services,Provisions,BIKOLD,18/04/2024,297.02
"Communities, Customer & Commercial Services",Sport & Leisure,Supplies & Services,Provisions,BIKOLD,18/04/2024,232.79
"Communities, Customer & Commercial Services",Sport & Leisure,Supplies & Services,Provisions,BIKOLD,18/04/2024,620.01
"Communities, Customer & Commercial Services",Sport & Leisure,Supplies & Services,Provisions,BIKOLD,18/04/2024,421.79
"Communities, Customer & Commercial Services",Sport & Leisure,Supplies & Services,Provisions,BIKOLD,18/04/2024,230.60
"Communities, Customer & Commercial Services",Sport & Leisure,Supplies & Services,Provisions,BIKOLD,18/04/2024,263.02
"Communities, Customer & Commercial Services",Sport & Leisure,Supplies & Services,Provisions,BIKOLD,18/04/2024,408.88
"Communities, Customer & Commercial Services",Sport & Leisure,Supplies & Services,Provisions,BIKOLD,18/04/2024,150.00
"Communities, Customer & Commercial Services",Sport & Leisure,Supplies & Services,Provisions,BIKOLD,18/04/2024,338.47
"Communities, Customer & Commercial Services",Sport & Leisure,Supplies & Services,Provisions,BIKOLD,18/04/2024,416.98
"Communities, Customer & Commercial Services",Sport & Leisure,Supplies & Services,Provisions,BIKOLD,18/04/2024,162.79
"Communities, Customer & Commercial Services",Sport & Leisure,Supplies & Services,Provisions,BIKOLD,18/04/2024,142.56
"Communities, Customer & Commercial Services",Sport & Leisure,Supplies & Services,Provisions,BIKOLD,18/04/2024,219.19
"Communities, Customer & Commercial Services",Sport & Leisure,Supplies & Services,Provisions,BIKOLD,18/04/2024,281.05
"Communities, Customer & Commercial Services",Sport & Leisure,Supplies & Services,Provisions,BIKOLD,18/04/2024,119.15
"Communities, Customer & Commercial Services",Sport & Leisure,Supplies & Services,Provisions,BIKOLD,18/04/2024,120.34
"Communities, Customer & Commercial Services",Sport & Leisure,Supplies & Services,Provisions,BIKOLD,18/04/2024,394.54
"Communities, Customer & Commercial Services",Sport & Leisure,Supplies & Services,Provisions,BIKOLD,18/04/2024,151.02
"Communities, Customer & Commercial Services",Sport & Leisure,Supplies & Services,Provisions,BIKOLD,18/04/2024,440.98
"Communities, Customer & Commercial Services",Sport & Leisure,Supplies & Services,Provisions,BIKOLD,18/04/2024,343.70
"Communities, Customer & Commercial Services",Sport & Leisure,Supplies & Services,Provisions,BIKOLD,18/04/2024,252.32
"Communities, Customer & Commercial Services",Sport & Leisure,Supplies & Services,Provisions,BIKOLD,18/04/2024,114.42
"Communities, Customer & Commercial Services",Sport & Leisure,Supplies & Services,Provisions,BIKOLD,18/04/2024,273.29
"Communities, Customer & Commercial Services",Sport & Leisure,Supplies & Services,Provisions,BIKOLD,18/04/2024,135.68
"Communities, Customer & Commercial Services",Sport & Leisure,Supplies & Services,Provisions,BIKOLD,18/04/2024,223.72
"Communities, Customer & Commercial Services",Sport & Leisure,Supplies & Services,Provisions,BIKOLD,18/04/2024,231.34
"Communities, Customer & Commercial Services",Sport & Leisure,Supplies & Services,Provisions,BIKOLD,18/04/2024,129.26
"Communities, Customer & Commercial Services",Sport & Leisure,Supplies & Services,Provisions,BIKOLD,18/04/2024,324.04
"Communities, Customer & Commercial Services",Sport & Leisure,Supplies & Services,Provisions,BIKOLD,18/04/2024,354.55
"Communities, Customer & Commercial Services",Sport & Leisure,Supplies & Services,Provisions,BIKOLD,18/04/2024,168.78
"Communities, Customer & Commercial Services",Sport & Leisure,Supplies & Services,Provisions,BIKOLD,18/04/2024,434.36
"Communities, Customer & Commercial Services",Sport & Leisure,Supplies & Services,Provisions,BIKOLD,18/04/2024,367.96
"Communities, Customer & Commercial Services",Sport & Leisure,Supplies & Services,Provisions,BIKOLD,18/04/2024,149.99
"Communities, Customer & Commercial Services",Sport & Leisure,Supplies & Services,Provisions,BIKOLD,18/04/2024,330.84
"Communities, Customer & Commercial Services",Sport & Leisure,Supplies & Services,Provisions,BIKOLD,18/04/2024,148.55
"Communities, Customer & Commercial Services",Sport & Leisure,Supplies & Services,Provisions,BIKOLD,18/04/2024,110.38
"Communities, Customer & Commercial Services",Sport & Leisure,Supplies & Services,Provisions,BIKOLD,18/04/2024,124.34
"Communities, Customer & Commercial Services",Sport & Leisure,Supplies & Services,Provisions,BIKOLD,18/04/2024,123.48
"Communities, Customer & Commercial Services",Sport & Leisure,Supplies & Services,Provisions,BIKOLD,18/04/2024,193.16
"Communities, Customer & Commercial Services",Sport & Leisure,Supplies & Services,Provisions,BIKOLD,18/04/2024,208.73
"Communities, Customer & Commercial Services",Sport & Leisure,Supplies & Services,Provisions,BIKOLD,18/04/2024,242.49
"Communities, Customer & Commercial Services",Sport & Leisure,Supplies & Services,Provisions,BIKOLD,18/04/2024,202.29
"Communities, Customer & Commercial Services",Sport & Leisure,Supplies & Services,Provisions,BIKOLD,18/04/2024,119.05
"Communities, Customer & Commercial Services",Sport & Leisure,Supplies & Services,Provisions,BIKOLD,18/04/2024,563.89
"Communities, Customer & Commercial Services",Sport & Leisure,Supplies & Services,Provisions,BIKOLD,18/04/2024,559.63
"Communities, Customer & Commercial Services",Sport & Leisure,Supplies & Services,Provisions,BIKOLD,18/04/2024,230.62
"Communities, Customer & Commercial Services",Sport & Leisure,Supplies & Services,Provisions,BIKOLD,18/04/2024,191.12
"Communities, Customer & Commercial Services",Sport & Leisure,Supplies & Services,Provisions,BIKOLD,18/04/2024,331.80
"Communities, Customer & Commercial Services",Sport & Leisure,Supplies & Services,Provisions,BIKOLD,18/04/2024,227.41
"Communities, Customer & Commercial Services",Sport & Leisure,Supplies & Services,Provisions,BIKOLD,18/04/2024,109.05
"Communities, Customer & Commercial Services",Sport & Leisure,Supplies & Services,Provisions,BIKOLD,18/04/2024,427.63
"Communities, Customer & Commercial Services",Sport & Leisure,Supplies & Services,Provisions,BIKOLD,18/04/2024,101.30
"Communities, Customer & Commercial Services",Sport & Leisure,Supplies & Services,Provisions,BIKOLD,18/04/2024,373.31
"Communities, Customer & Commercial Services",Sport & Leisure,Supplies & Services,Provisions,BIKOLD,18/04/2024,159.28
"Communities, Customer & Commercial Services",Sport & Leisure,Supplies & Services,Provisions,BIKOLD,18/04/2024,303.64
"Communities, Customer & Commercial Services",Sport & Leisure,Supplies & Services,Provisions,BIKOLD,18/04/2024,263.72
"Communities, Customer & Commercial Services",Sport & Leisure,Supplies & Services,Provisions,BIKOLD,18/04/2024,333.08
"Communities, Customer & Commercial Services",Sport & Leisure,Supplies & Services,Provisions,BIKOLD,18/04/2024,118.63
"Communities, Customer & Commercial Services",Sport & Leisure,Supplies & Services,Provisions,BIKOLD,18/04/2024,165.27
"Communities, Customer & Commercial Services",Sport & Leisure,Supplies & Services,Provisions,BIKOLD,18/04/2024,373.40
"Communities, Customer & Commercial Services",Sport & Leisure,Supplies & Services,Provisions,BIKOLD,18/04/2024,258.60
"Communities, Customer & Commercial Services",Sport & Leisure,Supplies & Services,Provisions,BIKOLD,18/04/2024,113.44
"Communities, Customer & Commercial Services",Sport & Leisure,Supplies & Services,Provisions,BIKOLD,18/04/2024,157.50
"Communities, Customer & Commercial Services",Sport & Leisure,Supplies & Services,Provisions,BIKOLD,18/04/2024,131.62
"Communities, Customer & Commercial Services",Sport & Leisure,Supplies & Services,Provisions,BIKOLD,18/04/2024,161.51
"Communities, Customer & Commercial Services",Sport & Leisure,Supplies & Services,Provisions,BIKOLD,18/04/2024,399.85
"Communities, Customer & Commercial Services",Sport & Leisure,Supplies & Services,Provisions,BIKOLD,18/04/2024,105.34
"Communities, Customer & Commercial Services",Sport & Leisure,Supplies & Services,Provisions,BIKOLD,18/04/2024,128.21
"Communities, Customer & Commercial Services",Sport & Leisure,Supplies & Services,Provisions,BIKOLD,18/04/2024,676.18
"Communities, Customer & Commercial Services",Sport & Leisure,Supplies & Services,Provisions,BIKOLD,18/04/2024,422.37
"Communities, Customer & Commercial Services",Sport & Leisure,Supplies & Services,Provisions,BIKOLD,18/04/2024,244.07
"Communities, Customer & Commercial Services",Sport & Leisure,Supplies & Services,Provisions,BIKOLD,18/04/2024,250.92
"Communities, Customer & Commercial Services",Sport & Leisure,Supplies & Services,Provisions,BIKOLD,18/04/2024,109.60
"Communities, Customer & Commercial Services",Sport & Leisure,Supplies & Services,Provisions,BIKOLD,18/04/2024,134.95
"Communities, Customer & Commercial Services",Sport & Leisure,Supplies & Services,Provisions,BIKOLD,18/04/2024,289.84
"Communities, Customer & Commercial Services",Sport & Leisure,Supplies & Services,Provisions,BIKOLD,18/04/2024,203.60
"Communities, Customer & Commercial Services",Sport & Leisure,Supplies & Services,Provisions,BIKOLD,18/04/2024,187.42
"Communities, Customer & Commercial Services",Sport & Leisure,Supplies & Services,Provisions,BIKOLD,18/04/2024,476.81
"Communities, Customer & Commercial Services",Sport & Leisure,Supplies & Services,Provisions,BIKOLD,18/04/2024,373.77
"Communities, Customer & Commercial Services",Sport & Leisure,Supplies & Services,Provisions,BIKOLD,18/04/2024,165.06
"Communities, Customer & Commercial Services",Sport & Leisure,Supplies & Services,Provisions,BIKOLD,18/04/2024,375.77
"Communities, Customer & Commercial Services",Sport & Leisure,Supplies & Services,Provisions,BIKOLD,18/04/2024,847.40
"Communities, Customer & Commercial Services",Sport & Leisure,Supplies & Services,Provisions,BIKOLD,18/04/2024,239.48
"Communities, Customer & Commercial Services",Sport & Leisure,Supplies & Services,Provisions,BIKOLD,18/04/2024,377.06
"Communities, Customer & Commercial Services",Sport & Leisure,Supplies & Services,Provisions,BIKOLD,18/04/2024,232.63
"Communities, Customer & Commercial Services",Sport & Leisure,Supplies & Services,Provisions,BIKOLD,18/04/2024,117.63
"Communities, Customer & Commercial Services",Sport & Leisure,Supplies & Services,Provisions,BIKOLD,18/04/2024,110.19
"Communities, Customer & Commercial Services",Sport & Leisure,Supplies & Services,Provisions,BIKOLD,18/04/2024,379.08
"Communities, Customer & Commercial Services",Sport & Leisure,Supplies & Services,Provisions,BIKOLD,18/04/2024,359.72
"Communities, Customer & Commercial Services",Sport & Leisure,Supplies & Services,Provisions,BIKOLD,18/04/2024,226.52
"Communities, Customer & Commercial Services",Sport & Leisure,Supplies & Services,Provisions,BIKOLD,18/04/2024,117.72
"Communities, Customer & Commercial Services",Sport & Leisure,Supplies & Services,Provisions,BIKOLD,18/04/2024,419.11
"Communities, Customer & Commercial Services",Sport & Leisure,Supplies & Services,Provisions,BIKOLD,18/04/2024,123.61
"Communities, Customer & Commercial Services",Sport & Leisure,Supplies & Services,Provisions,BIKOLD,18/04/2024,177.33
"Communities, Customer & Commercial Services",Sport & Leisure,Supplies & Services,Provisions,BIKOLD,18/04/2024,133.36
"Communities, Customer & Commercial Services",Sport & Leisure,Supplies & Services,Provisions,BIKOLD,18/04/2024,436.55
"Communities, Customer & Commercial Services",Sport & Leisure,Supplies & Services,Provisions,BIKOLD,18/04/2024,323.61
"Communities, Customer & Commercial Services",Sport & Leisure,Supplies & Services,Provisions,BIKOLD,18/04/2024,243.58
"Communities, Customer & Commercial Services",Sport & Leisure,Supplies & Services,Provisions,BIKOLD,18/04/2024,121.29
"Communities, Customer & Commercial Services",Sport & Leisure,Supplies & Services,Provisions,BIKOLD,18/04/2024,166.31
"Communities, Customer & Commercial Services",Sport & Leisure,Supplies & Services,Provisions,BIKOLD,18/04/2024,207.30
"Communities, Customer & Commercial Services",Sport & Leisure,Supplies & Services,Provisions,BIKOLD,18/04/2024,442.14
"Communities, Customer & Commercial Services",Sport & Leisure,Supplies & Services,Provisions,BIKOLD,18/04/2024,147.75
"Communities, Customer & Commercial Services",Sport & Leisure,Supplies & Services,Provisions,On A Roll,18/04/2024,226.45
"Communities, Customer & Commercial Services",Sport & Leisure,Supplies & Services,Provisions,BIKOLD,25/04/2024,135.89
"Communities, Customer & Commercial Services",Sport & Leisure,Supplies & Services,Provisions,BIKOLD,25/04/2024,555.58
"Communities, Customer & Commercial Services",Sport & Leisure,Supplies & Services,Provisions,BIKOLD,25/04/2024,233.76
"Communities, Customer & Commercial Services",Sport & Leisure,Supplies & Services,Provisions,BIKOLD,25/04/2024,233.85
"Communities, Customer & Commercial Services",Sport & Leisure,Supplies & Services,Provisions,BIKOLD,25/04/2024,325.58
"Communities, Customer & Commercial Services",Sport & Leisure,Supplies & Services,Provisions,BIKOLD,25/04/2024,276.18
"Communities, Customer & Commercial Services",Sport & Leisure,Supplies & Services,Provisions,BIKOLD,25/04/2024,265.16
"Communities, Customer & Commercial Services",Sport & Leisure,Supplies & Services,Provisions,BIKOLD,25/04/2024,354.45
"Communities, Customer & Commercial Services",Sport & Leisure,Supplies & Services,Provisions,BIKOLD,25/04/2024,117.33
"Communities, Customer & Commercial Services",Sport & Leisure,Supplies & Services,Provisions,BIKOLD,25/04/2024,101.06
"Communities, Customer & Commercial Services",Sport & Leisure,Supplies & Services,Provisions,BIKOLD,25/04/2024,205.08
"Communities, Customer & Commercial Services",Sport & Leisure,Supplies & Services,Provisions,BIKOLD,25/04/2024,308.05
"Communities, Customer & Commercial Services",Sport & Leisure,Supplies & Services,Provisions,BIKOLD,25/04/2024,291.80
"Communities, Customer & Commercial Services",Sport & Leisure,Supplies & Services,Provisions,BIKOLD,25/04/2024,377.38
"Communities, Customer & Commercial Services",Sport & Leisure,Supplies & Services,Provisions,BIKOLD,25/04/2024,217.07
"Communities, Customer & Commercial Services",Sport & Leisure,Supplies & Services,Provisions,BIKOLD,25/04/2024,209.16
"Communities, Customer & Commercial Services",Sport & Leisure,Supplies & Services,Provisions,BIKOLD,25/04/2024,733.16
"Communities, Customer & Commercial Services",Sport & Leisure,Supplies & Services,Provisions,BIKOLD,25/04/2024,235.08
"Communities, Customer & Commercial Services",Sport & Leisure,Supplies & Services,Provisions,BIKOLD,25/04/2024,281.77
"Communities, Customer & Commercial Services",Sport & Leisure,Supplies & Services,Provisions,BIKOLD,25/04/2024,144.68
"Communities, Customer & Commercial Services",Sport & Leisure,Supplies & Services,Provisions,BIKOLD,25/04/2024,166.34
"Communities, Customer & Commercial Services",Sport & Leisure,Supplies & Services,Provisions,BIKOLD,25/04/2024,135.03
"Communities, Customer & Commercial Services",Sport & Leisure,Supplies & Services,Provisions,BIKOLD,25/04/2024,335.74
"Communities, Customer & Commercial Services",Sport & Leisure,Supplies & Services,Provisions,BIKOLD,25/04/2024,117.29
"Communities, Customer & Commercial Services",Sport & Leisure,Supplies & Services,Provisions,BIKOLD,25/04/2024,646.17
"Communities, Customer & Commercial Services",Sport & Leisure,Supplies & Services,Provisions,BIKOLD,25/04/2024,165.31
"Communities, Customer & Commercial Services",Sport & Leisure,Supplies & Services,Provisions,BIKOLD,25/04/2024,287.29
"Communities, Customer & Commercial Services",Sport & Leisure,Supplies & Services,Provisions,BIKOLD,25/04/2024,489.87
"Communities, Customer & Commercial Services",Sport & Leisure,Supplies & Services,Provisions,BIKOLD,25/04/2024,414.62
"Communities, Customer & Commercial Services",Sport & Leisure,Supplies & Services,Provisions,BIKOLD,25/04/2024,124.52
"Communities, Customer & Commercial Services",Sport & Leisure,Supplies & Services,Provisions,BIKOLD,25/04/2024,106.50
"Communities, Customer & Commercial Services",Sport & Leisure,Supplies & Services,Provisions,BIKOLD,25/04/2024,622.47
"Communities, Customer & Commercial Services",Sport & Leisure,Supplies & Services,Provisions,BIKOLD,25/04/2024,594.38
"Communities, Customer & Commercial Services",Sport & Leisure,Supplies & Services,Provisions,BIKOLD,25/04/2024,112.36
"Communities, Customer & Commercial Services",Sport & Leisure,Supplies & Services,Provisions,BIKOLD,25/04/2024,187.36
"Communities, Customer & Commercial Services",Sport & Leisure,Supplies & Services,Provisions,BIKOLD,25/04/2024,102.41
"Communities, Customer & Commercial Services",Sport & Leisure,Supplies & Services,Provisions,BIKOLD,25/04/2024,101.96
"Communities, Customer & Commercial Services",Sport & Leisure,Supplies & Services,Provisions,BIKOLD,25/04/2024,106.30
"Communities, Customer & Commercial Services",Sport & Leisure,Supplies & Services,Provisions,BIKOLD,25/04/2024,101.47
"Communities, Customer & Commercial Services",Sport & Leisure,Supplies & Services,Provisions,BIKOLD,25/04/2024,650.01
"Communities, Customer & Commercial Services",Sport & Leisure,Supplies & Services,Provisions,BIKOLD,25/04/2024,251.18
"Communities, Customer & Commercial Services",Sport & Leisure,Supplies & Services,Provisions,BIKOLD,25/04/2024,193.37
"Communities, Customer & Commercial Services",Sport & Leisure,Supplies & Services,Provisions,BIKOLD,25/04/2024,466.49
"Communities, Customer & Commercial Services",Sport & Leisure,Supplies & Services,Provisions,BIKOLD,25/04/2024,465.18
"Communities, Customer & Commercial Services",Sport & Leisure,Supplies & Services,Provisions,BIKOLD,25/04/2024,123.60
"Communities, Customer & Commercial Services",Sport & Leisure,Supplies & Services,Provisions,BIKOLD,25/04/2024,147.08
"Communities, Customer & Commercial Services",Sport & Leisure,Supplies & Services,Provisions,BIKOLD,25/04/2024,172.33
"Communities, Customer & Commercial Services",Sport & Leisure,Supplies & Services,Provisions,BIKOLD,25/04/2024,232.99
"Communities, Customer & Commercial Services",Sport & Leisure,Supplies & Services,Provisions,BIKOLD,25/04/2024,154.91
"Communities, Customer & Commercial Services",Sport & Leisure,Supplies & Services,Provisions,BIKOLD,25/04/2024,102.27
"Communities, Customer & Commercial Services",Sport & Leisure,Supplies & Services,Provisions,BIKOLD,25/04/2024,379.42
"Communities, Customer & Commercial Services",Sport & Leisure,Supplies & Services,Provisions,BIKOLD,25/04/2024,125.17
"Communities, Customer & Commercial Services",Sport & Leisure,Supplies & Services,Provisions,BIKOLD,25/04/2024,223.33
"Communities, Customer & Commercial Services",Sport & Leisure,Supplies & Services,Provisions,BIKOLD,25/04/2024,150.74
"Communities, Customer & Commercial Services",Sport & Leisure,Supplies & Services,Provisions,BIKOLD,25/04/2024,697.77
"Communities, Customer & Commercial Services",Sport & Leisure,Supplies & Services,Provisions,BIKOLD,25/04/2024,359.37
"Communities, Customer & Commercial Services",Sport & Leisure,Supplies & Services,Provisions,BIKOLD,25/04/2024,329.06
"Communities, Customer & Commercial Services",Sport & Leisure,Supplies & Services,Provisions,BIKOLD,25/04/2024,135.21
"Communities, Customer & Commercial Services",Sport & Leisure,Supplies & Services,Provisions,BIKOLD,25/04/2024,341.91
"Communities, Customer & Commercial Services",Sport & Leisure,Supplies & Services,Provisions,BIKOLD,25/04/2024,258.35
"Communities, Customer & Commercial Services",Sport & Leisure,Supplies & Services,Provisions,BIKOLD,25/04/2024,480.05
"Communities, Customer & Commercial Services",Sport & Leisure,Supplies & Services,Provisions,BIKOLD,25/04/2024,117.83
"Communities, Customer & Commercial Services",Sport & Leisure,Supplies & Services,Provisions,BIKOLD,25/04/2024,155.71
"Communities, Customer & Commercial Services",Sport & Leisure,Supplies & Services,Provisions,BIKOLD,25/04/2024,225.24
"Communities, Customer & Commercial Services",Sport & Leisure,Supplies & Services,Provisions,BIKOLD,25/04/2024,106.14
"Communities, Customer & Commercial Services",Sport & Leisure,Supplies & Services,Provisions,BIKOLD,25/04/2024,238.53
"Communities, Customer & Commercial Services",Sport & Leisure,Supplies & Services,Provisions,BIKOLD,25/04/2024,618.36
"Communities, Customer & Commercial Services",Sport & Leisure,Supplies & Services,Provisions,BIKOLD,25/04/2024,125.44
"Communities, Customer & Commercial Services",Sport & Leisure,Supplies & Services,Provisions,BIKOLD,25/04/2024,408.05
"Communities, Customer & Commercial Services",Sport & Leisure,Supplies & Services,Provisions,BIKOLD,25/04/2024,310.79
"Communities, Customer & Commercial Services",Sport & Leisure,Supplies & Services,Provisions,BIKOLD,25/04/2024,328.63
"Communities, Customer & Commercial Services",Sport & Leisure,Supplies & Services,Provisions,BIKOLD,25/04/2024,155.67
"Communities, Customer & Commercial Services",Sport & Leisure,Supplies & Services,Provisions,BIKOLD,25/04/2024,457.30
"Communities, Customer & Commercial Services",Sport & Leisure,Supplies & Services,Provisions,BIKOLD,25/04/2024,147.81
"Communities, Customer & Commercial Services",Sport & Leisure,Supplies & Services,Provisions,BIKOLD,25/04/2024,358.78
"Communities, Customer & Commercial Services",Sport & Leisure,Supplies & Services,Provisions,BIKOLD,25/04/2024,222.13
"Communities, Customer & Commercial Services",Sport & Leisure,Supplies & Services,Provisions,BIKOLD,25/04/2024,283.06
"Communities, Customer & Commercial Services",Sport & Leisure,Supplies & Services,Provisions,BIKOLD,25/04/2024,100.36
"Communities, Customer & Commercial Services",Sport & Leisure,Supplies & Services,Provisions,BIKOLD,25/04/2024,229.87
"Communities, Customer & Commercial Services",Sport & Leisure,Supplies & Services,Provisions,BIKOLD,25/04/2024,448.91
"Communities, Customer & Commercial Services",Sport & Leisure,Supplies & Services,Provisions,BIKOLD,25/04/2024,100.30
"Communities, Customer & Commercial Services",Sport & Leisure,Supplies & Services,Provisions,BIKOLD,25/04/2024,201.35
"Communities, Customer & Commercial Services",Sport & Leisure,Supplies & Services,Provisions,BIKOLD,25/04/2024,144.73
"Communities, Customer & Commercial Services",Sport & Leisure,Supplies & Services,Provisions,BIKOLD,25/04/2024,176.55
"Communities, Customer & Commercial Services",Sport & Leisure,Supplies & Services,Provisions,BIKOLD,25/04/2024,398.47
"Communities, Customer & Commercial Services",Sport & Leisure,Supplies & Services,Provisions,BIKOLD,25/04/2024,446.62
"Communities, Customer & Commercial Services",Sport & Leisure,Supplies & Services,Provisions,BIKOLD,25/04/2024,321.83
"Communities, Customer & Commercial Services",Sport & Leisure,Supplies & Services,Provisions,BIKOLD,25/04/2024,395.11
"Communities, Customer & Commercial Services",Sport & Leisure,Supplies & Services,Provisions,BIKOLD,25/04/2024,263.57
"Communities, Customer & Commercial Services",Sport & Leisure,Supplies & Services,Provisions,BIKOLD,25/04/2024,158.25
"Communities, Customer & Commercial Services",Sport & Leisure,Supplies & Services,Provisions,BIKOLD,25/04/2024,130.93
"Communities, Customer & Commercial Services",Sport & Leisure,Supplies & Services,Provisions,BIKOLD,25/04/2024,117.02
"Communities, Customer & Commercial Services",Sport & Leisure,Supplies & Services,Provisions,BIKOLD,25/04/2024,339.92
"Communities, Customer & Commercial Services",Sport & Leisure,Supplies & Services,Provisions,BIKOLD,25/04/2024,366.32
"Communities, Customer & Commercial Services",Sport & Leisure,Supplies & Services,Provisions,BIKOLD,25/04/2024,309.45
"Communities, Customer & Commercial Services",Sport & Leisure,Supplies & Services,Provisions,BIKOLD,25/04/2024,348.84
"Communities, Customer & Commercial Services",Sport & Leisure,Supplies & Services,Provisions,BIKOLD,25/04/2024,323.82
"Communities, Customer & Commercial Services",Sport & Leisure,Supplies & Services,Provisions,BIKOLD,25/04/2024,285.14
"Communities, Customer & Commercial Services",Sport & Leisure,Supplies & Services,Provisions,BIKOLD,25/04/2024,158.67
"Communities, Customer & Commercial Services",Sport & Leisure,Supplies & Services,Provisions,BIKOLD,25/04/2024,450.11
"Communities, Customer & Commercial Services",Sport & Leisure,Supplies & Services,Provisions,BIKOLD,25/04/2024,134.09
"Communities, Customer & Commercial Services",Sport & Leisure,Supplies & Services,Provisions,BIKOLD,25/04/2024,245.28
"Communities, Customer & Commercial Services",Sport & Leisure,Supplies & Services,Provisions,BIKOLD,25/04/2024,180.51
"Communities, Customer & Commercial Services",Sport & Leisure,Supplies & Services,Provisions,BIKOLD,25/04/2024,402.30
"Communities, Customer & Commercial Services",Sport & Leisure,Supplies & Services,Provisions,BIKOLD,25/04/2024,170.15
"Communities, Customer & Commercial Services",Sport & Leisure,Supplies & Services,Provisions,BIKOLD,25/04/2024,202.27
"Communities, Customer & Commercial Services",Sport & Leisure,Supplies & Services,Provisions,BIKOLD,25/04/2024,266.96
"Communities, Customer & Commercial Services",Sport & Leisure,Supplies & Services,Provisions,BIKOLD,25/04/2024,118.95
"Communities, Customer & Commercial Services",Sport & Leisure,Supplies & Services,Provisions,BIKOLD,25/04/2024,183.44
"Communities, Customer & Commercial Services",Sport & Leisure,Supplies & Services,Provisions,BIKOLD,25/04/2024,102.32
"Communities, Customer & Commercial Services",Sport & Leisure,Supplies & Services,Provisions,BIKOLD,25/04/2024,112.61
"Communities, Customer & Commercial Services",Sport & Leisure,Supplies & Services,Provisions,BIKOLD,25/04/2024,115.52
"Communities, Customer & Commercial Services",Sport & Leisure,Supplies & Services,Provisions,BIKOLD,25/04/2024,167.80
"Communities, Customer & Commercial Services",Sport & Leisure,Supplies & Services,Provisions,BIKOLD,25/04/2024,124.43
"Communities, Customer & Commercial Services",Sport & Leisure,Supplies & Services,Provisions,BIKOLD,25/04/2024,115.81
"Communities, Customer & Commercial Services",Sport & Leisure,Supplies & Services,Provisions,ROWLANDS & COMPANY,22/04/2024,105.84
"Communities, Customer & Commercial Services",Sport & Leisure,Supplies & Services,Provisions,ROWLANDS & COMPANY,22/04/2024,117.90
"Communities, Customer & Commercial Services",Sport & Leisure,Supplies & Services,Provisions,ROWLANDS & COMPANY,22/04/2024,116.20
"Communities, Customer & Commercial Services",Sport & Leisure,Supplies & Services,Provisions,ROWLANDS & COMPANY,22/04/2024,132.60
"Communities, Customer & Commercial Services",Sport & Leisure,Supplies & Services,Provisions,ROWLANDS & COMPANY,22/04/2024,110.70
"Communities, Customer & Commercial Services",Sport & Leisure,Supplies & Services,Provisions,ROWLANDS & COMPANY,22/04/2024,166.97
"Communities, Customer & Commercial Services",Sport & Leisure,Supplies & Services,Provisions,ROWLANDS & COMPANY,22/04/2024,147.56
"Communities, Customer & Commercial Services",Sport & Leisure,Supplies & Services,Provisions,ROWLANDS & COMPANY,22/04/2024,158.75
"Communities, Customer & Commercial Services",Sport & Leisure,Supplies & Services,Provisions,ROWLANDS & COMPANY,22/04/2024,161.65
"Communities, Customer & Commercial Services",Sport & Leisure,Supplies & Services,Provisions,ROWLANDS & COMPANY,22/04/2024,188.33
"Communities, Customer & Commercial Services",Sport & Leisure,Supplies & Services,Provisions,ROWLANDS & COMPANY,22/04/2024,135.75
"Communities, Customer & Commercial Services",Sport & Leisure,Supplies & Services,Provisions,ROWLANDS & COMPANY,22/04/2024,116.29
"Communities, Customer & Commercial Services",Sport & Leisure,Supplies & Services,Provisions,ROWLANDS & COMPANY,22/04/2024,125.59
"Communities, Customer & Commercial Services",Sport & Leisure,Supplies & Services,Provisions,ROWLANDS & COMPANY,22/04/2024,196.46
"Communities, Customer & Commercial Services",Sport & Leisure,Supplies & Services,Provisions,ROWLANDS & COMPANY,22/04/2024,105.03
"Communities, Customer & Commercial Services",Sport & Leisure,Supplies & Services,Provisions,ROWLANDS & COMPANY,22/04/2024,146.83
"Communities, Customer & Commercial Services",Sport & Leisure,Supplies & Services,Provisions,ROWLANDS & COMPANY,22/04/2024,139.34
"Communities, Customer & Commercial Services",Sport & Leisure,Supplies & Services,Provisions,ROWLANDS & COMPANY,22/04/2024,242.17
"Communities, Customer & Commercial Services",Sport & Leisure,Supplies & Services,Provisions,ROWLANDS & COMPANY,22/04/2024,202.44
"Communities, Customer & Commercial Services",Sport & Leisure,Supplies & Services,Provisions,ROWLANDS & COMPANY,22/04/2024,109.61
"Communities, Customer & Commercial Services",Sport & Leisure,Supplies & Services,Provisions,ROWLANDS & COMPANY,22/04/2024,118.54
"Communities, Customer & Commercial Services",Sport & Leisure,Supplies & Services,Provisions,ROWLANDS & COMPANY,22/04/2024,119.43
"Communities, Customer & Commercial Services",Sport & Leisure,Supplies & Services,Provisions,ROWLANDS & COMPANY,22/04/2024,109.22
"Communities, Customer & Commercial Services",Sport & Leisure,Supplies & Services,Provisions,ROWLANDS & COMPANY,22/04/2024,153.87
"Communities, Customer & Commercial Services",Sport & Leisure,Supplies & Services,Provisions,ROWLANDS & COMPANY,22/04/2024,173.00
"Communities, Customer & Commercial Services",Sport & Leisure,Supplies & Services,Provisions,ROWLANDS & COMPANY,26/04/2024,106.66
"Communities, Customer & Commercial Services",Sport & Leisure,Supplies & Services,Provisions,ROWLANDS & COMPANY,26/04/2024,145.99
"Communities, Customer & Commercial Services",Sport & Leisure,Supplies & Services,Provisions,ROWLANDS & COMPANY,26/04/2024,119.33
"Communities, Customer & Commercial Services",Sport & Leisure,Supplies & Services,Provisions,ROWLANDS & COMPANY,26/04/2024,180.71
"Communities, Customer & Commercial Services",Sport & Leisure,Supplies & Services,Provisions,ROWLANDS & COMPANY,26/04/2024,100.31
"Communities, Customer & Commercial Services",Sport & Leisure,Supplies & Services,Provisions,ROWLANDS & COMPANY,26/04/2024,135.78
"Communities, Customer & Commercial Services",Sport & Leisure,Supplies & Services,Provisions,ROWLANDS & COMPANY,26/04/2024,142.50
"Communities, Customer & Commercial Services",Sport & Leisure,Supplies & Services,Provisions,ROWLANDS & COMPANY,26/04/2024,151.73
"Communities, Customer & Commercial Services",Sport & Leisure,Supplies & Services,Provisions,ROWLANDS & COMPANY,26/04/2024,109.97
"Communities, Customer & Commercial Services",Sport & Leisure,Supplies & Services,Provisions,ROWLANDS & COMPANY,26/04/2024,106.17
"Communities, Customer & Commercial Services",Sport & Leisure,Supplies & Services,Provisions,ROWLANDS & COMPANY,26/04/2024,157.96
"Communities, Customer & Commercial Services",Sport & Leisure,Supplies & Services,Provisions,ROWLANDS & COMPANY,26/04/2024,120.64
"Communities, Customer & Commercial Services",Sport & Leisure,Supplies & Services,Provisions,ROWLANDS & COMPANY,26/04/2024,139.01
"Communities, Customer & Commercial Services",Sport & Leisure,Supplies & Services,Provisions,ROWLANDS & COMPANY,26/04/2024,139.34
"Communities, Customer & Commercial Services",Sport & Leisure,Supplies & Services,Provisions,ROWLANDS & COMPANY,26/04/2024,235.54
"Communities, Customer & Commercial Services",Sport & Leisure,Supplies & Services,Provisions,ROWLANDS & COMPANY,26/04/2024,189.75
"Communities, Customer & Commercial Services",Sport & Leisure,Supplies & Services,Provisions,ROWLANDS & COMPANY,26/04/2024,118.05
"Communities, Customer & Commercial Services",Sport & Leisure,Supplies & Services,Provisions,ROWLANDS & COMPANY,26/04/2024,174.79
"Communities, Customer & Commercial Services",Sport & Leisure,Supplies & Services,Provisions,ROWLANDS & COMPANY,26/04/2024,123.71
"Communities, Customer & Commercial Services",Sport & Leisure,Supplies & Services,Provisions,ROWLANDS & COMPANY,26/04/2024,109.31
"Communities, Customer & Commercial Services",Sport & Leisure,Supplies & Services,Provisions,ROWLANDS & COMPANY,26/04/2024,142.10
"Communities, Customer & Commercial Services",Sport & Leisure,Supplies & Services,Provisions,ROWLANDS & COMPANY,26/04/2024,153.24
"Communities, Customer & Commercial Services",Sport & Leisure,Supplies & Services,Provisions,PASTA KING (UK) LIMITED,30/04/2024,150.24
"Communities, Customer & Commercial Services",Sport & Leisure,Supplies & Services,Provisions,Border Janitorial Supplies Limited,30/04/2024,104.51
"Communities, Customer & Commercial Services",Sport & Leisure,Supplies & Services,Crockery/Hardware/Light Equip,PLANGLOW LTD,03/04/2024,464.71
"Communities, Customer & Commercial Services",Sport & Leisure,Supplies & Services,Crockery/Hardware/Light Equip,TROPICAL ICE,02/04/2024,166.50
"Communities, Customer & Commercial Services",Sport & Leisure,Supplies & Services,Crockery/Hardware/Light Equip,Vegware,11/04/2024,262.45
"Communities, Customer & Commercial Services",Sport & Leisure,Supplies & Services,Crockery/Hardware/Light Equip,Vegware,11/04/2024,262.45
"Communities, Customer & Commercial Services",Sport & Leisure,Supplies & Services,Crockery/Hardware/Light Equip,PLANGLOW LTD,26/04/2024,129.80
"Communities, Customer & Commercial Services",Sport & Leisure,Supplies & Services,Crockery/Hardware/Light Equip,PLANGLOW LTD,26/04/2024,259.60
"Communities, Customer & Commercial Services",Sport & Leisure,Supplies & Services,Crockery/Hardware/Light Equip,Vegware,30/04/2024,441.90
"Communities, Customer & Commercial Services",Sport & Leisure,Premises-Related Expenditure,Clean Mats & Toilet Requisites,Border Janitorial Supplies Limited,30/04/2024,294.33
"Communities, Customer & Commercial Services",Sport & Leisure,Supplies & Services,Provisions,J S Catering Butchers,12/04/2024,127.20
"Communities, Customer & Commercial Services",Sport & Leisure,Supplies & Services,Provisions,ROWLANDS & COMPANY,15/04/2024,309.88
"Communities, Customer & Commercial Services",Sport & Leisure,Supplies & Services,Provisions,ROWLANDS & COMPANY,15/04/2024,247.54
"Communities, Customer & Commercial Services",Sport & Leisure,Supplies & Services,Provisions,PASTA KING (UK) LIMITED,08/04/2024,300.48
"Communities, Customer & Commercial Services",Sport & Leisure,Supplies & Services,Provisions,PASTA KING (UK) LIMITED,08/04/2024,788.76
"Communities, Customer & Commercial Services",Sport & Leisure,Supplies & Services,Provisions,BIKOLD,02/04/2024,141.79
"Communities, Customer & Commercial Services",Sport & Leisure,Supplies & Services,Provisions,PASTA KING (UK) LIMITED,08/04/2024,111.60
"Communities, Customer & Commercial Services",Sport & Leisure,Supplies & Services,Provisions,PASTA KING (UK) LIMITED,08/04/2024,1014.12
"Communities, Customer & Commercial Services",Sport & Leisure,Supplies & Services,Provisions,Delice de France,11/04/2024,259.74
"Communities, Customer & Commercial Services",Sport & Leisure,Supplies & Services,Computer Hardware (Maint),CIVICA UK LIMITED,11/04/2024,-493.11
"Communities, Customer & Commercial Services",Sport & Leisure,Supplies & Services,Provisions,BIKOLD,11/04/2024,220.51
"Communities, Customer & Commercial Services",Sport & Leisure,Supplies & Services,Provisions,BIKOLD,11/04/2024,214.87
"Communities, Customer & Commercial Services",Sport & Leisure,Supplies & Services,Provisions,BIKOLD,11/04/2024,1716.53
"Communities, Customer & Commercial Services",Sport & Leisure,Supplies & Services,Provisions,BIKOLD,11/04/2024,826.73
"Communities, Customer & Commercial Services",Sport & Leisure,Supplies & Services,Provisions,BIKOLD,11/04/2024,255.94
"Communities, Customer & Commercial Services",Sport & Leisure,Supplies & Services,Provisions,BIKOLD,11/04/2024,204.97
"Communities, Customer & Commercial Services",Sport & Leisure,Supplies & Services,Provisions,BIKOLD,11/04/2024,472.68
"Communities, Customer & Commercial Services",Sport & Leisure,Supplies & Services,Provisions,BIKOLD,11/04/2024,549.63
"Communities, Customer & Commercial Services",Sport & Leisure,Supplies & Services,Provisions,BIKOLD,11/04/2024,317.20
"Communities, Customer & Commercial Services",Sport & Leisure,Supplies & Services,Provisions,BIKOLD,11/04/2024,318.26
"Communities, Customer & Commercial Services",Sport & Leisure,Supplies & Services,Provisions,BIKOLD,11/04/2024,305.97
"Communities, Customer & Commercial Services",Sport & Leisure,Supplies & Services,Provisions,BIKOLD,11/04/2024,428.38
"Communities, Customer & Commercial Services",Sport & Leisure,Supplies & Services,Provisions,BIKOLD,11/04/2024,544.58
"Communities, Customer & Commercial Services",Sport & Leisure,Supplies & Services,Provisions,BIKOLD,11/04/2024,345.45
"Communities, Customer & Commercial Services",Sport & Leisure,Supplies & Services,Provisions,BIKOLD,11/04/2024,723.32
"Communities, Customer & Commercial Services",Sport & Leisure,Supplies & Services,Provisions,BIKOLD,11/04/2024,1890.31
"Communities, Customer & Commercial Services",Sport & Leisure,Supplies & Services,Provisions,BIKOLD,11/04/2024,551.81
"Communities, Customer & Commercial Services",Sport & Leisure,Supplies & Services,Provisions,BIKOLD,11/04/2024,779.06
"Communities, Customer & Commercial Services",Sport & Leisure,Supplies & Services,Provisions,BIKOLD,11/04/2024,175.63
"Communities, Customer & Commercial Services",Sport & Leisure,Supplies & Services,Provisions,BIKOLD,11/04/2024,104.08
"Communities, Customer & Commercial Services",Sport & Leisure,Supplies & Services,Provisions,BIKOLD,11/04/2024,773.88
"Communities, Customer & Commercial Services",Sport & Leisure,Supplies & Services,Provisions,BIKOLD,11/04/2024,103.80
"Communities, Customer & Commercial Services",Sport & Leisure,Supplies & Services,Provisions,BIKOLD,11/04/2024,609.41
"Communities, Customer & Commercial Services",Sport & Leisure,Supplies & Services,Provisions,BIKOLD,11/04/2024,1404.88
"Communities, Customer & Commercial Services",Sport & Leisure,Supplies & Services,Provisions,J S Catering Butchers,19/04/2024,282.18
"Communities, Customer & Commercial Services",Sport & Leisure,Supplies & Services,Provisions,Handmade Speciality Products Ltd,17/04/2024,525.56
"Communities, Customer & Commercial Services",Sport & Leisure,Supplies & Services,Provisions,PASTA KING (UK) LIMITED,17/04/2024,338.04
"Communities, Customer & Commercial Services",Sport & Leisure,Supplies & Services,Provisions,PASTA KING (UK) LIMITED,17/04/2024,525.84
"Communities, Customer & Commercial Services",Sport & Leisure,Supplies & Services,Provisions,J S Catering Butchers,19/04/2024,-282.18
"Communities, Customer & Commercial Services",Sport & Leisure,Supplies & Services,Provisions,J S Catering Butchers,19/04/2024,119.25
"Communities, Customer & Commercial Services",Sport & Leisure,Supplies & Services,Provisions,BIKOLD,18/04/2024,393.55
"Communities, Customer & Commercial Services",Sport & Leisure,Supplies & Services,Provisions,BIKOLD,18/04/2024,165.39
"Communities, Customer & Commercial Services",Sport & Leisure,Supplies & Services,Provisions,BIKOLD,18/04/2024,152.25
"Communities, Customer & Commercial Services",Sport & Leisure,Supplies & Services,Provisions,BIKOLD,18/04/2024,185.81
"Communities, Customer & Commercial Services",Sport & Leisure,Supplies & Services,Provisions,BIKOLD,18/04/2024,376.40
"Communities, Customer & Commercial Services",Sport & Leisure,Supplies & Services,Provisions,BIKOLD,18/04/2024,196.61
"Communities, Customer & Commercial Services",Sport & Leisure,Supplies & Services,Provisions,BIKOLD,18/04/2024,857.75
"Communities, Customer & Commercial Services",Sport & Leisure,Supplies & Services,Provisions,BIKOLD,18/04/2024,642.99
"Communities, Customer & Commercial Services",Sport & Leisure,Supplies & Services,Provisions,BIKOLD,18/04/2024,161.93
"Communities, Customer & Commercial Services",Sport & Leisure,Supplies & Services,Provisions,BIKOLD,18/04/2024,448.18
"Communities, Customer & Commercial Services",Sport & Leisure,Supplies & Services,Provisions,BIKOLD,18/04/2024,189.54
"Communities, Customer & Commercial Services",Sport & Leisure,Supplies & Services,Provisions,BIKOLD,18/04/2024,417.39
"Communities, Customer & Commercial Services",Sport & Leisure,Supplies & Services,Provisions,BIKOLD,18/04/2024,692.74
"Communities, Customer & Commercial Services",Sport & Leisure,Supplies & Services,Provisions,BIKOLD,18/04/2024,102.70
"Communities, Customer & Commercial Services",Sport & Leisure,Supplies & Services,Provisions,BIKOLD,18/04/2024,253.15
"Communities, Customer & Commercial Services",Sport & Leisure,Supplies & Services,Provisions,BIKOLD,18/04/2024,187.65
"Communities, Customer & Commercial Services",Sport & Leisure,Supplies & Services,Provisions,BIKOLD,18/04/2024,946.81
"Communities, Customer & Commercial Services",Sport & Leisure,Supplies & Services,Provisions,BIKOLD,18/04/2024,111.03
"Communities, Customer & Commercial Services",Sport & Leisure,Supplies & Services,Provisions,BIKOLD,18/04/2024,681.78
"Communities, Customer & Commercial Services",Sport & Leisure,Supplies & Services,Provisions,BIKOLD,18/04/2024,181.90
"Communities, Customer & Commercial Services",Sport & Leisure,Supplies & Services,Provisions,On A Roll,18/04/2024,117.11
"Communities, Customer & Commercial Services",Sport & Leisure,Supplies & Services,Provisions,On A Roll,18/04/2024,175.08
"Communities, Customer & Commercial Services",Sport & Leisure,Supplies & Services,Provisions,BIKOLD,25/04/2024,579.14
"Communities, Customer & Commercial Services",Sport & Leisure,Supplies & Services,Provisions,BIKOLD,25/04/2024,214.37
"Communities, Customer & Commercial Services",Sport & Leisure,Supplies & Services,Provisions,BIKOLD,25/04/2024,164.12
"Communities, Customer & Commercial Services",Sport & Leisure,Supplies & Services,Provisions,BIKOLD,25/04/2024,1009.81
"Communities, Customer & Commercial Services",Sport & Leisure,Supplies & Services,Provisions,BIKOLD,25/04/2024,239.41
"Communities, Customer & Commercial Services",Sport & Leisure,Supplies & Services,Provisions,BIKOLD,25/04/2024,247.23
"Communities, Customer & Commercial Services",Sport & Leisure,Supplies & Services,Provisions,BIKOLD,25/04/2024,313.58
"Communities, Customer & Commercial Services",Sport & Leisure,Supplies & Services,Provisions,BIKOLD,25/04/2024,1985.10
"Communities, Customer & Commercial Services",Sport & Leisure,Supplies & Services,Provisions,BIKOLD,25/04/2024,164.12
"Communities, Customer & Commercial Services",Sport & Leisure,Supplies & Services,Provisions,BIKOLD,25/04/2024,348.86
"Communities, Customer & Commercial Services",Sport & Leisure,Supplies & Services,Provisions,BIKOLD,25/04/2024,174.77
"Communities, Customer & Commercial Services",Sport & Leisure,Supplies & Services,Provisions,BIKOLD,25/04/2024,812.64
"Communities, Customer & Commercial Services",Sport & Leisure,Supplies & Services,Provisions,BIKOLD,25/04/2024,126.07
"Communities, Customer & Commercial Services",Sport & Leisure,Supplies & Services,Provisions,BIKOLD,25/04/2024,317.23
"Communities, Customer & Commercial Services",Sport & Leisure,Supplies & Services,Provisions,BIKOLD,25/04/2024,269.91
"Communities, Customer & Commercial Services",Sport & Leisure,Supplies & Services,Provisions,BIKOLD,25/04/2024,512.80
"Communities, Customer & Commercial Services",Sport & Leisure,Supplies & Services,Provisions,BIKOLD,25/04/2024,663.14
"Communities, Customer & Commercial Services",Sport & Leisure,Supplies & Services,Provisions,BIKOLD,25/04/2024,151.58
"Communities, Customer & Commercial Services",Sport & Leisure,Supplies & Services,Provisions,BIKOLD,25/04/2024,122.91
"Communities, Customer & Commercial Services",Sport & Leisure,Supplies & Services,Provisions,BIKOLD,25/04/2024,643.08
"Communities, Customer & Commercial Services",Sport & Leisure,Supplies & Services,Provisions,BIKOLD,25/04/2024,992.71
"Communities, Customer & Commercial Services",Sport & Leisure,Supplies & Services,Provisions,BIKOLD,25/04/2024,108.86
"Communities, Customer & Commercial Services",Sport & Leisure,Supplies & Services,Provisions,BIKOLD,25/04/2024,222.08
"Communities, Customer & Commercial Services",Sport & Leisure,Supplies & Services,Provisions,BIKOLD,25/04/2024,664.79
"Communities, Customer & Commercial Services",Sport & Leisure,Supplies & Services,Provisions,BIKOLD,25/04/2024,165.94
"Communities, Customer & Commercial Services",Sport & Leisure,Supplies & Services,Provisions,BIKOLD,25/04/2024,267.60
"Communities, Customer & Commercial Services",Sport & Leisure,Supplies & Services,Provisions,ROWLANDS & COMPANY,22/04/2024,175.63
"Communities, Customer & Commercial Services",Sport & Leisure,Supplies & Services,Provisions,PASTA KING (UK) LIMITED,22/04/2024,445.40
"Communities, Customer & Commercial Services",Sport & Leisure,Supplies & Services,Provisions,On A Roll,26/04/2024,148.01
"Communities, Customer & Commercial Services",Sport & Leisure,Supplies & Services,Provisions,On A Roll,26/04/2024,442.29
"Communities, Customer & Commercial Services",Sport & Leisure,Supplies & Services,Provisions,ROWLANDS & COMPANY,26/04/2024,237.07
"Communities, Customer & Commercial Services",Sport & Leisure,Supplies & Services,Provisions,PASTA KING (UK) LIMITED,30/04/2024,174.96
"Communities, Customer & Commercial Services",Sport & Leisure,Supplies & Services,Provisions,PASTA KING (UK) LIMITED,30/04/2024,638.52
"Communities, Customer & Commercial Services",Sport & Leisure,Premises-Related Expenditure,R&M -Building Other,COOL SERVICES LTD,03/04/2024,292.52
"Communities, Customer & Commercial Services",Sport & Leisure,Premises-Related Expenditure,R&M -Building Other,GRANVILLE CONSTRUCTION & MAINTENANCE LTD,22/04/2024,153.67
"Communities, Customer & Commercial Services",Sport & Leisure,Supplies & Services,Provisions,BIKOLD,11/04/2024,138.46
"Communities, Customer & Commercial Services",Sport & Leisure,Supplies & Services,Provisions,BIKOLD,18/04/2024,104.06
"Communities, Customer & Commercial Services",Sport & Leisure,Supplies & Services,Crockery/Hardware/Light Equip,TROPICAL ICE,02/04/2024,425.00
"Communities, Customer & Commercial Services",Sport & Leisure,Supplies & Services,Crockery/Hardware/Light Equip,TROPICAL ICE,30/04/2024,231.20
"Communities, Customer & Commercial Services",Sport & Leisure,Supplies & Services,Crockery/Hardware/Light Equip,TROPICAL ICE,30/04/2024,1138.00
"Communities, Customer & Commercial Services",Sport & Leisure,Supplies & Services,Provisions,Handmade Speciality Products Ltd,03/04/2024,322.82
"Communities, Customer & Commercial Services",Sport & Leisure,Supplies & Services,Provisions,BIKOLD,02/04/2024,568.03
"Communities, Customer & Commercial Services",Sport & Leisure,Supplies & Services,Provisions,BIKOLD,02/04/2024,299.82
"Communities, Customer & Commercial Services",Sport & Leisure,Supplies & Services,Provisions,BIKOLD,02/04/2024,122.62
"Communities, Customer & Commercial Services",Sport & Leisure,Supplies & Services,Provisions,BIKOLD,02/04/2024,468.43
"Communities, Customer & Commercial Services",Sport & Leisure,Supplies & Services,Provisions,BIKOLD,02/04/2024,215.09
"Communities, Customer & Commercial Services",Sport & Leisure,Supplies & Services,Provisions,BIKOLD,11/04/2024,511.03
"Communities, Customer & Commercial Services",Sport & Leisure,Supplies & Services,Provisions,BIKOLD,11/04/2024,523.58
"Communities, Customer & Commercial Services",Sport & Leisure,Supplies & Services,Provisions,BIKOLD,11/04/2024,121.52
"Communities, Customer & Commercial Services",Sport & Leisure,Supplies & Services,Provisions,BIKOLD,11/04/2024,626.52
"Communities, Customer & Commercial Services",Sport & Leisure,Supplies & Services,Provisions,BIKOLD,09/04/2024,487.72
"Communities, Customer & Commercial Services",Sport & Leisure,Supplies & Services,Provisions,BIKOLD,09/04/2024,263.83
"Communities, Customer & Commercial Services",Sport & Leisure,Supplies & Services,Provisions,BIKOLD,09/04/2024,290.44
"Communities, Customer & Commercial Services",Sport & Leisure,Supplies & Services,Provisions,BIKOLD,09/04/2024,733.70
"Communities, Customer & Commercial Services",Sport & Leisure,Supplies & Services,Provisions,BIKOLD,09/04/2024,232.48
"Communities, Customer & Commercial Services",Sport & Leisure,Supplies & Services,Provisions,BIKOLD,09/04/2024,262.62
"Communities, Customer & Commercial Services",Sport & Leisure,Supplies & Services,Provisions,BIKOLD,09/04/2024,391.03
"Communities, Customer & Commercial Services",Sport & Leisure,Supplies & Services,Provisions,BIKOLD,09/04/2024,125.66
"Communities, Customer & Commercial Services",Sport & Leisure,Supplies & Services,Provisions,BIKOLD,18/04/2024,420.07
"Communities, Customer & Commercial Services",Sport & Leisure,Supplies & Services,Provisions,BIKOLD,18/04/2024,110.49
"Communities, Customer & Commercial Services",Sport & Leisure,Supplies & Services,Provisions,BIKOLD,18/04/2024,362.84
"Communities, Customer & Commercial Services",Sport & Leisure,Supplies & Services,Provisions,BIKOLD,18/04/2024,293.85
"Communities, Customer & Commercial Services",Sport & Leisure,Supplies & Services,Provisions,BIKOLD,25/04/2024,106.42
"Communities, Customer & Commercial Services",Sport & Leisure,Supplies & Services,Provisions,BIKOLD,25/04/2024,370.98
"Communities, Customer & Commercial Services",Sport & Leisure,Supplies & Services,Provisions,BIKOLD,25/04/2024,158.33
"Communities, Customer & Commercial Services",Sport & Leisure,Supplies & Services,Provisions,BIKOLD,25/04/2024,112.65
"Communities, Customer & Commercial Services",Sport & Leisure,Supplies & Services,Provisions,BIKOLD,25/04/2024,197.31
"Communities, Customer & Commercial Services",Sport & Leisure,Supplies & Services,Provisions,TROPICAL ICE,30/04/2024,456.20
"Communities, Customer & Commercial Services",Sport & Leisure,Supplies & Services,Provisions,TROPICAL ICE,30/04/2024,759.00
"Communities, Customer & Commercial Services",Sport & Leisure,Supplies & Services,Provisions,TROPICAL ICE,30/04/2024,195.00
"Communities, Customer & Commercial Services",Sport & Leisure,Supplies & Services,Equipment - Purchase,Gladstone MRM Ltd,19/04/2024,6485.84
"Communities, Customer & Commercial Services",Sport & Leisure,Supplies & Services,Payment Of Income Collected,Telford Tigers Limited,09/04/2024,5779.71
"Communities, Customer & Commercial Services",Sport & Leisure,Supplies & Services,Payment Of Income Collected,Telford Tigers Limited,03/04/2024,8386.44
"Communities, Customer & Commercial Services",Sport & Leisure,Supplies & Services,Payment Of Income Collected,Telford Tigers Limited,15/04/2024,7660.83
"Communities, Customer & Commercial Services",Sport & Leisure,Supplies & Services,Payment Of Income Collected,Telford Tigers Limited,23/04/2024,7422.75
"Communities, Customer & Commercial Services",Sport & Leisure,Supplies & Services,Equipment - Hire,SLIDERS SKATE SHOP,03/04/2024,300.00
"Communities, Customer & Commercial Services",Sport & Leisure,Supplies & Services,First Aid,SP SERVICES (UK) LTD,05/04/2024,1630.89
"Communities, Customer & Commercial Services",Sport & Leisure,Supplies & Services,Sport Equip - Purchase,PULSE FITNESS LIMITED,24/04/2024,199.00
"Communities, Customer & Commercial Services",Sport & Leisure,Supplies & Services,Licences,Les Mills Fitness UK Ltd,09/04/2024,1097.25
"Communities, Customer & Commercial Services",Sport & Leisure,Employees,Staff Training,SHREWSBURY COLLEGES GROUP,22/04/2024,375.00
"Communities, Customer & Commercial Services",Sport & Leisure,Premises-Related Expenditure,R&M - Mechanical,Culligan (UK) LTD,18/04/2024,117.72
"Communities, Customer & Commercial Services",Sport & Leisure,Employees,Staff Training,INSTITUTE OF SWIMMING ,04/04/2024,699.00
"Communities, Customer & Commercial Services",Sport & Leisure,Supplies & Services,Chemicals/Cleaning Products,BRENNTAG UK LIMITED,04/04/2024,297.00
"Communities, Customer & Commercial Services",Sport & Leisure,Supplies & Services,Chemicals/Cleaning Products,BRENNTAG UK LIMITED,04/04/2024,1594.68
"Communities, Customer & Commercial Services",Sport & Leisure,Supplies & Services,Stationery,THE TILL ROLL CO LTD,11/04/2024,154.95
"Communities, Customer & Commercial Services",Sport & Leisure,Supplies & Services,Equipment - Purchase,J P LENNARD LTD,19/04/2024,328.70
"Communities, Customer & Commercial Services",Sport & Leisure,Supplies & Services,Equipment - Purchase,J P LENNARD LTD,19/04/2024,165.83
"Communities, Customer & Commercial Services",Sport & Leisure,Supplies & Services,Equipment - Purchase,J P LENNARD LTD,19/04/2024,255.00
"Communities, Customer & Commercial Services",Sport & Leisure,Supplies & Services,Items For Resale,SWIM ENGLAND TRADING LIMITED ,25/04/2024,339.20
"Communities, Customer & Commercial Services",Sport & Leisure,Premises-Related Expenditure,Swimming Pool Chemicals,BRENNTAG UK LIMITED,23/04/2024,197.48
"Communities, Customer & Commercial Services",Sport & Leisure,Supplies & Services,Items For Resale,Splash About International Limited,23/04/2024,1465.20
"Communities, Customer & Commercial Services",Sport & Leisure,Supplies & Services,Items For Resale,SWIM ENGLAND TRADING LIMITED ,25/04/2024,422.00
"Communities, Customer & Commercial Services",Sport & Leisure,Supplies & Services,Payment Of Income Collected,WELLINGTON TOWN COUNCIL,11/04/2024,9275.45
"Communities, Customer & Commercial Services",Sport & Leisure,Supplies & Services,Equipment - Purchase,European Golf Machinery,10/04/2024,101.75
"Communities, Customer & Commercial Services",Sport & Leisure,Transport-Related Expenditure,Servicing & Repairs V&P,Charlies AG & Turf,02/04/2024,459.58
"Communities, Customer & Commercial Services",Sport & Leisure,Premises-Related Expenditure,R&M WC Planned,Agrovista UK LTD,08/04/2024,1884.00
"Communities, Customer & Commercial Services",Sport & Leisure,Supplies & Services,Equipment - Purchase,Charlies AG & Turf,03/04/2024,47974.27
"Communities, Customer & Commercial Services",Sport & Leisure,Supplies & Services,Equipment - Purchase,CMW Equipment Holdings Limited,25/04/2024,743.50
"Communities, Customer & Commercial Services",Sport & Leisure,Employees,Staff Training,INSTITUTE OF SWIMMING ,02/04/2024,319.00
"Communities, Customer & Commercial Services",Sport & Leisure,Supplies & Services,Chemicals/Cleaning Products,Border Janitorial Supplies Limited,29/04/2024,366.27
"Communities, Customer & Commercial Services",Sport & Leisure,Supplies & Services,Licences,Les Mills Fitness UK Ltd,08/04/2024,1097.25
"Communities, Customer & Commercial Services",Sport & Leisure,Supplies & Services,Chemicals/Cleaning Products,Border Janitorial Supplies Limited,04/04/2024,103.39
"Communities, Customer & Commercial Services",Sport & Leisure,Supplies & Services,Protective Clothing,CORPORATE TOGS LTD,04/04/2024,119.70
"Communities, Customer & Commercial Services",Sport & Leisure,Supplies & Services,Chemicals/Cleaning Products,Border Janitorial Supplies Limited,29/04/2024,337.28
"Communities, Customer & Commercial Services",Sport & Leisure,Supplies & Services,Equipment - Purchase,J P LENNARD LTD,19/04/2024,404.00
"Communities, Customer & Commercial Services",Sport & Leisure,Supplies & Services,Equipment - Purchase,J P LENNARD LTD,22/04/2024,174.80
"Communities, Customer & Commercial Services",Sport & Leisure,Supplies & Services,First Aid,SP SERVICES (UK) LTD,02/04/2024,224.21
"Communities, Customer & Commercial Services",Sport & Leisure,Supplies & Services,Licences,Les Mills Fitness UK Ltd,08/04/2024,682.50
"Communities, Customer & Commercial Services",Sport & Leisure,Supplies & Services,Sub Contractors,GRANVILLE CONSTRUCTION & MAINTENANCE LTD,11/04/2024,168.45
"Communities, Customer & Commercial Services",Sport & Leisure,Supplies & Services,Sub Contractors,BUSINESS WATCH GUARDING LIMITED,11/04/2024,574.06
"Communities, Customer & Commercial Services",Sport & Leisure,Supplies & Services,Sub Contractors,Prosep filter systems ltd,25/04/2024,696.74
"Communities, Customer & Commercial Services",Sport & Leisure,Premises-Related Expenditure,Electricity,West Mercia Energy (WME),26/04/2024,721.88
"Communities, Customer & Commercial Services",Sport & Leisure,Supplies & Services,Other Materials,PROVAC CLEANING SUPPLIES LTD,17/04/2024,112.38
"Communities, Customer & Commercial Services",Sport & Leisure,Supplies & Services,Other Materials,PROVAC CLEANING SUPPLIES LTD,17/04/2024,141.60
"Communities, Customer & Commercial Services",Sport & Leisure,Supplies & Services,Equipment - Purchase,RLSS UK Enterprises Ltd,16/04/2024,120.00
"Communities, Customer & Commercial Services",Sport & Leisure,Supplies & Services,Equipment - Purchase,RLSS UK Enterprises Ltd,16/04/2024,192.00
"Communities, Customer & Commercial Services",Sport & Leisure,Supplies & Services,Equipment - Purchase,RLSS UK Enterprises Ltd,16/04/2024,144.00
"Communities, Customer & Commercial Services",Sport & Leisure,Supplies & Services,Equipment - Purchase,RLSS UK Enterprises Ltd,16/04/2024,168.00
"Communities, Customer & Commercial Services",Sport & Leisure,Supplies & Services,Fees,Austin Mix Ltd,23/04/2024,695.00
"Communities, Customer & Commercial Services",Sport & Leisure,Supplies & Services,Equipment - Purchase,RLSS UK Enterprises Ltd,26/04/2024,192.00
"Communities, Customer & Commercial Services",Sport & Leisure,Supplies & Services,Equipment - Purchase,RLSS UK Enterprises Ltd,25/04/2024,250.00
Corporate Communications,Communications & Marketing,Supplies & Services,Community Newspaper,EMERGE DESIGN LTD,03/04/2024,7056.70
Corporate Communications,Communications & Marketing,Supplies & Services,Subscriptions,AIMediaData Limited,03/04/2024,3365.93
Corporate Communications,Communications & Marketing,Employees,Staff Training,Improvement & Development Agency,03/04/2024,4140.00
Corporate Communications,Communications & Marketing,Supplies & Services,Other Expenses,CITY OF WOLVERHAMPTON COUNCIL,11/04/2024,750.00
Corporate Communications,Communications & Marketing,Supplies & Services,Community Newspaper,PRECISION COLOUR PRINTING,29/04/2024,7422.00
Corporate Communications,Communications & Marketing,Supplies & Services,Subscriptions,SocialSignIn Ltd,30/04/2024,12865.75
Corporate Communications,Communications & Marketing,Supplies & Services,Community Newspaper,ROYAL MAIL GROUP PLC ,30/04/2024,7049.50
Corporate Items,Corporate Codes,Employees,Agency Supply Costs,Opus People Solutions Limited,04/04/2024,37364.54
Corporate Items,Corporate Codes,Employees,Agency Supply Costs,Opus People Solutions Limited,11/04/2024,40225.17
Corporate Items,Corporate Codes,Employees,Agency Supply Costs,Opus People Solutions Limited,18/04/2024,37385.14
Corporate Items,Corporate Codes,Employees,Agency Supply Costs,Opus People Solutions Limited,25/04/2024,44690.09
Corporate Items,Corporate Codes,Capital Financing Costs,Penalty Deductions,PYRAMID SCHOOLS (HADLEY) LTD,04/04/2024,-156.13
Corporate Items,Corporate Codes,Capital Financing Costs,Unitary Charge,PYRAMID SCHOOLS (HADLEY) LTD,04/04/2024,1031046.45
Education & Skills,Consultancy & Advisory Services,Premises-Related Expenditure,Hire Of Rooms,Mercure Telford Centre Hotel,08/04/2024,124.46
Education & Skills,Consultancy & Advisory Services,Premises-Related Expenditure,Hire Of Rooms,Mercure Telford Centre Hotel,08/04/2024,124.46
Education & Skills,Consultancy & Advisory Services,Supplies & Services,Training Costs - Participants Recharged,Mercure Telford Centre Hotel,08/04/2024,292.33
Education & Skills,Consultancy & Advisory Services,Supplies & Services,Training Costs - Participants Recharged,Mercure Telford Centre Hotel,08/04/2024,292.33
Education & Skills,Consultancy & Advisory Services,Supplies & Services,Other Grants (Expenses),Family Nurseries Ltd,08/04/2024,300.00
Education & Skills,Consultancy & Advisory Services,Supplies & Services,Other Grants (Expenses),PLAY-DAYS CORPORATION LTD,08/04/2024,600.00
Education & Skills,Consultancy & Advisory Services,Supplies & Services,Other Grants (Expenses),TRENCH TOTS NEIGHBOURHOOD NURSERY LTD,08/04/2024,600.00
Education & Skills,Consultancy & Advisory Services,Supplies & Services,Other Grants (Expenses),TIGGY'S MONTESSORI NURSERY,08/04/2024,300.00
Education & Skills,Consultancy & Advisory Services,Supplies & Services,Other Grants (Expenses),Chipmunks Nursery OSC Ltd ,08/04/2024,300.00
Education & Skills,Consultancy & Advisory Services,Supplies & Services,Other Grants (Expenses),Windmill Primary School Academy,08/04/2024,600.00
Education & Skills,Consultancy & Advisory Services,Supplies & Services,Other Grants (Expenses),Grange Park Primary School - Community Academies Trust,08/04/2024,600.00
Education & Skills,Consultancy & Advisory Services,Premises-Related Expenditure,Hire Of Rooms,MEETING POINT TRUST LTD,08/04/2024,129.17
Education & Skills,Consultancy & Advisory Services,Supplies & Services,Other Services,Grange Park Primary School - Community Academies Trust,08/04/2024,500.00
Education & Skills,Consultancy & Advisory Services,Supplies & Services,Other Services,Wrekin View Primary School,08/04/2024,500.00
Education & Skills,Consultancy & Advisory Services,Premises-Related Expenditure,Hire Of Rooms,RAMADA TELFORD IRONBRIDGE,22/04/2024,291.67
Education & Skills,Consultancy & Advisory Services,Supplies & Services,Conference Expenses,RAMADA TELFORD IRONBRIDGE,22/04/2024,291.66
Education & Skills,Consultancy & Advisory Services,Supplies & Services,Other Services,PLAY-DAYS CORPORATION LTD,22/04/2024,500.00
Education & Skills,Consultancy & Advisory Services,Supplies & Services,Out of School Activities,Genesis UK.com ltd,17/04/2024,178.14
Education & Skills,Consultancy & Advisory Services,Supplies & Services,Out of School Activities,A-STAR TRANSPORT MIDLANDS LTD,22/04/2024,725.00
Education & Skills,Education & Skills,Capital Expenditure,Payments to Contractor,PAVE AWAYS LTD,30/04/2024,23386.09
Education & Skills,Education & Skills,Capital Expenditure,Legal Fees,WARD HADAWAY SOLICITORS,30/04/2024,425.60
Education & Skills,Education & Skills,Capital Expenditure,Legal Fees,WARD HADAWAY SOLICITORS,11/04/2024,228.00
Education & Skills,Education & Skills,Capital Expenditure,Payments to Contractor,Inspectas Compliance Ltd,10/04/2024,420.00
Education & Skills,Education & Skills,Capital Expenditure,Payments to Contractor,Inspectas Compliance Ltd,10/04/2024,360.00
Education & Skills,Education & Skills,Capital Expenditure,Legal Fees,WARD HADAWAY SOLICITORS,30/04/2024,182.40
Education & Skills,Education & Skills,Capital Expenditure,Payments to Contractor,Services in Design Ltd,30/04/2024,1237.50
Education & Skills,Education & Skills,Capital Expenditure,Payments to Contractor,WELLINGTON INSULATION CO. LTD,08/04/2024,210.00
Education & Skills,Education & Skills,Capital Expenditure,Payments to Contractor,Inspectas Compliance Ltd,10/04/2024,640.00
Education & Skills,Education & Skills,Capital Expenditure,Payments to Contractor,Inspectas Compliance Ltd,10/04/2024,1280.00
Education & Skills,Education & Skills,Capital Expenditure,Payments to Contractor,Pumpforce Ltd,10/04/2024,3086.40
Education & Skills,Education & Skills,Capital Expenditure,Payments to Contractor,WINDOW & DOOR CONTRACT SERVICES,16/04/2024,48617.60
Education & Skills,Education & Skills,Capital Expenditure,Payments to Contractor,WINDOW & DOOR CONTRACT SERVICES,17/04/2024,6539.01
Education & Skills,Education & Skills,Capital Expenditure,Legal Fees,FREETHS LLP,10/04/2024,535.20
Education & Skills,Pupil Support Services,Third Party Payments,DSG - High Needs Block,Ercall Wood Academy,12/04/2024,13199.00
Education & Skills,Pupil Support Services,Supplies & Services,Other Tuition Fees,SHROPSHIRE COUNCIL ,15/04/2024,2566.70
Education & Skills,Pupil Support Services,Supplies & Services,Other Tuition Fees,SHROPSHIRE COUNCIL ,15/04/2024,2566.70
Education & Skills,Pupil Support Services,Employees,Professional Subs,Sing Up,26/04/2024,375.40
Education & Skills,Pupil Support Services,Supplies & Services,Instructors Fees,Entrust Support Services Ltd,11/04/2024,9312.00
Education & Skills,Pupil Support Services,Supplies & Services,Equipment - Purchase,NORMANS MUSICAL INSTRUMENTS,16/04/2024,105.00
Education & Skills,Pupil Support Services,Supplies & Services,Equipment - Purchase,TTS GROUP LTD,29/04/2024,137.99
Education & Skills,SEND (0-25),Transport-Related Expenditure,Taxi Costs,Telford Taxi Hire Limited,02/04/2024,1100.00
Education & Skills,SEND (0-25),Transport-Related Expenditure,Taxi Costs,24X7 Ltd,02/04/2024,2144.64
Education & Skills,SEND (0-25),Third Party Payments,Health Funded Services,SHROPSHIRE COMMUNITY HEALTH NHS TRUST,12/04/2024,5012.25
Education & Skills,SEND (0-25),Third Party Payments,DSG - High Needs Block,Speakaboo,12/04/2024,200.00
Education & Skills,SEND (0-25),Third Party Payments,DSG - High Needs Block,Speakaboo,12/04/2024,250.00
Education & Skills,SEND (0-25),Third Party Payments,DSG - High Needs Block,THE OLD HALL SCHOOL ,05/04/2024,-576.65
Education & Skills,SEND (0-25),Third Party Payments,DSG - High Needs Block,Queensway HLC,04/04/2024,104987.69
Education & Skills,SEND (0-25),Third Party Payments,DSG - High Needs Block,Queensway HLC,04/04/2024,19933.88
Education & Skills,SEND (0-25),Third Party Payments,DSG - High Needs Block,Queensway HLC,04/04/2024,68601.66
Education & Skills,SEND (0-25),Third Party Payments,DSG - High Needs Block,Ellern Mede School,29/04/2024,3740.00
Education & Skills,SEND (0-25),Third Party Payments,DSG - High Needs Block,Ellern Mede School,29/04/2024,3553.00
Education & Skills,SEND (0-25),Third Party Payments,DSG - High Needs Block,Maple Hayes Dyslexia School & Research Centre,17/04/2024,7835.20
Education & Skills,SEND (0-25),Third Party Payments,DSG - High Needs Block,Bettws Lifehouse Ltd,17/04/2024,10000.00
Education & Skills,SEND (0-25),Third Party Payments,DSG - High Needs Block,Bettws Lifehouse Ltd,17/04/2024,14666.67
Education & Skills,SEND (0-25),Third Party Payments,DSG - High Needs Block,Bettws Lifehouse Ltd,17/04/2024,7833.33
Education & Skills,SEND (0-25),Third Party Payments,DSG - High Needs Block,Bettws Lifehouse Ltd,17/04/2024,7500.00
Education & Skills,SEND (0-25),Third Party Payments,DSG - High Needs Block,Bettws Lifehouse Ltd,17/04/2024,7500.00
Education & Skills,SEND (0-25),Third Party Payments,DSG - High Needs Block,Young Foundations Ltd,17/04/2024,5054.02
Education & Skills,SEND (0-25),Third Party Payments,DSG - High Needs Block,Bettws Lifehouse Ltd,17/04/2024,7500.00
Education & Skills,SEND (0-25),Third Party Payments,DSG - High Needs Block,Lawley Village Academy,24/04/2024,2699.19
Education & Skills,SEND (0-25),Third Party Payments,DSG - High Needs Block,Dawley C of E Primary Academy,24/04/2024,3134.55
Education & Skills,SEND (0-25),Third Party Payments,DSG - High Needs Block,Windmill Primary School Academy,24/04/2024,5137.18
Education & Skills,SEND (0-25),Third Party Payments,DSG - High Needs Block,Allscott Meads Primary School & Nursery,24/04/2024,348.28
Education & Skills,SEND (0-25),Third Party Payments,DSG - High Needs Block,Crudgington Primary School,24/04/2024,1218.99
Education & Skills,SEND (0-25),Third Party Payments,DSG - High Needs Block,Lantern Academy,24/04/2024,1218.99
Education & Skills,SEND (0-25),Third Party Payments,DSG - High Needs Block,PRIORSLEE ACADEMY,24/04/2024,4875.77
Education & Skills,SEND (0-25),Third Party Payments,DSG - High Needs Block,Aqueduct Primary Academy,24/04/2024,3134.55
Education & Skills,SEND (0-25),Third Party Payments,DSG - High Needs Block,Apley Wood Primary Academy,24/04/2024,5746.68
Education & Skills,SEND (0-25),Third Party Payments,DSG - High Needs Block,Redhill Primary Academy,24/04/2024,4092.33
Education & Skills,SEND (0-25),Third Party Payments,DSG - High Needs Block,Wrekin View Primary School,24/04/2024,6920.82
Education & Skills,SEND (0-25),Third Party Payments,DSG - High Needs Block,Hadley Learning Community Academy,24/04/2024,7226.88
Education & Skills,SEND (0-25),Third Party Payments,DSG - High Needs Block,CAT - Telford Priory School,24/04/2024,10883.86
Education & Skills,SEND (0-25),Third Party Payments,DSG - High Needs Block,Charlton Academy,24/04/2024,13321.83
Education & Skills,SEND (0-25),Third Party Payments,DSG - High Needs Block,NEWPORT GIRLS HIGH SCHOOL ACADEMY TRUST,24/04/2024,609.50
Education & Skills,SEND (0-25),Third Party Payments,DSG - High Needs Block,Burton Borough School Learning Community Trust,24/04/2024,10448.51
Education & Skills,SEND (0-25),Third Party Payments,DSG - High Needs Block,The Telford Langley School ,24/04/2024,9055.28
Education & Skills,SEND (0-25),Third Party Payments,DSG - High Needs Block,Telford Park School,24/04/2024,10709.72
Education & Skills,SEND (0-25),Third Party Payments,DSG - High Needs Block,Hadley Learning Community Academy,24/04/2024,21680.64
Education & Skills,SEND (0-25),Third Party Payments,DSG - High Needs Block,St Peter's Bratton C of E Academy,24/04/2024,2263.84
Education & Skills,SEND (0-25),Third Party Payments,DSG - High Needs Block,Grange Park Primary School - Community Academies Trust,24/04/2024,6443.24
Education & Skills,SEND (0-25),Third Party Payments,DSG - High Needs Block,St Patricks Catholic Primary Part of OLHOC,24/04/2024,3134.55
Education & Skills,SEND (0-25),Third Party Payments,DSG - High Needs Block,Haberdashers Adams,24/04/2024,1654.34
Education & Skills,SEND (0-25),Third Party Payments,DSG - High Needs Block,Ercall Wood Academy,24/04/2024,11319.22
Education & Skills,SEND (0-25),Third Party Payments,DSG - High Needs Block,THOMAS TELFORD SCHOOL ,24/04/2024,609.50
Education & Skills,SEND (0-25),Third Party Payments,DSG - High Needs Block,MADELEY ACADEMY TRUST LTD,24/04/2024,4527.69
Education & Skills,SEND (0-25),Third Party Payments,DSG - High Needs Block,ABRAHAM DARBY ACADEMY ,24/04/2024,14453.76
Education & Skills,SEND (0-25),Third Party Payments,DSG - High Needs Block,Queensway HLC,29/04/2024,96856.15
Education & Skills,SEND (0-25),Third Party Payments,DSG - High Needs Block,Queensway HLC,29/04/2024,96856.15
Education & Skills,SEND (0-25),Third Party Payments,DSG - High Needs Block,Queensway HLC,29/04/2024,66047.65
Education & Skills,SEND (0-25),Third Party Payments,DSG - High Needs Block,Queensway HLC,29/04/2024,66047.65
Education & Skills,SEND (0-25),Third Party Payments,DSG - High Needs Block,Ellern Mede School,29/04/2024,2992.00
Education & Skills,SEND (0-25),Employees,Redundancy Payments,Capita Pension Solutions Limited,09/04/2024,240.58
Education & Skills,SEND (0-25),Employees,Course Fees,The University of Manchester,12/04/2024,3800.00
Education & Skills,SEND (0-25),Employees,Agency Supply Costs,Herefordshire and Ludlow College,17/04/2024,237.00
Education & Skills,SEND (0-25),Employees,Agency Supply Costs,Guide Dogs for the Blind,17/04/2024,3685.60
Education & Skills,SEND (0-25),Supplies & Services,Equipment - Purchase,PHONAK UK LTD,02/04/2024,1766.13
Education & Skills,SEND (0-25),Supplies & Services,Equipment - Purchase,OTICON LIMITED,23/04/2024,249.00
Education & Skills,SEND (0-25),Supplies & Services,Equipment - Purchase,PURETONE LIMITED,22/04/2024,123.20
Education & Skills,SEND (0-25),Third Party Payments,DSG - High Needs Block,CAT - Telford Priory School,29/04/2024,4716.10
Education & Skills,SEND (0-25),Third Party Payments,DSG - High Needs Block,Hadley Learning Community Academy,29/04/2024,7026.34
Education & Skills,SEND (0-25),Third Party Payments,DSG - High Needs Block,Redhill Primary Academy,29/04/2024,485.31
Education & Skills,SEND (0-25),Third Party Payments,DSG - High Needs Block,Lantern Academy,29/04/2024,7119.08
Education & Skills,SEND (0-25),Third Party Payments,DSG - High Needs Block,The Telford Langley School ,29/04/2024,1382.66
Education & Skills,SEND (0-25),Third Party Payments,DSG - High Needs Block,Wrekin View Primary School,29/04/2024,479.60
Education & Skills,SEND (0-25),Third Party Payments,DSG - High Needs Block,Dawley C of E Primary Academy,29/04/2024,799.34
Education & Skills,SEND (0-25),Third Party Payments,DSG - High Needs Block,Charlton Academy,29/04/2024,2753.43
Education & Skills,SEND (0-25),Third Party Payments,DSG - High Needs Block,ABRAHAM DARBY ACADEMY ,29/04/2024,1171.42
Education & Skills,SEND (0-25),Third Party Payments,DSG - High Needs Block,PRIORSLEE ACADEMY,29/04/2024,556.68
Education & Skills,SEND (0-25),Third Party Payments,DSG - High Needs Block,Lawley Village Academy,29/04/2024,1624.37
Education & Skills,SEND (0-25),Premises-Related Expenditure,Hire Of Rooms,MEETING POINT TRUST LTD,05/04/2024,129.17
Education & Skills,SEND (0-25),Third Party Payments,DSG - High Needs Block,Lawley Village Academy,24/04/2024,632.39
Education & Skills,SEND (0-25),Third Party Payments,DSG - High Needs Block,Dawley C of E Primary Academy,24/04/2024,520.42
Education & Skills,SEND (0-25),Third Party Payments,DSG - High Needs Block,PRIORSLEE ACADEMY,24/04/2024,522.43
Education & Skills,SEND (0-25),Third Party Payments,DSG - High Needs Block,Wrekin View Primary School,24/04/2024,174.14
Education & Skills,SEND (0-25),Third Party Payments,DSG - High Needs Block,Grange Park Primary School - Community Academies Trust,24/04/2024,174.14
Education & Skills,SEND (0-25),Third Party Payments,DSG - High Needs Block,ABRAHAM DARBY ACADEMY ,24/04/2024,632.30
Education & Skills,SEND (0-25),Third Party Payments,DSG - High Needs Block,St Patricks Catholic Primary Part of OLHOC,24/04/2024,261.21
Education & Skills,SEND (0-25),Third Party Payments,DSG - High Needs Block,Aqueduct Primary Academy,24/04/2024,609.50
Education & Skills,SEND (0-25),Third Party Payments,DSG - High Needs Block,Apley Wood Primary Academy,24/04/2024,1166.08
Education & Skills,SEND (0-25),Third Party Payments,DSG - High Needs Block,Charlton Academy,24/04/2024,1309.26
Education & Skills,SEND (0-25),Third Party Payments,DSG - High Needs Block,Burton Borough School Learning Community Trust,24/04/2024,1044.85
Education & Skills,SEND (0-25),Third Party Payments,DSG - High Needs Block,The Telford Langley School ,24/04/2024,261.21
Education & Skills,SEND (0-25),Third Party Payments,DSG - High Needs Block,MADELEY ACADEMY TRUST LTD,24/04/2024,898.62
Education & Skills,SEND (0-25),Third Party Payments,DSG - High Needs Block,ESWB Tutoring and Support Ltd,03/04/2024,285.00
Education & Skills,SEND (0-25),Third Party Payments,DSG - High Needs Block,ESWB Tutoring and Support Ltd,03/04/2024,520.00
Education & Skills,SEND (0-25),Third Party Payments,DSG - High Needs Block,ESWB Tutoring and Support Ltd,03/04/2024,624.00
Education & Skills,SEND (0-25),Third Party Payments,DSG - High Needs Block,ESWB Tutoring and Support Ltd,03/04/2024,570.00
Education & Skills,SEND (0-25),Third Party Payments,DSG - High Needs Block,ESWB Tutoring and Support Ltd,03/04/2024,513.00
Education & Skills,SEND (0-25),Third Party Payments,DSG - High Needs Block,ESWB Tutoring and Support Ltd,03/04/2024,780.00
Education & Skills,SEND (0-25),Third Party Payments,DSG - High Needs Block,ESWB Tutoring and Support Ltd,02/04/2024,456.00
Education & Skills,SEND (0-25),Third Party Payments,DSG - High Needs Block,ESWB Tutoring and Support Ltd,02/04/2024,780.00
Education & Skills,SEND (0-25),Third Party Payments,DSG - High Needs Block,ESWB Tutoring and Support Ltd,02/04/2024,520.00
Education & Skills,SEND (0-25),Third Party Payments,DSG - High Needs Block,CROSSBAR COACHING,12/04/2024,700.00
Education & Skills,SEND (0-25),Third Party Payments,DSG - High Needs Block,ESWB Tutoring and Support Ltd,17/04/2024,520.00
Education & Skills,SEND (0-25),Third Party Payments,DSG - High Needs Block,Ruskin Mill Trust,17/04/2024,29071.58
Education & Skills,SEND (0-25),Third Party Payments,DSG - High Needs Block,Chalkline Education & Support Ltd,23/04/2024,150.00
Education & Skills,SEND (0-25),Third Party Payments,DSG - High Needs Block,Chalkline Education & Support Ltd,23/04/2024,337.50
Education & Skills,SEND (0-25),Third Party Payments,DSG - High Needs Block,Chalkline Education & Support Ltd,23/04/2024,500.00
Education & Skills,SEND (0-25),Third Party Payments,DSG - High Needs Block,Chalkline Education & Support Ltd,23/04/2024,337.50
Education & Skills,SEND (0-25),Third Party Payments,DSG - High Needs Block,Chalkline Education & Support Ltd,23/04/2024,720.00
Education & Skills,SEND (0-25),Third Party Payments,DSG - High Needs Block,CROSSBAR COACHING,23/04/2024,6825.00
Education & Skills,SEND (0-25),Third Party Payments,DSG - High Needs Block,CROSSBAR COACHING,23/04/2024,6825.00
Education & Skills,SEND (0-25),Third Party Payments,DSG - High Needs Block,Ruskin Mill Trust,30/04/2024,79265.39
Education & Skills,SEND (0-25),Supplies & Services,Other Services,LINQ Healthcare Recruitment  Specialists Ltd,12/04/2024,2550.00
Education & Skills,SEND (0-25),Supplies & Services,Other Services,Permanent Futures Ltd,12/04/2024,1400.00
Education & Skills,SEND (0-25),Supplies & Services,Other Services,Permanent Futures Ltd,12/04/2024,1400.00
Education & Skills,SEND (0-25),Supplies & Services,Other Services,Permanent Futures Ltd,12/04/2024,1400.00
Education & Skills,SEND (0-25),Supplies & Services,Other Services,LINQ Healthcare Recruitment  Specialists Ltd,12/04/2024,1275.00
Education & Skills,SEND (0-25),Supplies & Services,Other Services,NEXT STEPS PSYCHOLOGY LTD,12/04/2024,200.00
Education & Skills,SEND (0-25),Supplies & Services,Other Services,LINQ Healthcare Recruitment  Specialists Ltd,17/04/2024,1275.00
Education & Skills,SEND (0-25),Employees,Course Fees,KC Jones Conference & Events Ltd,17/04/2024,325.00
Education & Skills,SEND (0-25),Supplies & Services,Other Services,LINQ Healthcare Recruitment  Specialists Ltd,22/04/2024,1275.00
Education & Skills,Skills,Premises-Related Expenditure,Hire Of Rooms,AFC Telford Holdings Limited,17/04/2024,3050.00
Education & Skills,Skills,Premises-Related Expenditure,Hire Of Rooms,OAKENGATES TOWN COUNCIL,17/04/2024,324.00
Education & Skills,Skills,Premises-Related Expenditure,Hire Of Rooms,OAKENGATES TOWN COUNCIL,17/04/2024,175.50
Education & Skills,Skills,Premises-Related Expenditure,Hire Of Rooms,HOLLINSWOOD & RANDLAY PARISH COUNCIL,17/04/2024,195.00
Education & Skills,Skills,Premises-Related Expenditure,Hire Of Rooms,DONNINGTON PARTNERSHIP CIO,17/04/2024,127.50
Education & Skills,Skills,Premises-Related Expenditure,Hire Of Rooms,DONNINGTON PARTNERSHIP CIO,17/04/2024,369.75
Education & Skills,Skills,Premises-Related Expenditure,Hire Of Rooms,OAKENGATES TOWN COUNCIL,17/04/2024,324.00
Education & Skills,Skills,Premises-Related Expenditure,Hire Of Rooms,MEETING POINT TRUST LTD,24/04/2024,125.00
Education & Skills,Skills,Premises-Related Expenditure,Hire Of Rooms,MEETING POINT TRUST LTD,24/04/2024,125.00
Education & Skills,Skills,Premises-Related Expenditure,Hire Of Rooms,MEETING POINT TRUST LTD,24/04/2024,158.33
Education & Skills,Skills,Premises-Related Expenditure,Hire Of Rooms,HADLEY & LEEGOMERY PARISH COUNCIL,24/04/2024,120.00
Education & Skills,Skills,Premises-Related Expenditure,Hire Of Rooms,MEETING POINT TRUST LTD,24/04/2024,125.00
Education & Skills,Skills,Premises-Related Expenditure,Hire Of Rooms,PARK LANE CENTRE,24/04/2024,577.50
Education & Skills,Skills,Supplies & Services,Research Surveys,J2 Research LTD ,08/04/2024,6300.00
Education & Skills,Skills,Third Party Payments,Childminders,CHILDCARE SOS,18/04/2024,1942.50
Education & Skills,Skills,Third Party Payments,Childminders,CHILDCARE SOS,18/04/2024,463.75
Education & Skills,Skills,Supplies & Services,Advertising,Bauer Radio Ltd,17/04/2024,867.71
Education & Skills,Skills,Supplies & Services,Advertising,Bauer Radio Ltd,17/04/2024,1526.85
Education & Skills,Skills,Supplies & Services,Advertising,Bauer Radio Ltd,17/04/2024,800.00
Education & Skills,Skills,Supplies & Services,Advertising,Bauer Radio Ltd,17/04/2024,1408.70
Education & Skills,Skills,Supplies & Services,Advertising,Bauer Radio Ltd,17/04/2024,1632.15
Education & Skills,Skills,Supplies & Services,Advertising,Bauer Radio Ltd,17/04/2024,815.90
Education & Skills,Skills,Supplies & Services,Advertising,Bauer Radio Ltd,17/04/2024,3741.05
Education & Skills,Skills,Supplies & Services,Advertising,Bauer Radio Ltd,17/04/2024,800.00
Education & Skills,Skills,Supplies & Services,Advertising,Bauer Radio Ltd,17/04/2024,436.08
Education & Skills,Skills,Supplies & Services,Advertising,Bauer Radio Ltd,17/04/2024,1628.25
Education & Skills,Skills,Supplies & Services,Exam Fees,CITY & GUILDS,17/04/2024,244.80
Education & Skills,Skills,Third Party Payments,Childminders,CHILDCARE SOS,17/04/2024,2117.50
Education & Skills,Skills,Third Party Payments,Childminders,CHILDCARE SOS,17/04/2024,262.50
Education & Skills,Skills,Supplies & Services,Telephones,Esendex,24/04/2024,285.00
Education & Skills,Skills,Premises-Related Expenditure,Hire Of Rooms,AFC Telford Holdings Limited,17/04/2024,750.00
Education & Skills,Skills,Premises-Related Expenditure,Hire Of Rooms,MADELEY TOWN COUNCIL ,24/04/2024,125.00
Education & Skills,Skills,Premises-Related Expenditure,Hire Of Rooms,Madeley Town Council Hub on the Hill,24/04/2024,262.50
Education & Skills,Skills,Supplies & Services,Subscriptions,British Association for Supported Employment,24/04/2024,320.00
Education & Skills,Skills,Premises-Related Expenditure,Hire Of Rooms,Creative Training Spaces,24/04/2024,185.00
Education & Skills,Skills,Premises-Related Expenditure,Hire Of Rooms,TELFORD INTERNATIONAL CENTRE,17/04/2024,3659.25
Education & Skills,Skills,Premises-Related Expenditure,Hire Of Rooms,TELFORD INTERNATIONAL CENTRE,17/04/2024,2325.85
Finance & Human Resources,"Finance Manager (Business, Education & Care)",Employees,Professional Subs,C I P F A,19/04/2024,380.00
Finance & Human Resources,Finance Manager (Corporate & Capital),Supplies & Services,Conference Expenses,LAVAT Consulting Limited,04/04/2024,231.25
Finance & Human Resources,Finance Manager (Corporate & Capital),Supplies & Services,Historic Building Grant,CIPFA BUSINESS LTD,03/04/2024,5170.00
Finance & Human Resources,Finance Manager (Corporate & Capital),Supplies & Services,Subscriptions,LG Futures,03/04/2024,11385.00
Finance & Human Resources,Human Resources,Employees,Criminal Records Bureau Checks,Matrix Security Watchdog,02/04/2024,675.63
Finance & Human Resources,Human Resources,Employees,Criminal Records Bureau Checks,DISCLOSURE & BARRING SERVICE,05/04/2024,8573.00
Finance & Human Resources,Human Resources,Employees,Other Employee Costs,THOMPSONS SOLICITORS,18/04/2024,350.00
Finance & Human Resources,Human Resources,Employees,Other Employee Costs,THOMPSONS SOLICITORS,03/04/2024,291.67
Finance & Human Resources,Human Resources,Employees,Other Employee Costs,THOMPSONS SOLICITORS,02/04/2024,291.67
Finance & Human Resources,Human Resources,Supplies & Services,Doctors Fees,Simon Gollins Ltd,05/04/2024,162.00
Finance & Human Resources,Human Resources,Employees,Other Employee Costs,THOMPSONS SOLICITORS,15/04/2024,291.67
Finance & Human Resources,Human Resources,Supplies & Services,Doctors Fees,Get Medic Ltd,17/04/2024,490.00
Finance & Human Resources,Human Resources,Supplies & Services,Doctors Fees,Get Medic Ltd,22/04/2024,350.00
Finance & Human Resources,Human Resources,Supplies & Services,Subscriptions,West Midlands Employers,02/04/2024,1413.26
Finance & Human Resources,Revenues,Supplies & Services,Conference Expenses,LAVAT Consulting Limited,04/04/2024,231.25
Finance & Human Resources,Revenues,Employees,Staff Training,Airey Consultancy Services Ltd.,09/04/2024,195.00
Finance & Human Resources,Revenues,Supplies & Services,Postages,Financial Data Management plc,09/04/2024,1105.17
Finance & Human Resources,Revenues,Supplies & Services,Postages,Financial Data Management plc,09/04/2024,325.88
Finance & Human Resources,Revenues,Supplies & Services,Postages,Financial Data Management plc,09/04/2024,1005.28
Finance & Human Resources,Revenues,Supplies & Services,Postages,Financial Data Management plc,09/04/2024,247.52
Finance & Human Resources,Revenues,Supplies & Services,Postages,Financial Data Management plc,09/04/2024,859.27
Finance & Human Resources,Revenues,Supplies & Services,Postages,Financial Data Management plc,09/04/2024,532.87
Finance & Human Resources,Revenues,Supplies & Services,Postages,Financial Data Management plc,09/04/2024,695.30
Finance & Human Resources,Revenues,Supplies & Services,Postages,Financial Data Management plc,09/04/2024,322.18
Finance & Human Resources,Revenues,Supplies & Services,Postages,NEC Software Solutions UK Ltd,25/04/2024,231.57
Finance & Human Resources,Revenues,Supplies & Services,Postages,NEC Software Solutions UK Ltd,25/04/2024,694.68
Finance & Human Resources,Revenues,Supplies & Services,Printing - Other,Printloft,04/04/2024,194.00
Finance & Human Resources,Revenues,Supplies & Services,Printing - Other,MARKETING AT THE MILL,03/04/2024,115.00
Finance & Human Resources,Revenues,Supplies & Services,Printing - Other,Prontaprint - Stratford,03/04/2024,1090.40
Finance & Human Resources,Revenues,Supplies & Services,Equipment - Purchase,DOCU-FINISH SOLUTIONS LTD,19/04/2024,519.75
Finance & Human Resources,Revenues,Supplies & Services,Printing - Other,Cliffe Enterprise Ltd,26/04/2024,373.00
Finance & Human Resources,Revenues,Supplies & Services,Printing - Other,MARKETING AT THE MILL,25/04/2024,216.00
Finance & Human Resources,Revenues,Supplies & Services,Printing - Other,LEXON GB LTD,30/04/2024,115.97
Finance & Human Resources,Revenues,Supplies & Services,Postages,ROYAL MAIL GROUP PLC ,03/04/2024,1537.62
Finance & Human Resources,Revenues,Supplies & Services,Franking machine service,FRANCOTYP-POSTALIA LTD (POSTAGE),03/04/2024,3000.00
Finance & Human Resources,Revenues,Supplies & Services,Postages,FREELANCE BUSINESS ASSOCIATES,03/04/2024,360.00
Finance & Human Resources,Revenues,Supplies & Services,Postages,FREELANCE BUSINESS ASSOCIATES,03/04/2024,216.00
Finance & Human Resources,Revenues,Supplies & Services,Postages,FREELANCE BUSINESS ASSOCIATES,03/04/2024,180.00
Finance & Human Resources,Revenues,Supplies & Services,Postages,ROYAL MAIL GROUP PLC ,09/04/2024,2733.38
Health & Wellbeing,Consultant in Public Health,Supplies & Services,Other Services,AMS International,03/04/2024,39999.77
Health & Wellbeing,Consultant in Public Health,Supplies & Services,Other Grants (Expenses),TELFORD MIND,02/04/2024,6250.00
Health & Wellbeing,Consultant in Public Health,Employees,Staff Training,LOUDMOUTH EDUCATION & TRAINING LTD,11/04/2024,7250.00
Health & Wellbeing,Consultant in Public Health,Supplies & Services,Sub Contractors,Abbott Rapid Diagnostics Limited,11/04/2024,514.54
Health & Wellbeing,Consultant in Public Health,Supplies & Services,Sub Contractors,Abbott Rapid Diagnostics Limited,11/04/2024,690.00
Health & Wellbeing,Consultant in Public Health,Supplies & Services,Sub Contractors,Abbott Rapid Diagnostics Limited,11/04/2024,294.00
Health & Wellbeing,Consultant in Public Health,Supplies & Services,Sub Contractors,Abbott Rapid Diagnostics Limited,11/04/2024,276.00
Health & Wellbeing,Consultant in Public Health,Supplies & Services,Sub Contractors,Abbott Rapid Diagnostics Limited,11/04/2024,432.00
Health & Wellbeing,Consultant in Public Health,Supplies & Services,Sub Contractors,Abbott Rapid Diagnostics Limited,11/04/2024,414.00
Health & Wellbeing,Consultant in Public Health,Supplies & Services,Sub Contractors,Abbott Rapid Diagnostics Limited,11/04/2024,552.00
Health & Wellbeing,Consultant in Public Health,Supplies & Services,Sub Contractors,Abbott Rapid Diagnostics Limited,11/04/2024,468.00
Health & Wellbeing,Consultant in Public Health,Supplies & Services,Sub Contractors,Abbott Rapid Diagnostics Limited,11/04/2024,611.27
Health & Wellbeing,Consultant in Public Health,Supplies & Services,Sub Contractors,Abbott Rapid Diagnostics Limited,11/04/2024,708.00
Health & Wellbeing,Consultant in Public Health,Supplies & Services,Sub Contractors,Abbott Rapid Diagnostics Limited,17/04/2024,624.00
Health & Wellbeing,Consultant in Public Health,Supplies & Services,Sub Contractors,Kingston Hospital NHS Foundation Trust,02/04/2024,166.78
Health & Wellbeing,Consultant in Public Health,Supplies & Services,Sub Contractors,Walsall Healthcare NHS Trust,02/04/2024,146.00
Health & Wellbeing,Consultant in Public Health,Supplies & Services,Sub Contractors,Central Health Solutions Ltd,11/04/2024,4720.75
Health & Wellbeing,Consultant in Public Health,Supplies & Services,Service Contracts,TACT,17/04/2024,5000.00
Health & Wellbeing,Health Improvement,Supplies & Services,Subscriptions,Specialist Support Services,11/04/2024,360.00
Health & Wellbeing,Health Improvement,Supplies & Services,Furniture - Purchase,MSM Hire Ltd,12/04/2024,8301.08
Health & Wellbeing,Health Improvement,Supplies & Services,Web Services,BIBLIOGRAPHIC DATA SERVICES LIMITED,11/04/2024,4130.00
Health & Wellbeing,Health Improvement,Supplies & Services,Subscriptions,Libraries Connected,11/04/2024,589.23
Health & Wellbeing,Health Improvement,Supplies & Services,Libraries Book Fund,Askews & Holts Library Services Ltd,10/04/2024,125.07
Health & Wellbeing,Health Improvement,Supplies & Services,Libraries Book Fund,PETERS  LTD,19/04/2024,114.40
Health & Wellbeing,Health Improvement,Supplies & Services,Libraries Book Fund,PETERS  LTD,19/04/2024,101.40
Health & Wellbeing,Health Improvement,Supplies & Services,Libraries Book Fund,PETERS  LTD,19/04/2024,192.55
Health & Wellbeing,Health Improvement,Supplies & Services,Libraries Book Fund,Askews & Holts Library Services Ltd,17/04/2024,199.10
Health & Wellbeing,Health Improvement,Supplies & Services,Libraries Book Fund,Askews & Holts Library Services Ltd,17/04/2024,197.86
Health & Wellbeing,Health Improvement,Supplies & Services,Libraries Book Fund,Askews & Holts Library Services Ltd,17/04/2024,190.58
Health & Wellbeing,Health Improvement,Supplies & Services,Computer Software (Maint),COVERGOLD LTD,19/04/2024,415.00
Health & Wellbeing,Health Improvement,Supplies & Services,Libraries Book Fund,PETERS  LTD,24/04/2024,137.30
Health & Wellbeing,Health Improvement,Supplies & Services,Libraries Book Fund,PETERS  LTD,24/04/2024,120.15
Health & Wellbeing,Health Improvement,Premises-Related Expenditure,Hire Of Rooms,DONNINGTON PARTNERSHIP CIO,11/04/2024,224.00
Health & Wellbeing,Health Improvement,Premises-Related Expenditure,Hire Of Rooms,STIRCHLEY & BROOKSIDE PARISH COUNCIL ,11/04/2024,108.00
Health & Wellbeing,Health Improvement,Third Party Payments,Interpreters Fees,VISS Sign Language Interpreting Service,11/04/2024,120.00
Health & Wellbeing,Health Improvement,Third Party Payments,Interpreters Fees,VISS Sign Language Interpreting Service,11/04/2024,120.00
Health & Wellbeing,Health Improvement,Third Party Payments,Interpreters Fees,VISS Sign Language Interpreting Service,11/04/2024,120.00
Health & Wellbeing,Health Improvement,Supplies & Services,Equipment - Repair,SHREWSBURY & TELFORD HOSPITAL NHS TRUST,24/04/2024,1250.00
Health & Wellbeing,Health Protection,Supplies & Services,Subscriptions,CLEAPSS,11/04/2024,4766.24
Health & Wellbeing,Health Protection,Supplies & Services,Stamp Duty,Northumbrian Water Limited,11/04/2024,2406.62
Health & Wellbeing,Health Protection,Supplies & Services,Registration / Licence Fees,Public Analyst Scientific Services,15/04/2024,235.36
Health & Wellbeing,Health Protection,Employees,Cont Prof Development,R H Environmental Ltd,15/04/2024,186.00
"Housing, Employment & Infrastructure","Housing, Employment & Infrastructure",Capital Expenditure,Plan Environment Services Fees,TAYLORS MECHANICAL H & P SERVICES LTD,17/04/2024,215.17
"Housing, Employment & Infrastructure","Housing, Employment & Infrastructure",Capital Expenditure,Plan Environment Services Fees,TAYLORS MECHANICAL H & P SERVICES LTD,17/04/2024,115.00
"Housing, Employment & Infrastructure","Housing, Employment & Infrastructure",Capital Expenditure,Other Capital Expenditure,WB Building Services Limited,29/04/2024,123.88
"Housing, Employment & Infrastructure","Housing, Employment & Infrastructure",Employees,Agency Supply Costs,The Oyster Partnership Ltd,03/04/2024,1431.15
"Housing, Employment & Infrastructure","Housing, Employment & Infrastructure",Employees,Agency Supply Costs,The Oyster Partnership Ltd,17/04/2024,1010.50
"Housing, Employment & Infrastructure","Housing, Employment & Infrastructure",Employees,Agency Supply Costs,The Oyster Partnership Ltd,17/04/2024,1410.00
"Housing, Employment & Infrastructure","Housing, Employment & Infrastructure",Employees,Agency Supply Costs,The Oyster Partnership Ltd,24/04/2024,1476.74
"Housing, Employment & Infrastructure","Housing, Employment & Infrastructure",Supplies & Services,Other Services,Marches Energy Agency,29/04/2024,7619.04
"Housing, Employment & Infrastructure",Inward Investment & Business Support,Capital Expenditure,Payments to Contractor,SIGNS EXPRESS (TELFORD),25/04/2024,6462.08
"Housing, Employment & Infrastructure",Inward Investment & Business Support,Supplies & Services,Consultancy,InSynch Business Services Ltd,18/04/2024,2250.00
"Housing, Employment & Infrastructure",Inward Investment & Business Support,Supplies & Services,Other Services,Shropshire Youth Support Trust,05/04/2024,12600.00
"Housing, Employment & Infrastructure",Inward Investment & Business Support,Supplies & Services,Other Services,Shropshire Youth Support Trust,05/04/2024,1200.00
"Housing, Employment & Infrastructure",Inward Investment & Business Support,Supplies & Services,Consultancy,European Innovation Limited,05/04/2024,1800.00
"Housing, Employment & Infrastructure",Inward Investment & Business Support,Supplies & Services,Other Services,School of Coding and AI,19/04/2024,1400.00
"Housing, Employment & Infrastructure",Inward Investment & Business Support,Supplies & Services,Other Services,School of Coding and AI,19/04/2024,3500.00
"Housing, Employment & Infrastructure",Inward Investment & Business Support,Supplies & Services,Other Grants (Expenses),WORCESTERSHIRE COUNTY COUNCIL,02/04/2024,44380.00
"Housing, Employment & Infrastructure",Inward Investment & Business Support,Supplies & Services,Consultancy,Good2Great Ltd,02/04/2024,20000.00
"Housing, Employment & Infrastructure",Inward Investment & Business Support,Supplies & Services,Consultancy,European Innovation Limited,02/04/2024,42000.00
"Housing, Employment & Infrastructure",Inward Investment & Business Support,Supplies & Services,Other Services,School of Coding Ltd,05/04/2024,2000.00
"Housing, Employment & Infrastructure",Inward Investment & Business Support,Supplies & Services,Other Services,School of Coding Ltd,05/04/2024,5000.00
"Housing, Employment & Infrastructure",Inward Investment & Business Support,Supplies & Services,Licences,Alcium Software Ltd,05/04/2024,6146.00
"Housing, Employment & Infrastructure",Inward Investment & Business Support,Supplies & Services,Other Grants (Expenses),UK Prosperity Fund Pymts,18/04/2024,7000.00
"Housing, Employment & Infrastructure",Inward Investment & Business Support,Supplies & Services,Other Grants (Expenses),UK Prosperity Fund Pymts,18/04/2024,19530.00
"Housing, Employment & Infrastructure",Inward Investment & Business Support,Supplies & Services,Other Grants (Expenses),UK Prosperity Fund Pymts,18/04/2024,2772.00
"Housing, Employment & Infrastructure",Inward Investment & Business Support,Supplies & Services,Other Grants (Expenses),UK Prosperity Fund Pymts,18/04/2024,6300.00
"Housing, Employment & Infrastructure",Inward Investment & Business Support,Supplies & Services,Other Grants (Expenses),UK Prosperity Fund Pymts,18/04/2024,7000.00
"Housing, Employment & Infrastructure",Inward Investment & Business Support,Supplies & Services,Other Grants (Expenses),UK Prosperity Fund Pymts,18/04/2024,2404.90
"Housing, Employment & Infrastructure",Inward Investment & Business Support,Supplies & Services,Other Grants (Expenses),UK Prosperity Fund Pymts,18/04/2024,1173.08
"Housing, Employment & Infrastructure",Inward Investment & Business Support,Supplies & Services,Other Grants (Expenses),UK Prosperity Fund Pymts,18/04/2024,3852.10
"Housing, Employment & Infrastructure",Inward Investment & Business Support,Supplies & Services,Consultancy,Acer Marketing Communications Limited,25/04/2024,187.50
"Housing, Employment & Infrastructure",Inward Investment & Business Support,Supplies & Services,Consultancy,Shropshire Festivals Limited,25/04/2024,170.00
"Housing, Employment & Infrastructure",Inward Investment & Business Support,Supplies & Services,Other Grants (Expenses),UK Prosperity Fund Pymts,25/04/2024,1435.82
"Housing, Employment & Infrastructure",Inward Investment & Business Support,Supplies & Services,Other Grants (Expenses),UK Prosperity Fund Pymts,25/04/2024,6825.00
"Housing, Employment & Infrastructure",Inward Investment & Business Support,Supplies & Services,Other Grants (Expenses),UK Prosperity Fund Pymts,25/04/2024,8165.50
"Housing, Employment & Infrastructure",Inward Investment & Business Support,Supplies & Services,Other Grants (Expenses),UK Prosperity Fund Pymts,25/04/2024,3182.14
"Housing, Employment & Infrastructure",Inward Investment & Business Support,Supplies & Services,Other Grants (Expenses),UK Prosperity Fund Pymts,25/04/2024,2000.00
"Housing, Employment & Infrastructure",Inward Investment & Business Support,Supplies & Services,Other Grants (Expenses),UK Prosperity Fund Pymts,18/04/2024,2998.80
"Housing, Employment & Infrastructure",Inward Investment & Business Support,Supplies & Services,Other Grants (Expenses),UK Prosperity Fund Pymts,18/04/2024,2499.00
"Housing, Employment & Infrastructure",Inward Investment & Business Support,Supplies & Services,Other Grants (Expenses),UK Prosperity Fund Pymts,18/04/2024,2499.00
"Housing, Employment & Infrastructure",Inward Investment & Business Support,Supplies & Services,Other Grants (Expenses),UK Prosperity Fund Pymts,18/04/2024,2000.00
"Housing, Employment & Infrastructure",Inward Investment & Business Support,Supplies & Services,Other Grants (Expenses),UK Prosperity Fund Pymts,18/04/2024,2499.00
"Housing, Employment & Infrastructure",Private Sector Housing & Enforcement,Capital Expenditure,Expenditure on loans & other financial assistance,Shropshire Electrical Supplies Ltd,12/04/2024,2933.55
"Housing, Employment & Infrastructure",Private Sector Housing & Enforcement,Capital Expenditure,Expenditure on loans & other financial assistance,Shropshire Electrical Supplies Ltd,12/04/2024,246.45
"Housing, Employment & Infrastructure",Private Sector Housing & Enforcement,Capital Expenditure,Other Capital Expenditure,Marches Energy Agency,17/04/2024,3480.00
"Housing, Employment & Infrastructure",Private Sector Housing & Enforcement,Capital Expenditure,Other Capital Expenditure,Marches Energy Agency,24/04/2024,1160.00
"Housing, Employment & Infrastructure",Private Sector Housing & Enforcement,Capital Expenditure,Expenditure on loans & other financial assistance,Surefire Management Services Ltd,24/04/2024,25434.65
"Housing, Employment & Infrastructure",Private Sector Housing & Enforcement,Capital Expenditure,Expenditure on loans & other financial assistance,Surefire Management Services Ltd,24/04/2024,41385.05
Neighbourhood & Enforcement Services,Enforcement,Capital Expenditure,Payments to Contractor,Security Wise Ltd,08/04/2024,19779.00
Neighbourhood & Enforcement Services,Enforcement,Supplies & Services,Sub Contractors,Osborne Richardson Ltd,29/04/2024,1644.65
Neighbourhood & Enforcement Services,Enforcement,Supplies & Services,Sub Contractors,Osborne Richardson Ltd,02/04/2024,1644.65
Neighbourhood & Enforcement Services,Enforcement,Employees,Professional Subs,TJC ENVIRONMENTAL LIMITED,03/04/2024,500.00
Neighbourhood & Enforcement Services,Enforcement,Supplies & Services,Test Portable Elec Equipment,Cirrus Research plc,03/04/2024,430.00
Neighbourhood & Enforcement Services,Enforcement,Supplies & Services,Test Portable Elec Equipment,Cirrus Research plc,03/04/2024,138.00
Neighbourhood & Enforcement Services,Enforcement,Supplies & Services,Sub Contractors,Osborne Richardson Ltd,08/04/2024,1389.06
Neighbourhood & Enforcement Services,Enforcement,Supplies & Services,Sub Contractors,Osborne Richardson Ltd,17/04/2024,1377.95
Neighbourhood & Enforcement Services,Enforcement,Supplies & Services,Sub Contractors,Osborne Richardson Ltd,19/04/2024,1644.65
Neighbourhood & Enforcement Services,Enforcement,Premises-Related Expenditure,Electricity,West Mercia Energy (WME),04/04/2024,106.58
Neighbourhood & Enforcement Services,Enforcement,Supplies & Services,Security Services,Hough Green Garage Ltd,22/04/2024,555.00
Neighbourhood & Enforcement Services,Enforcement,Premises-Related Expenditure,Sewage Charges,WATER PLUS FORMERLY SEVERN TRENT WATER LTD,04/04/2024,105.71
Neighbourhood & Enforcement Services,Enforcement,Premises-Related Expenditure,Sewage Charges,WATER PLUS FORMERLY SEVERN TRENT WATER LTD,09/04/2024,191.66
Neighbourhood & Enforcement Services,Enforcement,Premises-Related Expenditure,Sewage Charges,WATER PLUS FORMERLY SEVERN TRENT WATER LTD,09/04/2024,369.16
Neighbourhood & Enforcement Services,Enforcement,Premises-Related Expenditure,Sewage Charges,WATER PLUS FORMERLY SEVERN TRENT WATER LTD,09/04/2024,114.16
Neighbourhood & Enforcement Services,Enforcement,Premises-Related Expenditure,Sewage Charges,WATER PLUS FORMERLY SEVERN TRENT WATER LTD,10/04/2024,192.40
Neighbourhood & Enforcement Services,Enforcement,Premises-Related Expenditure,Sewage Charges,WATER PLUS FORMERLY SEVERN TRENT WATER LTD,10/04/2024,197.00
Neighbourhood & Enforcement Services,Enforcement,Premises-Related Expenditure,Sewage Charges,WATER PLUS FORMERLY SEVERN TRENT WATER LTD,10/04/2024,114.55
Neighbourhood & Enforcement Services,Enforcement,Premises-Related Expenditure,Sewage Charges,WATER PLUS FORMERLY SEVERN TRENT WATER LTD,10/04/2024,192.40
Neighbourhood & Enforcement Services,Enforcement,Premises-Related Expenditure,Sewage Charges,WATER PLUS FORMERLY SEVERN TRENT WATER LTD,17/04/2024,105.71
Neighbourhood & Enforcement Services,Enforcement,Supplies & Services,Legal Expenses,WYCHAVON DISTRICT COUNCIL,29/04/2024,4594.40
Neighbourhood & Enforcement Services,Enforcement,Supplies & Services,Security Services,ETAK Creative Ltd,29/04/2024,175.00
Neighbourhood & Enforcement Services,Enforcement,Supplies & Services,Security Services,Security Wise Ltd,29/04/2024,199.00
Neighbourhood & Enforcement Services,Enforcement,Supplies & Services,Other Services,TJ Robinson Group,29/04/2024,203.50
Neighbourhood & Enforcement Services,Enforcement,Employees,Staff Training,Rayan Facilities Management Ltd,29/04/2024,5950.00
Neighbourhood & Enforcement Services,Enforcement,Supplies & Services,Security Services,Security Wise Ltd,29/04/2024,13035.00
Neighbourhood & Enforcement Services,Enforcement,Premises-Related Expenditure,Preventative Maintenance,METRIC GROUP LTD,03/04/2024,164.20
Neighbourhood & Enforcement Services,Enforcement,Premises-Related Expenditure,Preventative Maintenance,METRIC GROUP LTD,03/04/2024,884.00
Neighbourhood & Enforcement Services,Enforcement,Supplies & Services,Equipment - Purchase,APT SKIDATA LTD,05/04/2024,477.64
Neighbourhood & Enforcement Services,Enforcement,Employees,Agency Supply Costs,NSL Limited ,11/04/2024,3001.60
Neighbourhood & Enforcement Services,Enforcement,Supplies & Services,Legal Expenses,Traffic Enforcement Centre,12/04/2024,2500.00
Neighbourhood & Enforcement Services,Enforcement,Supplies & Services,Security Services,Rayan Facilities Management Ltd,08/04/2024,1500.00
Neighbourhood & Enforcement Services,"Highways, Engineering & Project Delivery",Capital Expenditure,External Professional Fees,Carrington West Ltd,12/04/2024,1801.80
Neighbourhood & Enforcement Services,"Highways, Engineering & Project Delivery",Capital Expenditure,External Professional Fees,Carrington West Ltd,22/04/2024,1813.35
Neighbourhood & Enforcement Services,"Highways, Engineering & Project Delivery",Capital Expenditure,External Professional Fees,XAIS Asset Management Ltd,02/04/2024,6400.00
Neighbourhood & Enforcement Services,"Highways, Engineering & Project Delivery",Capital Expenditure,Payments to Contractor,Yellow Line Parking Limited,09/04/2024,36150.00
Neighbourhood & Enforcement Services,"Highways, Engineering & Project Delivery",Capital Expenditure,Payments to Contractor,SWARCO UK & IRELAND LTD,15/04/2024,18861.00
Neighbourhood & Enforcement Services,"Highways, Engineering & Project Delivery",Capital Expenditure,Payments to Contractor,West Mercia Police & Crime Commissioner,10/04/2024,9358.95
Neighbourhood & Enforcement Services,"Highways, Engineering & Project Delivery",Capital Expenditure,External Professional Fees,Waterman Aspen,12/04/2024,1505.58
Neighbourhood & Enforcement Services,"Highways, Engineering & Project Delivery",Capital Expenditure,Payments to Contractor,Cubic Transportation Systems,12/04/2024,1963.00
Neighbourhood & Enforcement Services,"Highways, Engineering & Project Delivery",Capital Expenditure,Payments to Contractor,Amey OW Ltd,22/04/2024,4646.04
Neighbourhood & Enforcement Services,"Highways, Engineering & Project Delivery",Capital Expenditure,Payments to Contractor,SWARCO UK & IRELAND LTD,26/04/2024,2757.12
Neighbourhood & Enforcement Services,"Highways, Engineering & Project Delivery",Capital Expenditure,Payments to Contractor,Amey OW Ltd,26/04/2024,380.64
Neighbourhood & Enforcement Services,"Highways, Engineering & Project Delivery",Capital Expenditure,Payments to Contractor,Amey OW Ltd,26/04/2024,3092.69
Neighbourhood & Enforcement Services,"Highways, Engineering & Project Delivery",Capital Expenditure,Payments to Contractor,XAIS Asset Management Ltd,03/04/2024,21750.00
Neighbourhood & Enforcement Services,"Highways, Engineering & Project Delivery",Capital Expenditure,External Professional Fees,Amey OW Ltd,26/04/2024,404.07
Neighbourhood & Enforcement Services,"Highways, Engineering & Project Delivery",Capital Expenditure,External Professional Fees,Amey OW Ltd,26/04/2024,227.68
Neighbourhood & Enforcement Services,"Highways, Engineering & Project Delivery",Premises-Related Expenditure,Drainage Services,ARCO LIMITED,12/04/2024,112.01
Neighbourhood & Enforcement Services,"Highways, Engineering & Project Delivery",Premises-Related Expenditure,R&M -Buildings DLO Charge,VIATEC UK LTD,02/04/2024,592.00
Neighbourhood & Enforcement Services,"Highways, Engineering & Project Delivery",Third Party Payments,Highways Contract - BBLP,Balfour Beatty Civils Limited,12/04/2024,1698872.03
Neighbourhood & Enforcement Services,"Highways, Engineering & Project Delivery",Third Party Payments,Highways Contract - BBLP,MSM Hire Ltd,26/04/2024,1030.00
Neighbourhood & Enforcement Services,"Highways, Engineering & Project Delivery",Premises-Related Expenditure,Electricity,West Mercia Energy (WME),26/04/2024,208.48
Neighbourhood & Enforcement Services,"Highways, Engineering & Project Delivery",Premises-Related Expenditure,Electricity,West Mercia Energy (WME),26/04/2024,99635.17
Neighbourhood & Enforcement Services,"Highways, Engineering & Project Delivery",Supplies & Services,Other Services,ENVIRONMENT AGENCY,04/04/2024,17465.17
Neighbourhood & Enforcement Services,"Highways, Engineering & Project Delivery",Supplies & Services,Other Services,WATER PLUS FORMERLY SEVERN TRENT WATER LTD,15/04/2024,341.37
Neighbourhood & Enforcement Services,"Highways, Engineering & Project Delivery",Supplies & Services,Other Services,VEOLIA ES (UK) LTD ,15/04/2024,3493.48
Neighbourhood & Enforcement Services,"Highways, Engineering & Project Delivery",Premises-Related Expenditure,Electricity,West Mercia Energy (WME),26/04/2024,561.13
Neighbourhood & Enforcement Services,"Highways, Engineering & Project Delivery",Premises-Related Expenditure,Lift Maintenance,STANNAH LIFT SERVICES LTD,26/04/2024,334.85
Neighbourhood & Enforcement Services,"Highways, Engineering & Project Delivery",Premises-Related Expenditure,Window Cleaning,Vortex Cleaning Ltd,26/04/2024,430.00
Neighbourhood & Enforcement Services,"Highways, Engineering & Project Delivery",Supplies & Services,Consultancy,Waterman Aspen,05/04/2024,8640.00
Neighbourhood & Enforcement Services,"Highways, Engineering & Project Delivery",Supplies & Services,Consultancy,Waterman Aspen,05/04/2024,10176.00
Neighbourhood & Enforcement Services,"Highways, Engineering & Project Delivery",Supplies & Services,Equipment - Hire,STANFORD MARSH FINANCE LTD,15/04/2024,762.30
Neighbourhood & Enforcement Services,"Highways, Engineering & Project Delivery",Supplies & Services,Equipment - Purchase,CCS MEDIA LIMITED,17/04/2024,198.00
Neighbourhood & Enforcement Services,"Highways, Engineering & Project Delivery",Supplies & Services,Comp Software (Purch / Hire),PILLAR SOFTWARE LIMITED,22/04/2024,1585.00
Neighbourhood & Enforcement Services,Neighbourhood & Environmental Services,Supplies & Services,Other Services,HILBRAE PETS HOTEL,29/04/2024,1753.99
Neighbourhood & Enforcement Services,Neighbourhood & Environmental Services,Supplies & Services,Other Services,HILBRAE PETS HOTEL,29/04/2024,-410.00
Neighbourhood & Enforcement Services,Neighbourhood & Environmental Services,Premises-Related Expenditure,Grounds Maintenance,SMITH OF DERBY LTD,29/04/2024,283.00
Neighbourhood & Enforcement Services,Neighbourhood & Environmental Services,Third Party Payments,Contractor Recharge,Id verde,30/04/2024,506258.75
Neighbourhood & Enforcement Services,Public Protection,Supplies & Services,Other Services,Trebla Security Ltd,04/04/2024,2072.00
Neighbourhood & Enforcement Services,Public Protection,Supplies & Services,Equipment - Purchase,VIP-SYSTEMS LIMITED,11/04/2024,468.15
Neighbourhood & Enforcement Services,Safer & Stronger Communities,Premises-Related Expenditure,Leasehold Rents,GPS Property Shropshire LLP,15/04/2024,725.00
Neighbourhood & Enforcement Services,Safer & Stronger Communities,Premises-Related Expenditure,Leasehold Rents,GPS Property Shropshire LLP,10/04/2024,700.00
Neighbourhood & Enforcement Services,Safer & Stronger Communities,Supplies & Services,Security Services,Security Wise Ltd,22/04/2024,180.00
Neighbourhood & Enforcement Services,Safer & Stronger Communities,Supplies & Services,Security Services,Security Wise Ltd,26/04/2024,150.00
Neighbourhood & Enforcement Services,Safer & Stronger Communities,Supplies & Services,Other Services,Great Dawley Town Council,25/04/2024,225.00
Neighbourhood & Enforcement Services,Safer & Stronger Communities,Supplies & Services,Other Grants (Expenses),St Giles Trust,26/04/2024,43749.99
Neighbourhood & Enforcement Services,Safer & Stronger Communities,Premises-Related Expenditure,R&M -Buildings DLO Charge,WB Building Services Limited,15/04/2024,182.76
Neighbourhood & Enforcement Services,Safer & Stronger Communities,Supplies & Services,Other Services,TAFS Garden Co,11/04/2024,280.81
Neighbourhood & Enforcement Services,Safer & Stronger Communities,Supplies & Services,Other Services,AFC Telford United Foundation CIC,11/04/2024,1800.00
Neighbourhood & Enforcement Services,Safer & Stronger Communities,Supplies & Services,Other Services,Cyclones Football CIC,02/04/2024,320.00
Neighbourhood & Enforcement Services,Safer & Stronger Communities,Supplies & Services,Other Services,SHROPSHIRE COMMUNITY FOUNDATION,02/04/2024,10000.00
Neighbourhood & Enforcement Services,Safer & Stronger Communities,Supplies & Services,Other Services,CULTUREKIND,02/04/2024,216.00
Neighbourhood & Enforcement Services,Safer & Stronger Communities,Supplies & Services,Other Services,Great Dawley Town Council,02/04/2024,1164.50
Neighbourhood & Enforcement Services,Safer & Stronger Communities,Supplies & Services,Other Services,Shropshire Youth Association,02/04/2024,13014.00
Neighbourhood & Enforcement Services,Safer & Stronger Communities,Supplies & Services,Other Services,Steel Street / M12,04/04/2024,3849.54
Neighbourhood & Enforcement Services,Safer & Stronger Communities,Employees,Other Training,POINTGARD CONSULTANCY LTD,04/04/2024,10000.00
Neighbourhood & Enforcement Services,Safer & Stronger Communities,Supplies & Services,Furniture - Purchase,DK Furniture Limited,04/04/2024,2385.00
